{"text_format":"3","workbook":"xlsx","n_sheets":14,"sheets":["Sätted","Jaanuar","Veebruar","Märts","Aprill","Mai","Juuni","Juuli","August","September","Oktoober","November","Detsember","Pühad"],"not_rendered":{"defined_names":20},"read":"whole","date_system":"1900"}

{"sheet":"Sätted","index":0,"n_rows":34,"n_cols":32,"rows_kept":34,"merged":[[1,17,2,23],[3,1,3,7],[3,8,3,10],[3,17,7,31],[4,1,4,7],[5,1,5,7],[8,1,8,7],[8,9,8,15],[8,17,8,23],[8,25,8,31],[9,1,9,7],[9,9,9,15],[9,17,9,23],[9,25,9,31],[17,1,17,7],[17,9,17,15],[17,17,17,23],[17,25,17,31],[18,1,18,7],[18,9,18,15],[18,17,18,23],[18,25,18,31],[26,1,26,7],[26,9,26,15],[26,17,26,23],[26,25,26,31],[27,1,27,7],[27,9,27,15],[27,17,27,23],[27,25,27,31]]}
[]
[null,"KALENDRISÄTTED",{"$nulls":15},"AASTA"]
[]
[null,"NÄDALA ALGUS",{"$nulls":6},"PÜHAPÄEV",{"$nulls":8},{"$f":"YEAR(TODAY())","v":2018}]
[null,"KUVA PÜHAD",{"$nulls":6},true]
[null,"KUVA TÄHISTAMINE",{"$nulls":6},true]
[{"$nulls":8},{"$f":"IF(KuvaPühad,Tähistamine,KuvaPühad)","v":true}]
[null,"AASTANE VAADE"]
[null,{"$f":"DATE(Kalendriaasta,1,1)","v":43101},{"$nulls":7},{"$f":"DATE(Kalendriaasta,2,1)","v":43132},{"$nulls":7},{"$f":"DATE(Kalendriaasta,3,1)","v":43160},{"$nulls":7},{"$f":"DATE(Kalendriaasta,4,1)","v":43191}]
[null,{"$f":"UPPER(TEXT(B9,\"MMMM\"))","v":"JAANUAR"},{"$nulls":7},{"$f":"UPPER(TEXT(J9,\"MMMM\"))","v":"VEEBRUAR"},{"$nulls":7},{"$f":"UPPER(TEXT(R9,\"MMMM\"))","v":"MÄRTS"},{"$nulls":7},{"$f":"UPPER(TEXT(Z9,\"MMMM\"))","v":"APRILL"}]
[1,{"$f":"Päevad+DATE(Kalendriaasta,MONTH($B$9),1)-WEEKDAY(DATE(Kalendriaasta,MONTH($B$9),1),(NädalaAlgus=\"Esmaspäev\")+1)+$A11*7-6","v":"2017-12-31"},"2018-01-01","2018-01-02","2018-01-03","2018-01-04","2018-01-05","2018-01-06",null,{"$f":"Päevad+DATE(Kalendriaasta,MONTH($J$9),1)-WEEKDAY(DATE(Kalendriaasta,MONTH($J$9),1),(NädalaAlgus=\"Esmaspäev\")+1)+$A11*7-6","v":"2018-01-28"},"2018-01-29","2018-01-30","2018-01-31","2018-02-01","2018-02-02","2018-02-03",null,{"$f":"Päevad+DATE(Kalendriaasta,MONTH($R$9),1)-WEEKDAY(DATE(Kalendriaasta,MONTH($R$9),1),(NädalaAlgus=\"Esmaspäev\")+1)+$A11*7-6","v":"2018-02-25"},"2018-02-26","2018-02-27","2018-02-28","2018-03-01","2018-03-02","2018-03-03",null,{"$f":"Päevad+DATE(Kalendriaasta,MONTH($Z$9),1)-WEEKDAY(DATE(Kalendriaasta,MONTH($Z$9),1),(NädalaAlgus=\"Esmaspäev\")+1)+$A11*7-6","v":"2018-04-01"},"2018-04-02","2018-04-03","2018-04-04","2018-04-05","2018-04-06","2018-04-07"]
[2,{"$f":"Päevad+DATE(Kalendriaasta,MONTH($B$9),1)-WEEKDAY(DATE(Kalendriaasta,MONTH($B$9),1),(NädalaAlgus=\"Esmaspäev\")+1)+$A12*7-6","v":"2018-01-07"},"2018-01-08","2018-01-09","2018-01-10","2018-01-11","2018-01-12","2018-01-13",null,{"$f":"Päevad+DATE(Kalendriaasta,MONTH($J$9),1)-WEEKDAY(DATE(Kalendriaasta,MONTH($J$9),1),(NädalaAlgus=\"Esmaspäev\")+1)+$A12*7-6","v":"2018-02-04"},"2018-02-05","2018-02-06","2018-02-07","2018-02-08","2018-02-09","2018-02-10",null,{"$f":"Päevad+DATE(Kalendriaasta,MONTH($R$9),1)-WEEKDAY(DATE(Kalendriaasta,MONTH($R$9),1),(NädalaAlgus=\"Esmaspäev\")+1)+$A12*7-6","v":"2018-03-04"},"2018-03-05","2018-03-06","2018-03-07","2018-03-08","2018-03-09","2018-03-10",null,{"$f":"Päevad+DATE(Kalendriaasta,MONTH($Z$9),1)-WEEKDAY(DATE(Kalendriaasta,MONTH($Z$9),1),(NädalaAlgus=\"Esmaspäev\")+1)+$A12*7-6","v":"2018-04-08"},"2018-04-09","2018-04-10","2018-04-11","2018-04-12","2018-04-13","2018-04-14"]
[3,{"$f":"Päevad+DATE(Kalendriaasta,MONTH($B$9),1)-WEEKDAY(DATE(Kalendriaasta,MONTH($B$9),1),(NädalaAlgus=\"Esmaspäev\")+1)+$A13*7-6","v":"2018-01-14"},"2018-01-15","2018-01-16","2018-01-17","2018-01-18","2018-01-19","2018-01-20",null,{"$f":"Päevad+DATE(Kalendriaasta,MONTH($J$9),1)-WEEKDAY(DATE(Kalendriaasta,MONTH($J$9),1),(NädalaAlgus=\"Esmaspäev\")+1)+$A13*7-6","v":"2018-02-11"},"2018-02-12","2018-02-13","2018-02-14","2018-02-15","2018-02-16","2018-02-17",null,{"$f":"Päevad+DATE(Kalendriaasta,MONTH($R$9),1)-WEEKDAY(DATE(Kalendriaasta,MONTH($R$9),1),(NädalaAlgus=\"Esmaspäev\")+1)+$A13*7-6","v":"2018-03-11"},"2018-03-12","2018-03-13","2018-03-14","2018-03-15","2018-03-16","2018-03-17",null,{"$f":"Päevad+DATE(Kalendriaasta,MONTH($Z$9),1)-WEEKDAY(DATE(Kalendriaasta,MONTH($Z$9),1),(NädalaAlgus=\"Esmaspäev\")+1)+$A13*7-6","v":"2018-04-15"},"2018-04-16","2018-04-17","2018-04-18","2018-04-19","2018-04-20","2018-04-21"]
[4,{"$f":"Päevad+DATE(Kalendriaasta,MONTH($B$9),1)-WEEKDAY(DATE(Kalendriaasta,MONTH($B$9),1),(NädalaAlgus=\"Esmaspäev\")+1)+$A14*7-6","v":"2018-01-21"},"2018-01-22","2018-01-23","2018-01-24","2018-01-25","2018-01-26","2018-01-27",null,{"$f":"Päevad+DATE(Kalendriaasta,MONTH($J$9),1)-WEEKDAY(DATE(Kalendriaasta,MONTH($J$9),1),(NädalaAlgus=\"Esmaspäev\")+1)+$A14*7-6","v":"2018-02-18"},"2018-02-19","2018-02-20","2018-02-21","2018-02-22","2018-02-23","2018-02-24",null,{"$f":"Päevad+DATE(Kalendriaasta,MONTH($R$9),1)-WEEKDAY(DATE(Kalendriaasta,MONTH($R$9),1),(NädalaAlgus=\"Esmaspäev\")+1)+$A14*7-6","v":"2018-03-18"},"2018-03-19","2018-03-20","2018-03-21","2018-03-22","2018-03-23","2018-03-24",null,{"$f":"Päevad+DATE(Kalendriaasta,MONTH($Z$9),1)-WEEKDAY(DATE(Kalendriaasta,MONTH($Z$9),1),(NädalaAlgus=\"Esmaspäev\")+1)+$A14*7-6","v":"2018-04-22"},"2018-04-23","2018-04-24","2018-04-25","2018-04-26","2018-04-27","2018-04-28"]
[5,{"$f":"Päevad+DATE(Kalendriaasta,MONTH($B$9),1)-WEEKDAY(DATE(Kalendriaasta,MONTH($B$9),1),(NädalaAlgus=\"Esmaspäev\")+1)+$A15*7-6","v":"2018-01-28"},"2018-01-29","2018-01-30","2018-01-31","2018-02-01","2018-02-02","2018-02-03",null,{"$f":"Päevad+DATE(Kalendriaasta,MONTH($J$9),1)-WEEKDAY(DATE(Kalendriaasta,MONTH($J$9),1),(NädalaAlgus=\"Esmaspäev\")+1)+$A15*7-6","v":"2018-02-25"},"2018-02-26","2018-02-27","2018-02-28","2018-03-01","2018-03-02","2018-03-03",null,{"$f":"Päevad+DATE(Kalendriaasta,MONTH($R$9),1)-WEEKDAY(DATE(Kalendriaasta,MONTH($R$9),1),(NädalaAlgus=\"Esmaspäev\")+1)+$A15*7-6","v":"2018-03-25"},"2018-03-26","2018-03-27","2018-03-28","2018-03-29","2018-03-30","2018-03-31",null,{"$f":"Päevad+DATE(Kalendriaasta,MONTH($Z$9),1)-WEEKDAY(DATE(Kalendriaasta,MONTH($Z$9),1),(NädalaAlgus=\"Esmaspäev\")+1)+$A15*7-6","v":"2018-04-29"},"2018-04-30","2018-05-01","2018-05-02","2018-05-03","2018-05-04","2018-05-05"]
[6,{"$f":"Päevad+DATE(Kalendriaasta,MONTH($B$9),1)-WEEKDAY(DATE(Kalendriaasta,MONTH($B$9),1),(NädalaAlgus=\"Esmaspäev\")+1)+$A16*7-6","v":"2018-02-04"},"2018-02-05","2018-02-06","2018-02-07","2018-02-08","2018-02-09","2018-02-10",null,{"$f":"Päevad+DATE(Kalendriaasta,MONTH($J$9),1)-WEEKDAY(DATE(Kalendriaasta,MONTH($J$9),1),(NädalaAlgus=\"Esmaspäev\")+1)+$A16*7-6","v":"2018-03-04"},"2018-03-05","2018-03-06","2018-03-07","2018-03-08","2018-03-09","2018-03-10",null,{"$f":"Päevad+DATE(Kalendriaasta,MONTH($R$9),1)-WEEKDAY(DATE(Kalendriaasta,MONTH($R$9),1),(NädalaAlgus=\"Esmaspäev\")+1)+$A16*7-6","v":"2018-04-01"},"2018-04-02","2018-04-03","2018-04-04","2018-04-05","2018-04-06","2018-04-07",null,{"$f":"Päevad+DATE(Kalendriaasta,MONTH($Z$9),1)-WEEKDAY(DATE(Kalendriaasta,MONTH($Z$9),1),(NädalaAlgus=\"Esmaspäev\")+1)+$A16*7-6","v":"2018-05-06"},"2018-05-07","2018-05-08","2018-05-09","2018-05-10","2018-05-11","2018-05-12"]
[]
[null,{"$f":"DATE(Kalendriaasta,5,1)","v":43221},{"$nulls":7},{"$f":"DATE(Kalendriaasta,6,1)","v":43252},{"$nulls":7},{"$f":"DATE(Kalendriaasta,7,1)","v":43282},{"$nulls":7},{"$f":"DATE(Kalendriaasta,8,1)","v":43313}]
[null,{"$f":"UPPER(TEXT(B18,\"MMMM\"))","v":"MAI"},{"$nulls":7},{"$f":"UPPER(TEXT(J18,\"MMMM\"))","v":"JUUNI"},{"$nulls":7},{"$f":"UPPER(TEXT(R18,\"MMMM\"))","v":"JUULI"},{"$nulls":7},{"$f":"UPPER(TEXT(Z18,\"MMMM\"))","v":"AUGUST"}]
[1,{"$f":"Päevad+DATE(Kalendriaasta,MONTH($B$18),1)-WEEKDAY(DATE(Kalendriaasta,MONTH($B$18),1),(NädalaAlgus=\"Esmaspäev\")+1)+$A20*7-6","v":"2018-04-29"},"2018-04-30","2018-05-01","2018-05-02","2018-05-03","2018-05-04","2018-05-05",null,{"$f":"Päevad+DATE(Kalendriaasta,MONTH($J$18),1)-WEEKDAY(DATE(Kalendriaasta,MONTH($J$18),1),(NädalaAlgus=\"Esmaspäev\")+1)+$A20*7-6","v":"2018-05-27"},"2018-05-28","2018-05-29","2018-05-30","2018-05-31","2018-06-01","2018-06-02",null,{"$f":"Päevad+DATE(Kalendriaasta,MONTH($R$18),1)-WEEKDAY(DATE(Kalendriaasta,MONTH($R$18),1),(NädalaAlgus=\"Esmaspäev\")+1)+$A20*7-6","v":"2018-07-01"},"2018-07-02","2018-07-03","2018-07-04","2018-07-05","2018-07-06","2018-07-07",null,{"$f":"Päevad+DATE(Kalendriaasta,MONTH($Z$18),1)-WEEKDAY(DATE(Kalendriaasta,MONTH($Z$18),1),(NädalaAlgus=\"Esmaspäev\")+1)+$A20*7-6","v":"2018-07-29"},"2018-07-30","2018-07-31","2018-08-01","2018-08-02","2018-08-03","2018-08-04"]
[2,{"$f":"Päevad+DATE(Kalendriaasta,MONTH($B$18),1)-WEEKDAY(DATE(Kalendriaasta,MONTH($B$18),1),(NädalaAlgus=\"Esmaspäev\")+1)+$A21*7-6","v":"2018-05-06"},"2018-05-07","2018-05-08","2018-05-09","2018-05-10","2018-05-11","2018-05-12",null,{"$f":"Päevad+DATE(Kalendriaasta,MONTH($J$18),1)-WEEKDAY(DATE(Kalendriaasta,MONTH($J$18),1),(NädalaAlgus=\"Esmaspäev\")+1)+$A21*7-6","v":"2018-06-03"},"2018-06-04","2018-06-05","2018-06-06","2018-06-07","2018-06-08","2018-06-09",null,{"$f":"Päevad+DATE(Kalendriaasta,MONTH($R$18),1)-WEEKDAY(DATE(Kalendriaasta,MONTH($R$18),1),(NädalaAlgus=\"Esmaspäev\")+1)+$A21*7-6","v":"2018-07-08"},"2018-07-09","2018-07-10","2018-07-11","2018-07-12","2018-07-13","2018-07-14",null,{"$f":"Päevad+DATE(Kalendriaasta,MONTH($Z$18),1)-WEEKDAY(DATE(Kalendriaasta,MONTH($Z$18),1),(NädalaAlgus=\"Esmaspäev\")+1)+$A21*7-6","v":"2018-08-05"},"2018-08-06","2018-08-07","2018-08-08","2018-08-09","2018-08-10","2018-08-11"]
[3,{"$f":"Päevad+DATE(Kalendriaasta,MONTH($B$18),1)-WEEKDAY(DATE(Kalendriaasta,MONTH($B$18),1),(NädalaAlgus=\"Esmaspäev\")+1)+$A22*7-6","v":"2018-05-13"},"2018-05-14","2018-05-15","2018-05-16","2018-05-17","2018-05-18","2018-05-19",null,{"$f":"Päevad+DATE(Kalendriaasta,MONTH($J$18),1)-WEEKDAY(DATE(Kalendriaasta,MONTH($J$18),1),(NädalaAlgus=\"Esmaspäev\")+1)+$A22*7-6","v":"2018-06-10"},"2018-06-11","2018-06-12","2018-06-13","2018-06-14","2018-06-15","2018-06-16",null,{"$f":"Päevad+DATE(Kalendriaasta,MONTH($R$18),1)-WEEKDAY(DATE(Kalendriaasta,MONTH($R$18),1),(NädalaAlgus=\"Esmaspäev\")+1)+$A22*7-6","v":"2018-07-15"},"2018-07-16","2018-07-17","2018-07-18","2018-07-19","2018-07-20","2018-07-21",null,{"$f":"Päevad+DATE(Kalendriaasta,MONTH($Z$18),1)-WEEKDAY(DATE(Kalendriaasta,MONTH($Z$18),1),(NädalaAlgus=\"Esmaspäev\")+1)+$A22*7-6","v":"2018-08-12"},"2018-08-13","2018-08-14","2018-08-15","2018-08-16","2018-08-17","2018-08-18"]
[4,{"$f":"Päevad+DATE(Kalendriaasta,MONTH($B$18),1)-WEEKDAY(DATE(Kalendriaasta,MONTH($B$18),1),(NädalaAlgus=\"Esmaspäev\")+1)+$A23*7-6","v":"2018-05-20"},"2018-05-21","2018-05-22","2018-05-23","2018-05-24","2018-05-25","2018-05-26",null,{"$f":"Päevad+DATE(Kalendriaasta,MONTH($J$18),1)-WEEKDAY(DATE(Kalendriaasta,MONTH($J$18),1),(NädalaAlgus=\"Esmaspäev\")+1)+$A23*7-6","v":"2018-06-17"},"2018-06-18","2018-06-19","2018-06-20","2018-06-21","2018-06-22","2018-06-23",null,{"$f":"Päevad+DATE(Kalendriaasta,MONTH($R$18),1)-WEEKDAY(DATE(Kalendriaasta,MONTH($R$18),1),(NädalaAlgus=\"Esmaspäev\")+1)+$A23*7-6","v":"2018-07-22"},"2018-07-23","2018-07-24","2018-07-25","2018-07-26","2018-07-27","2018-07-28",null,{"$f":"Päevad+DATE(Kalendriaasta,MONTH($Z$18),1)-WEEKDAY(DATE(Kalendriaasta,MONTH($Z$18),1),(NädalaAlgus=\"Esmaspäev\")+1)+$A23*7-6","v":"2018-08-19"},"2018-08-20","2018-08-21","2018-08-22","2018-08-23","2018-08-24","2018-08-25"]
[5,{"$f":"Päevad+DATE(Kalendriaasta,MONTH($B$18),1)-WEEKDAY(DATE(Kalendriaasta,MONTH($B$18),1),(NädalaAlgus=\"Esmaspäev\")+1)+$A24*7-6","v":"2018-05-27"},"2018-05-28","2018-05-29","2018-05-30","2018-05-31","2018-06-01","2018-06-02",null,{"$f":"Päevad+DATE(Kalendriaasta,MONTH($J$18),1)-WEEKDAY(DATE(Kalendriaasta,MONTH($J$18),1),(NädalaAlgus=\"Esmaspäev\")+1)+$A24*7-6","v":"2018-06-24"},"2018-06-25","2018-06-26","2018-06-27","2018-06-28","2018-06-29","2018-06-30",null,{"$f":"Päevad+DATE(Kalendriaasta,MONTH($R$18),1)-WEEKDAY(DATE(Kalendriaasta,MONTH($R$18),1),(NädalaAlgus=\"Esmaspäev\")+1)+$A24*7-6","v":"2018-07-29"},"2018-07-30","2018-07-31","2018-08-01","2018-08-02","2018-08-03","2018-08-04",null,{"$f":"Päevad+DATE(Kalendriaasta,MONTH($Z$18),1)-WEEKDAY(DATE(Kalendriaasta,MONTH($Z$18),1),(NädalaAlgus=\"Esmaspäev\")+1)+$A24*7-6","v":"2018-08-26"},"2018-08-27","2018-08-28","2018-08-29","2018-08-30","2018-08-31","2018-09-01"]
[6,{"$f":"Päevad+DATE(Kalendriaasta,MONTH($B$18),1)-WEEKDAY(DATE(Kalendriaasta,MONTH($B$18),1),(NädalaAlgus=\"Esmaspäev\")+1)+$A25*7-6","v":"2018-06-03"},"2018-06-04","2018-06-05","2018-06-06","2018-06-07","2018-06-08","2018-06-09",null,{"$f":"Päevad+DATE(Kalendriaasta,MONTH($J$18),1)-WEEKDAY(DATE(Kalendriaasta,MONTH($J$18),1),(NädalaAlgus=\"Esmaspäev\")+1)+$A25*7-6","v":"2018-07-01"},"2018-07-02","2018-07-03","2018-07-04","2018-07-05","2018-07-06","2018-07-07",null,{"$f":"Päevad+DATE(Kalendriaasta,MONTH($R$18),1)-WEEKDAY(DATE(Kalendriaasta,MONTH($R$18),1),(NädalaAlgus=\"Esmaspäev\")+1)+$A25*7-6","v":"2018-08-05"},"2018-08-06","2018-08-07","2018-08-08","2018-08-09","2018-08-10","2018-08-11",null,{"$f":"Päevad+DATE(Kalendriaasta,MONTH($Z$18),1)-WEEKDAY(DATE(Kalendriaasta,MONTH($Z$18),1),(NädalaAlgus=\"Esmaspäev\")+1)+$A25*7-6","v":"2018-09-02"},"2018-09-03","2018-09-04","2018-09-05","2018-09-06","2018-09-07","2018-09-08"]
[]
[null,{"$f":"DATE(Kalendriaasta,9,1)","v":43344},{"$nulls":7},{"$f":"DATE(Kalendriaasta,10,1)","v":43374},{"$nulls":7},{"$f":"DATE(Kalendriaasta,11,1)","v":43405},{"$nulls":7},{"$f":"DATE(Kalendriaasta,12,1)","v":43435}]
[null,{"$f":"UPPER(TEXT(B27,\"MMMM\"))","v":"SEPTEMBER"},{"$nulls":7},{"$f":"UPPER(TEXT(J27,\"MMMM\"))","v":"OKTOOBER"},{"$nulls":7},{"$f":"UPPER(TEXT(R27,\"MMMM\"))","v":"NOVEMBER"},{"$nulls":7},{"$f":"UPPER(TEXT(Z27,\"MMMM\"))","v":"DETSEMBER"}]
[1,{"$f":"Päevad+DATE(Kalendriaasta,MONTH($B$27),1)-WEEKDAY(DATE(Kalendriaasta,MONTH($B$27),1),(NädalaAlgus=\"Esmaspäev\")+1)+$A29*7-6","v":"2018-08-26"},"2018-08-27","2018-08-28","2018-08-29","2018-08-30","2018-08-31","2018-09-01",null,{"$f":"Päevad+DATE(Kalendriaasta,MONTH($J$27),1)-WEEKDAY(DATE(Kalendriaasta,MONTH($J$27),1),(NädalaAlgus=\"Esmaspäev\")+1)+$A29*7-6","v":"2018-09-30"},"2018-10-01","2018-10-02","2018-10-03","2018-10-04","2018-10-05","2018-10-06",null,{"$f":"Päevad+DATE(Kalendriaasta,MONTH($R$27),1)-WEEKDAY(DATE(Kalendriaasta,MONTH($R$27),1),(NädalaAlgus=\"Esmaspäev\")+1)+$A29*7-6","v":"2018-10-28"},"2018-10-29","2018-10-30","2018-10-31","2018-11-01","2018-11-02","2018-11-03",null,{"$f":"Päevad+DATE(Kalendriaasta,MONTH($Z$27),1)-WEEKDAY(DATE(Kalendriaasta,MONTH($Z$27),1),(NädalaAlgus=\"Esmaspäev\")+1)+$A29*7-6","v":"2018-11-25"},"2018-11-26","2018-11-27","2018-11-28","2018-11-29","2018-11-30","2018-12-01"]
[2,{"$f":"Päevad+DATE(Kalendriaasta,MONTH($B$27),1)-WEEKDAY(DATE(Kalendriaasta,MONTH($B$27),1),(NädalaAlgus=\"Esmaspäev\")+1)+$A30*7-6","v":"2018-09-02"},"2018-09-03","2018-09-04","2018-09-05","2018-09-06","2018-09-07","2018-09-08",null,{"$f":"Päevad+DATE(Kalendriaasta,MONTH($J$27),1)-WEEKDAY(DATE(Kalendriaasta,MONTH($J$27),1),(NädalaAlgus=\"Esmaspäev\")+1)+$A30*7-6","v":"2018-10-07"},"2018-10-08","2018-10-09","2018-10-10","2018-10-11","2018-10-12","2018-10-13",null,{"$f":"Päevad+DATE(Kalendriaasta,MONTH($R$27),1)-WEEKDAY(DATE(Kalendriaasta,MONTH($R$27),1),(NädalaAlgus=\"Esmaspäev\")+1)+$A30*7-6","v":"2018-11-04"},"2018-11-05","2018-11-06","2018-11-07","2018-11-08","2018-11-09","2018-11-10",null,{"$f":"Päevad+DATE(Kalendriaasta,MONTH($Z$27),1)-WEEKDAY(DATE(Kalendriaasta,MONTH($Z$27),1),(NädalaAlgus=\"Esmaspäev\")+1)+$A30*7-6","v":"2018-12-02"},"2018-12-03","2018-12-04","2018-12-05","2018-12-06","2018-12-07","2018-12-08"]
[3,{"$f":"Päevad+DATE(Kalendriaasta,MONTH($B$27),1)-WEEKDAY(DATE(Kalendriaasta,MONTH($B$27),1),(NädalaAlgus=\"Esmaspäev\")+1)+$A31*7-6","v":"2018-09-09"},"2018-09-10","2018-09-11","2018-09-12","2018-09-13","2018-09-14","2018-09-15",null,{"$f":"Päevad+DATE(Kalendriaasta,MONTH($J$27),1)-WEEKDAY(DATE(Kalendriaasta,MONTH($J$27),1),(NädalaAlgus=\"Esmaspäev\")+1)+$A31*7-6","v":"2018-10-14"},"2018-10-15","2018-10-16","2018-10-17","2018-10-18","2018-10-19","2018-10-20",null,{"$f":"Päevad+DATE(Kalendriaasta,MONTH($R$27),1)-WEEKDAY(DATE(Kalendriaasta,MONTH($R$27),1),(NädalaAlgus=\"Esmaspäev\")+1)+$A31*7-6","v":"2018-11-11"},"2018-11-12","2018-11-13","2018-11-14","2018-11-15","2018-11-16","2018-11-17",null,{"$f":"Päevad+DATE(Kalendriaasta,MONTH($Z$27),1)-WEEKDAY(DATE(Kalendriaasta,MONTH($Z$27),1),(NädalaAlgus=\"Esmaspäev\")+1)+$A31*7-6","v":"2018-12-09"},"2018-12-10","2018-12-11","2018-12-12","2018-12-13","2018-12-14","2018-12-15"]
[4,{"$f":"Päevad+DATE(Kalendriaasta,MONTH($B$27),1)-WEEKDAY(DATE(Kalendriaasta,MONTH($B$27),1),(NädalaAlgus=\"Esmaspäev\")+1)+$A32*7-6","v":"2018-09-16"},"2018-09-17","2018-09-18","2018-09-19","2018-09-20","2018-09-21","2018-09-22",null,{"$f":"Päevad+DATE(Kalendriaasta,MONTH($J$27),1)-WEEKDAY(DATE(Kalendriaasta,MONTH($J$27),1),(NädalaAlgus=\"Esmaspäev\")+1)+$A32*7-6","v":"2018-10-21"},"2018-10-22","2018-10-23","2018-10-24","2018-10-25","2018-10-26","2018-10-27",null,{"$f":"Päevad+DATE(Kalendriaasta,MONTH($R$27),1)-WEEKDAY(DATE(Kalendriaasta,MONTH($R$27),1),(NädalaAlgus=\"Esmaspäev\")+1)+$A32*7-6","v":"2018-11-18"},"2018-11-19","2018-11-20","2018-11-21","2018-11-22","2018-11-23","2018-11-24",null,{"$f":"Päevad+DATE(Kalendriaasta,MONTH($Z$27),1)-WEEKDAY(DATE(Kalendriaasta,MONTH($Z$27),1),(NädalaAlgus=\"Esmaspäev\")+1)+$A32*7-6","v":"2018-12-16"},"2018-12-17","2018-12-18","2018-12-19","2018-12-20","2018-12-21","2018-12-22"]
[5,{"$f":"Päevad+DATE(Kalendriaasta,MONTH($B$27),1)-WEEKDAY(DATE(Kalendriaasta,MONTH($B$27),1),(NädalaAlgus=\"Esmaspäev\")+1)+$A33*7-6","v":"2018-09-23"},"2018-09-24","2018-09-25","2018-09-26","2018-09-27","2018-09-28","2018-09-29",null,{"$f":"Päevad+DATE(Kalendriaasta,MONTH($J$27),1)-WEEKDAY(DATE(Kalendriaasta,MONTH($J$27),1),(NädalaAlgus=\"Esmaspäev\")+1)+$A33*7-6","v":"2018-10-28"},"2018-10-29","2018-10-30","2018-10-31","2018-11-01","2018-11-02","2018-11-03",null,{"$f":"Päevad+DATE(Kalendriaasta,MONTH($R$27),1)-WEEKDAY(DATE(Kalendriaasta,MONTH($R$27),1),(NädalaAlgus=\"Esmaspäev\")+1)+$A33*7-6","v":"2018-11-25"},"2018-11-26","2018-11-27","2018-11-28","2018-11-29","2018-11-30","2018-12-01",null,{"$f":"Päevad+DATE(Kalendriaasta,MONTH($Z$27),1)-WEEKDAY(DATE(Kalendriaasta,MONTH($Z$27),1),(NädalaAlgus=\"Esmaspäev\")+1)+$A33*7-6","v":"2018-12-23"},"2018-12-24","2018-12-25","2018-12-26","2018-12-27","2018-12-28","2018-12-29"]
[6,{"$f":"Päevad+DATE(Kalendriaasta,MONTH($B$27),1)-WEEKDAY(DATE(Kalendriaasta,MONTH($B$27),1),(NädalaAlgus=\"Esmaspäev\")+1)+$A34*7-6","v":"2018-09-30"},"2018-10-01","2018-10-02","2018-10-03","2018-10-04","2018-10-05","2018-10-06",null,{"$f":"Päevad+DATE(Kalendriaasta,MONTH($J$27),1)-WEEKDAY(DATE(Kalendriaasta,MONTH($J$27),1),(NädalaAlgus=\"Esmaspäev\")+1)+$A34*7-6","v":"2018-11-04"},"2018-11-05","2018-11-06","2018-11-07","2018-11-08","2018-11-09","2018-11-10",null,{"$f":"Päevad+DATE(Kalendriaasta,MONTH($R$27),1)-WEEKDAY(DATE(Kalendriaasta,MONTH($R$27),1),(NädalaAlgus=\"Esmaspäev\")+1)+$A34*7-6","v":"2018-12-02"},"2018-12-03","2018-12-04","2018-12-05","2018-12-06","2018-12-07","2018-12-08",null,{"$f":"Päevad+DATE(Kalendriaasta,MONTH($Z$27),1)-WEEKDAY(DATE(Kalendriaasta,MONTH($Z$27),1),(NädalaAlgus=\"Esmaspäev\")+1)+$A34*7-6","v":"2018-12-30"},"2018-12-31","2019-01-01","2019-01-02","2019-01-03","2019-01-04","2019-01-05"]

{"sheet":"Jaanuar","index":1,"n_rows":17,"n_cols":8,"rows_kept":17,"merged":[[1,1,1,3],[14,3,14,7],[15,3,15,7],[16,1,16,7]]}
[]
[null,{"$f":"B9","v":"2018-01-14"}]
[]
[null,{"$f":"NädalaAlgus","v":"PÜHAPÄEV"},{"$f":"UPPER(TEXT(C5,\"dddd\"))","v":"ESMASPÄEV"},"TEISIPÄEV","KOLMAPÄEV","NELJAPÄEV","REEDE","LAUPÄEV"]
[null,{"$f":"Päevad+DATE(Kalendriaasta,1,1)-WEEKDAY(DATE(Kalendriaasta,1,1),(NädalaAlgus=\"Esmaspäev\")+1)+1","v":"2017-12-31"},"2018-01-01","2018-01-02","2018-01-03","2018-01-04","2018-01-05","2018-01-06"]
[null,{"$f":"IFERROR(IF(KuvaPühad,IF(INDEX(tblPühad[],MATCH(DATE(Kalendriaasta-(DAY(B5)>15)+(ROW()>6),MONTH(B5),DAY(B5)),IF(KuvaTähistamine,tblPühad[PARANDATUD],tblPühad[PÄEV]),0),6),INDEX(tblPühad[],MATCH(DATE(Kalendriaasta-(DAY(B5)>15)+(ROW()>6),MONTH(B5),DAY(B5)),IF(KuvaTähistamine,tblPühad[PARANDATUD],tblPühad[PÄEV]),0),2),\"\"),\"\"),\"\")","v":""},{"$f":"IFERROR(IF(KuvaPühad,IF(INDEX(tblPühad[],MATCH(DATE(Kalendriaasta-(DAY(C5)>15)+(ROW()>6),MONTH(C5),DAY(C5)),IF(KuvaTähistamine,tblPühad[PARANDATUD],tblPühad[PÄEV]),0),6),INDEX(tblPühad[],MATCH(DATE(Kalendriaasta-(DAY(C5)>15)+(ROW()>6),MONTH(C5),DAY(C5)),IF(KuvaTähistamine,tblPühad[PARANDATUD],tblPühad[PÄEV]),0),2),\"\"),\"\"),\"\")","v":"Uusaasta"},{"$f":"IFERROR(IF(KuvaPühad,IF(INDEX(tblPühad[],MATCH(DATE(Kalendriaasta-(DAY(D5)>15)+(ROW()>6),MONTH(D5),DAY(D5)),IF(KuvaTähistamine,tblPühad[PARANDATUD],tblPühad[PÄEV]),0),6),INDEX(tblPühad[],MATCH(DATE(Kalendriaasta-(DAY(D5)>15)+(ROW()>6),MONTH(D5),DAY(D5)),IF(KuvaTähistamine,tblPühad[PARANDATUD],tblPühad[PÄEV]),0),2),\"\"),\"\"),\"\")","v":""},{"$f":"IFERROR(IF(KuvaPühad,IF(INDEX(tblPühad[],MATCH(DATE(Kalendriaasta-(DAY(E5)>15)+(ROW()>6),MONTH(E5),DAY(E5)),IF(KuvaTähistamine,tblPühad[PARANDATUD],tblPühad[PÄEV]),0),6),INDEX(tblPühad[],MATCH(DATE(Kalendriaasta-(DAY(E5)>15)+(ROW()>6),MONTH(E5),DAY(E5)),IF(KuvaTähistamine,tblPühad[PARANDATUD],tblPühad[PÄEV]),0),2),\"\"),\"\"),\"\")","v":""},{"$f":"IFERROR(IF(KuvaPühad,IF(INDEX(tblPühad[],MATCH(DATE(Kalendriaasta-(DAY(F5)>15)+(ROW()>6),MONTH(F5),DAY(F5)),IF(KuvaTähistamine,tblPühad[PARANDATUD],tblPühad[PÄEV]),0),6),INDEX(tblPühad[],MATCH(DATE(Kalendriaasta-(DAY(F5)>15)+(ROW()>6),MONTH(F5),DAY(F5)),IF(KuvaTähistamine,tblPühad[PARANDATUD],tblPühad[PÄEV]),0),2),\"\"),\"\"),\"\")","v":""},{"$f":"IFERROR(IF(KuvaPühad,IF(INDEX(tblPühad[],MATCH(DATE(Kalendriaasta-(DAY(G5)>15)+(ROW()>6),MONTH(G5),DAY(G5)),IF(KuvaTähistamine,tblPühad[PARANDATUD],tblPühad[PÄEV]),0),6),INDEX(tblPühad[],MATCH(DATE(Kalendriaasta-(DAY(G5)>15)+(ROW()>6),MONTH(G5),DAY(G5)),IF(KuvaTähistamine,tblPühad[PARANDATUD],tblPühad[PÄEV]),0),2),\"\"),\"\"),\"\")","v":""},{"$f":"IFERROR(IF(KuvaPühad,IF(INDEX(tblPühad[],MATCH(DATE(Kalendriaasta-(DAY(H5)>15)+(ROW()>6),MONTH(H5),DAY(H5)),IF(KuvaTähistamine,tblPühad[PARANDATUD],tblPühad[PÄEV]),0),6),INDEX(tblPühad[],MATCH(DATE(Kalendriaasta-(DAY(H5)>15)+(ROW()>6),MONTH(H5),DAY(H5)),IF(KuvaTähistamine,tblPühad[PARANDATUD],tblPühad[PÄEV]),0),2),\"\"),\"\"),\"\")","v":""}]
[null,{"$f":"Päevad+DATE(Kalendriaasta,1,1)-WEEKDAY(DATE(Kalendriaasta,1,1),(NädalaAlgus=\"Esmaspäev\")+1)+8","v":"2018-01-07"},"2018-01-08","2018-01-09","2018-01-10","2018-01-11","2018-01-12","2018-01-13"]
[null,{"$f":"IFERROR(IF(KuvaPühad,IF(INDEX(tblPühad[],MATCH(DATE(Kalendriaasta,MONTH(B7),DAY(B7)),IF(KuvaTähistamine,tblPühad[PARANDATUD],tblPühad[PÄEV]),0),6),INDEX(tblPühad[],MATCH(DATE(Kalendriaasta,MONTH(B7),DAY(B7)),IF(KuvaTähistamine,tblPühad[PARANDATUD],tblPühad[PÄEV]),0),2),\"\"),\"\"),\"\")","v":""},{"$f":"IFERROR(IF(KuvaPühad,IF(INDEX(tblPühad[],MATCH(DATE(Kalendriaasta,MONTH(C7),DAY(C7)),IF(KuvaTähistamine,tblPühad[PARANDATUD],tblPühad[PÄEV]),0),6),INDEX(tblPühad[],MATCH(DATE(Kalendriaasta,MONTH(C7),DAY(C7)),IF(KuvaTähistamine,tblPühad[PARANDATUD],tblPühad[PÄEV]),0),2),\"\"),\"\"),\"\")","v":""},{"$f":"IFERROR(IF(KuvaPühad,IF(INDEX(tblPühad[],MATCH(DATE(Kalendriaasta,MONTH(D7),DAY(D7)),IF(KuvaTähistamine,tblPühad[PARANDATUD],tblPühad[PÄEV]),0),6),INDEX(tblPühad[],MATCH(DATE(Kalendriaasta,MONTH(D7),DAY(D7)),IF(KuvaTähistamine,tblPühad[PARANDATUD],tblPühad[PÄEV]),0),2),\"\"),\"\"),\"\")","v":""},{"$f":"IFERROR(IF(KuvaPühad,IF(INDEX(tblPühad[],MATCH(DATE(Kalendriaasta,MONTH(E7),DAY(E7)),IF(KuvaTähistamine,tblPühad[PARANDATUD],tblPühad[PÄEV]),0),6),INDEX(tblPühad[],MATCH(DATE(Kalendriaasta,MONTH(E7),DAY(E7)),IF(KuvaTähistamine,tblPühad[PARANDATUD],tblPühad[PÄEV]),0),2),\"\"),\"\"),\"\")","v":""},{"$f":"IFERROR(IF(KuvaPühad,IF(INDEX(tblPühad[],MATCH(DATE(Kalendriaasta,MONTH(F7),DAY(F7)),IF(KuvaTähistamine,tblPühad[PARANDATUD],tblPühad[PÄEV]),0),6),INDEX(tblPühad[],MATCH(DATE(Kalendriaasta,MONTH(F7),DAY(F7)),IF(KuvaTähistamine,tblPühad[PARANDATUD],tblPühad[PÄEV]),0),2),\"\"),\"\"),\"\")","v":""},{"$f":"IFERROR(IF(KuvaPühad,IF(INDEX(tblPühad[],MATCH(DATE(Kalendriaasta,MONTH(G7),DAY(G7)),IF(KuvaTähistamine,tblPühad[PARANDATUD],tblPühad[PÄEV]),0),6),INDEX(tblPühad[],MATCH(DATE(Kalendriaasta,MONTH(G7),DAY(G7)),IF(KuvaTähistamine,tblPühad[PARANDATUD],tblPühad[PÄEV]),0),2),\"\"),\"\"),\"\")","v":""},{"$f":"IFERROR(IF(KuvaPühad,IF(INDEX(tblPühad[],MATCH(DATE(Kalendriaasta,MONTH(H7),DAY(H7)),IF(KuvaTähistamine,tblPühad[PARANDATUD],tblPühad[PÄEV]),0),6),INDEX(tblPühad[],MATCH(DATE(Kalendriaasta,MONTH(H7),DAY(H7)),IF(KuvaTähistamine,tblPühad[PARANDATUD],tblPühad[PÄEV]),0),2),\"\"),\"\"),\"\")","v":""}]
[null,{"$f":"Päevad+DATE(Kalendriaasta,1,1)-WEEKDAY(DATE(Kalendriaasta,1,1),(NädalaAlgus=\"Esmaspäev\")+1)+15","v":"2018-01-14"},"2018-01-15","2018-01-16","2018-01-17","2018-01-18","2018-01-19","2018-01-20"]
[null,{"$f":"IFERROR(IF(KuvaPühad,IF(INDEX(tblPühad[],MATCH(DATE(Kalendriaasta,MONTH(B9),DAY(B9)),IF(KuvaTähistamine,tblPühad[PARANDATUD],tblPühad[PÄEV]),0),6),INDEX(tblPühad[],MATCH(DATE(Kalendriaasta,MONTH(B9),DAY(B9)),IF(KuvaTähistamine,tblPühad[PARANDATUD],tblPühad[PÄEV]),0),2),\"\"),\"\"),\"\")","v":""},{"$f":"IFERROR(IF(KuvaPühad,IF(INDEX(tblPühad[],MATCH(DATE(Kalendriaasta,MONTH(C9),DAY(C9)),IF(KuvaTähistamine,tblPühad[PARANDATUD],tblPühad[PÄEV]),0),6),INDEX(tblPühad[],MATCH(DATE(Kalendriaasta,MONTH(C9),DAY(C9)),IF(KuvaTähistamine,tblPühad[PARANDATUD],tblPühad[PÄEV]),0),2),\"\"),\"\"),\"\")","v":"Martin Luther King, Jr. Day"},{"$f":"IFERROR(IF(KuvaPühad,IF(INDEX(tblPühad[],MATCH(DATE(Kalendriaasta,MONTH(D9),DAY(D9)),IF(KuvaTähistamine,tblPühad[PARANDATUD],tblPühad[PÄEV]),0),6),INDEX(tblPühad[],MATCH(DATE(Kalendriaasta,MONTH(D9),DAY(D9)),IF(KuvaTähistamine,tblPühad[PARANDATUD],tblPühad[PÄEV]),0),2),\"\"),\"\"),\"\")","v":""},{"$f":"IFERROR(IF(KuvaPühad,IF(INDEX(tblPühad[],MATCH(DATE(Kalendriaasta,MONTH(E9),DAY(E9)),IF(KuvaTähistamine,tblPühad[PARANDATUD],tblPühad[PÄEV]),0),6),INDEX(tblPühad[],MATCH(DATE(Kalendriaasta,MONTH(E9),DAY(E9)),IF(KuvaTähistamine,tblPühad[PARANDATUD],tblPühad[PÄEV]),0),2),\"\"),\"\"),\"\")","v":""},{"$f":"IFERROR(IF(KuvaPühad,IF(INDEX(tblPühad[],MATCH(DATE(Kalendriaasta,MONTH(F9),DAY(F9)),IF(KuvaTähistamine,tblPühad[PARANDATUD],tblPühad[PÄEV]),0),6),INDEX(tblPühad[],MATCH(DATE(Kalendriaasta,MONTH(F9),DAY(F9)),IF(KuvaTähistamine,tblPühad[PARANDATUD],tblPühad[PÄEV]),0),2),\"\"),\"\"),\"\")","v":""},{"$f":"IFERROR(IF(KuvaPühad,IF(INDEX(tblPühad[],MATCH(DATE(Kalendriaasta,MONTH(G9),DAY(G9)),IF(KuvaTähistamine,tblPühad[PARANDATUD],tblPühad[PÄEV]),0),6),INDEX(tblPühad[],MATCH(DATE(Kalendriaasta,MONTH(G9),DAY(G9)),IF(KuvaTähistamine,tblPühad[PARANDATUD],tblPühad[PÄEV]),0),2),\"\"),\"\"),\"\")","v":""},{"$f":"IFERROR(IF(KuvaPühad,IF(INDEX(tblPühad[],MATCH(DATE(Kalendriaasta,MONTH(H9),DAY(H9)),IF(KuvaTähistamine,tblPühad[PARANDATUD],tblPühad[PÄEV]),0),6),INDEX(tblPühad[],MATCH(DATE(Kalendriaasta,MONTH(H9),DAY(H9)),IF(KuvaTähistamine,tblPühad[PARANDATUD],tblPühad[PÄEV]),0),2),\"\"),\"\"),\"\")","v":""}]
[null,{"$f":"Päevad+DATE(Kalendriaasta,1,1)-WEEKDAY(DATE(Kalendriaasta,1,1),(NädalaAlgus=\"Esmaspäev\")+1)+22","v":"2018-01-21"},"2018-01-22","2018-01-23","2018-01-24","2018-01-25","2018-01-26","2018-01-27"]
[null,{"$f":"IFERROR(IF(KuvaPühad,IF(INDEX(tblPühad[],MATCH(DATE(Kalendriaasta,MONTH(B11),DAY(B11)),IF(KuvaTähistamine,tblPühad[PARANDATUD],tblPühad[PÄEV]),0),6),INDEX(tblPühad[],MATCH(DATE(Kalendriaasta,MONTH(B11),DAY(B11)),IF(KuvaTähistamine,tblPühad[PARANDATUD],tblPühad[PÄEV]),0),2),\"\"),\"\"),\"\")","v":""},{"$f":"IFERROR(IF(KuvaPühad,IF(INDEX(tblPühad[],MATCH(DATE(Kalendriaasta,MONTH(C11),DAY(C11)),IF(KuvaTähistamine,tblPühad[PARANDATUD],tblPühad[PÄEV]),0),6),INDEX(tblPühad[],MATCH(DATE(Kalendriaasta,MONTH(C11),DAY(C11)),IF(KuvaTähistamine,tblPühad[PARANDATUD],tblPühad[PÄEV]),0),2),\"\"),\"\"),\"\")","v":""},{"$f":"IFERROR(IF(KuvaPühad,IF(INDEX(tblPühad[],MATCH(DATE(Kalendriaasta,MONTH(D11),DAY(D11)),IF(KuvaTähistamine,tblPühad[PARANDATUD],tblPühad[PÄEV]),0),6),INDEX(tblPühad[],MATCH(DATE(Kalendriaasta,MONTH(D11),DAY(D11)),IF(KuvaTähistamine,tblPühad[PARANDATUD],tblPühad[PÄEV]),0),2),\"\"),\"\"),\"\")","v":""},{"$f":"IFERROR(IF(KuvaPühad,IF(INDEX(tblPühad[],MATCH(DATE(Kalendriaasta,MONTH(E11),DAY(E11)),IF(KuvaTähistamine,tblPühad[PARANDATUD],tblPühad[PÄEV]),0),6),INDEX(tblPühad[],MATCH(DATE(Kalendriaasta,MONTH(E11),DAY(E11)),IF(KuvaTähistamine,tblPühad[PARANDATUD],tblPühad[PÄEV]),0),2),\"\"),\"\"),\"\")","v":""},{"$f":"IFERROR(IF(KuvaPühad,IF(INDEX(tblPühad[],MATCH(DATE(Kalendriaasta,MONTH(F11),DAY(F11)),IF(KuvaTähistamine,tblPühad[PARANDATUD],tblPühad[PÄEV]),0),6),INDEX(tblPühad[],MATCH(DATE(Kalendriaasta,MONTH(F11),DAY(F11)),IF(KuvaTähistamine,tblPühad[PARANDATUD],tblPühad[PÄEV]),0),2),\"\"),\"\"),\"\")","v":""},{"$f":"IFERROR(IF(KuvaPühad,IF(INDEX(tblPühad[],MATCH(DATE(Kalendriaasta,MONTH(G11),DAY(G11)),IF(KuvaTähistamine,tblPühad[PARANDATUD],tblPühad[PÄEV]),0),6),INDEX(tblPühad[],MATCH(DATE(Kalendriaasta,MONTH(G11),DAY(G11)),IF(KuvaTähistamine,tblPühad[PARANDATUD],tblPühad[PÄEV]),0),2),\"\"),\"\"),\"\")","v":""},{"$f":"IFERROR(IF(KuvaPühad,IF(INDEX(tblPühad[],MATCH(DATE(Kalendriaasta,MONTH(H11),DAY(H11)),IF(KuvaTähistamine,tblPühad[PARANDATUD],tblPühad[PÄEV]),0),6),INDEX(tblPühad[],MATCH(DATE(Kalendriaasta,MONTH(H11),DAY(H11)),IF(KuvaTähistamine,tblPühad[PARANDATUD],tblPühad[PÄEV]),0),2),\"\"),\"\"),\"\")","v":""}]
[null,{"$f":"Päevad+DATE(Kalendriaasta,1,1)-WEEKDAY(DATE(Kalendriaasta,1,1),(NädalaAlgus=\"Esmaspäev\")+1)+29","v":"2018-01-28"},"2018-01-29","2018-01-30","2018-01-31","2018-02-01","2018-02-02","2018-02-03"]
[null,{"$f":"IFERROR(IF(KuvaPühad,IF(INDEX(tblPühad[],MATCH(DATE(Kalendriaasta,MONTH(B13),DAY(B13)),IF(KuvaTähistamine,tblPühad[PARANDATUD],tblPühad[PÄEV]),0),6),INDEX(tblPühad[],MATCH(DATE(Kalendriaasta,MONTH(B13),DAY(B13)),IF(KuvaTähistamine,tblPühad[PARANDATUD],tblPühad[PÄEV]),0),2),\"\"),\"\"),\"\")","v":""},{"$f":"IFERROR(IF(KuvaPühad,IF(INDEX(tblPühad[],MATCH(DATE(Kalendriaasta,MONTH(C13),DAY(C13)),IF(KuvaTähistamine,tblPühad[PARANDATUD],tblPühad[PÄEV]),0),6),INDEX(tblPühad[],MATCH(DATE(Kalendriaasta,MONTH(C13),DAY(C13)),IF(KuvaTähistamine,tblPühad[PARANDATUD],tblPühad[PÄEV]),0),2),\"\"),\"\"),\"\")","v":""},{"$f":"IFERROR(IF(KuvaPühad,IF(INDEX(tblPühad[],MATCH(DATE(Kalendriaasta,MONTH(D13),DAY(D13)),IF(KuvaTähistamine,tblPühad[PARANDATUD],tblPühad[PÄEV]),0),6),INDEX(tblPühad[],MATCH(DATE(Kalendriaasta,MONTH(D13),DAY(D13)),IF(KuvaTähistamine,tblPühad[PARANDATUD],tblPühad[PÄEV]),0),2),\"\"),\"\"),\"\")","v":""},{"$f":"IFERROR(IF(KuvaPühad,IF(INDEX(tblPühad[],MATCH(DATE(Kalendriaasta,MONTH(E13),DAY(E13)),IF(KuvaTähistamine,tblPühad[PARANDATUD],tblPühad[PÄEV]),0),6),INDEX(tblPühad[],MATCH(DATE(Kalendriaasta,MONTH(E13),DAY(E13)),IF(KuvaTähistamine,tblPühad[PARANDATUD],tblPühad[PÄEV]),0),2),\"\"),\"\"),\"\")","v":""},{"$f":"IFERROR(IF(KuvaPühad,IF(INDEX(tblPühad[],MATCH(DATE(Kalendriaasta,MONTH(F13),DAY(F13)),IF(KuvaTähistamine,tblPühad[PARANDATUD],tblPühad[PÄEV]),0),6),INDEX(tblPühad[],MATCH(DATE(Kalendriaasta,MONTH(F13),DAY(F13)),IF(KuvaTähistamine,tblPühad[PARANDATUD],tblPühad[PÄEV]),0),2),\"\"),\"\"),\"\")","v":""},{"$f":"IFERROR(IF(KuvaPühad,IF(INDEX(tblPühad[],MATCH(DATE(Kalendriaasta,MONTH(G13),DAY(G13)),IF(KuvaTähistamine,tblPühad[PARANDATUD],tblPühad[PÄEV]),0),6),INDEX(tblPühad[],MATCH(DATE(Kalendriaasta,MONTH(G13),DAY(G13)),IF(KuvaTähistamine,tblPühad[PARANDATUD],tblPühad[PÄEV]),0),2),\"\"),\"\"),\"\")","v":""},{"$f":"IFERROR(IF(KuvaPühad,IF(INDEX(tblPühad[],MATCH(DATE(Kalendriaasta,MONTH(H13),DAY(H13)),IF(KuvaTähistamine,tblPühad[PARANDATUD],tblPühad[PÄEV]),0),6),INDEX(tblPühad[],MATCH(DATE(Kalendriaasta,MONTH(H13),DAY(H13)),IF(KuvaTähistamine,tblPühad[PARANDATUD],tblPühad[PÄEV]),0),2),\"\"),\"\"),\"\")","v":""}]
[null,{"$f":"Päevad+DATE(Kalendriaasta,1,1)-WEEKDAY(DATE(Kalendriaasta,1,1),(NädalaAlgus=\"Esmaspäev\")+1)+36","v":"2018-02-04"},"2018-02-05","MÄRKMED"]
[null,{"$f":"IFERROR(IF(KuvaPühad,IF(INDEX(tblPühad[],MATCH(DATE(Kalendriaasta,MONTH(B15),DAY(B15)),IF(KuvaTähistamine,tblPühad[PARANDATUD],tblPühad[PÄEV]),0),6),INDEX(tblPühad[],MATCH(DATE(Kalendriaasta,MONTH(B15),DAY(B15)),IF(KuvaTähistamine,tblPühad[PARANDATUD],tblPühad[PÄEV]),0),2),\"\"),\"\"),\"\")","v":""},{"$f":"IFERROR(IF(KuvaPühad,IF(INDEX(tblPühad[],MATCH(DATE(Kalendriaasta,MONTH(C15),DAY(C15)),IF(KuvaTähistamine,tblPühad[PARANDATUD],tblPühad[PÄEV]),0),6),INDEX(tblPühad[],MATCH(DATE(Kalendriaasta,MONTH(C15),DAY(C15)),IF(KuvaTähistamine,tblPühad[PARANDATUD],tblPühad[PÄEV]),0),2),\"\"),\"\"),\"\")","v":""}]
[null,{"$f":"IF(Pühad!$C$6=\"Martin Luther King, Jr. Day *\",\"* Martin Luther King Jr. Day and Inaguration Day\", \"\")","v":""}]

{"sheet":"Veebruar","index":2,"n_rows":16,"n_cols":8,"rows_kept":16,"merged":[[1,1,1,3],[14,3,14,7],[15,3,15,7],[16,1,16,7]]}
[]
[null,{"$f":"B9","v":"2018-02-11"}]
[]
[null,{"$f":"NädalaAlgus","v":"PÜHAPÄEV"},{"$f":"UPPER(TEXT(C5,\"dddd\"))","v":"ESMASPÄEV"},"TEISIPÄEV","KOLMAPÄEV","NELJAPÄEV","REEDE","LAUPÄEV"]
[null,{"$f":"Päevad+DATE(Kalendriaasta,2,1)-WEEKDAY(DATE(Kalendriaasta,2,1),(NädalaAlgus=\"Esmaspäev\")+1)+1","v":"2018-01-28"},"2018-01-29","2018-01-30","2018-01-31","2018-02-01","2018-02-02","2018-02-03"]
[null,{"$f":"IFERROR(IF(KuvaPühad,IF(INDEX(tblPühad[],MATCH(DATE(Kalendriaasta-(DAY(B5)>15)+(ROW()>6),MONTH(B5),DAY(B5)),IF(KuvaTähistamine,tblPühad[PARANDATUD],tblPühad[PÄEV]),0),6),INDEX(tblPühad[],MATCH(DATE(Kalendriaasta-(DAY(B5)>15)+(ROW()>6),MONTH(B5),DAY(B5)),IF(KuvaTähistamine,tblPühad[PARANDATUD],tblPühad[PÄEV]),0),2),\"\"),\"\"),\"\")","v":""},{"$f":"IFERROR(IF(KuvaPühad,IF(INDEX(tblPühad[],MATCH(DATE(Kalendriaasta-(DAY(C5)>15)+(ROW()>6),MONTH(C5),DAY(C5)),IF(KuvaTähistamine,tblPühad[PARANDATUD],tblPühad[PÄEV]),0),6),INDEX(tblPühad[],MATCH(DATE(Kalendriaasta-(DAY(C5)>15)+(ROW()>6),MONTH(C5),DAY(C5)),IF(KuvaTähistamine,tblPühad[PARANDATUD],tblPühad[PÄEV]),0),2),\"\"),\"\"),\"\")","v":""},{"$f":"IFERROR(IF(KuvaPühad,IF(INDEX(tblPühad[],MATCH(DATE(Kalendriaasta-(DAY(D5)>15)+(ROW()>6),MONTH(D5),DAY(D5)),IF(KuvaTähistamine,tblPühad[PARANDATUD],tblPühad[PÄEV]),0),6),INDEX(tblPühad[],MATCH(DATE(Kalendriaasta-(DAY(D5)>15)+(ROW()>6),MONTH(D5),DAY(D5)),IF(KuvaTähistamine,tblPühad[PARANDATUD],tblPühad[PÄEV]),0),2),\"\"),\"\"),\"\")","v":""},{"$f":"IFERROR(IF(KuvaPühad,IF(INDEX(tblPühad[],MATCH(DATE(Kalendriaasta-(DAY(E5)>15)+(ROW()>6),MONTH(E5),DAY(E5)),IF(KuvaTähistamine,tblPühad[PARANDATUD],tblPühad[PÄEV]),0),6),INDEX(tblPühad[],MATCH(DATE(Kalendriaasta-(DAY(E5)>15)+(ROW()>6),MONTH(E5),DAY(E5)),IF(KuvaTähistamine,tblPühad[PARANDATUD],tblPühad[PÄEV]),0),2),\"\"),\"\"),\"\")","v":""},{"$f":"IFERROR(IF(KuvaPühad,IF(INDEX(tblPühad[],MATCH(DATE(Kalendriaasta-(DAY(F5)>15)+(ROW()>6),MONTH(F5),DAY(F5)),IF(KuvaTähistamine,tblPühad[PARANDATUD],tblPühad[PÄEV]),0),6),INDEX(tblPühad[],MATCH(DATE(Kalendriaasta-(DAY(F5)>15)+(ROW()>6),MONTH(F5),DAY(F5)),IF(KuvaTähistamine,tblPühad[PARANDATUD],tblPühad[PÄEV]),0),2),\"\"),\"\"),\"\")","v":""},{"$f":"IFERROR(IF(KuvaPühad,IF(INDEX(tblPühad[],MATCH(DATE(Kalendriaasta-(DAY(G5)>15)+(ROW()>6),MONTH(G5),DAY(G5)),IF(KuvaTähistamine,tblPühad[PARANDATUD],tblPühad[PÄEV]),0),6),INDEX(tblPühad[],MATCH(DATE(Kalendriaasta-(DAY(G5)>15)+(ROW()>6),MONTH(G5),DAY(G5)),IF(KuvaTähistamine,tblPühad[PARANDATUD],tblPühad[PÄEV]),0),2),\"\"),\"\"),\"\")","v":""},{"$f":"IFERROR(IF(KuvaPühad,IF(INDEX(tblPühad[],MATCH(DATE(Kalendriaasta-(DAY(H5)>15)+(ROW()>6),MONTH(H5),DAY(H5)),IF(KuvaTähistamine,tblPühad[PARANDATUD],tblPühad[PÄEV]),0),6),INDEX(tblPühad[],MATCH(DATE(Kalendriaasta-(DAY(H5)>15)+(ROW()>6),MONTH(H5),DAY(H5)),IF(KuvaTähistamine,tblPühad[PARANDATUD],tblPühad[PÄEV]),0),2),\"\"),\"\"),\"\")","v":""}]
[null,{"$f":"Päevad+DATE(Kalendriaasta,2,1)-WEEKDAY(DATE(Kalendriaasta,2,1),(NädalaAlgus=\"Esmaspäev\")+1)+8","v":"2018-02-04"},"2018-02-05","2018-02-06","2018-02-07","2018-02-08","2018-02-09","2018-02-10"]
[null,{"$f":"IFERROR(IF(KuvaPühad,IF(INDEX(tblPühad[],MATCH(DATE(Kalendriaasta,MONTH(B7),DAY(B7)),IF(KuvaTähistamine,tblPühad[PARANDATUD],tblPühad[PÄEV]),0),6),INDEX(tblPühad[],MATCH(DATE(Kalendriaasta,MONTH(B7),DAY(B7)),IF(KuvaTähistamine,tblPühad[PARANDATUD],tblPühad[PÄEV]),0),2),\"\"),\"\"),\"\")","v":""},{"$f":"IFERROR(IF(KuvaPühad,IF(INDEX(tblPühad[],MATCH(DATE(Kalendriaasta,MONTH(C7),DAY(C7)),IF(KuvaTähistamine,tblPühad[PARANDATUD],tblPühad[PÄEV]),0),6),INDEX(tblPühad[],MATCH(DATE(Kalendriaasta,MONTH(C7),DAY(C7)),IF(KuvaTähistamine,tblPühad[PARANDATUD],tblPühad[PÄEV]),0),2),\"\"),\"\"),\"\")","v":""},{"$f":"IFERROR(IF(KuvaPühad,IF(INDEX(tblPühad[],MATCH(DATE(Kalendriaasta,MONTH(D7),DAY(D7)),IF(KuvaTähistamine,tblPühad[PARANDATUD],tblPühad[PÄEV]),0),6),INDEX(tblPühad[],MATCH(DATE(Kalendriaasta,MONTH(D7),DAY(D7)),IF(KuvaTähistamine,tblPühad[PARANDATUD],tblPühad[PÄEV]),0),2),\"\"),\"\"),\"\")","v":""},{"$f":"IFERROR(IF(KuvaPühad,IF(INDEX(tblPühad[],MATCH(DATE(Kalendriaasta,MONTH(E7),DAY(E7)),IF(KuvaTähistamine,tblPühad[PARANDATUD],tblPühad[PÄEV]),0),6),INDEX(tblPühad[],MATCH(DATE(Kalendriaasta,MONTH(E7),DAY(E7)),IF(KuvaTähistamine,tblPühad[PARANDATUD],tblPühad[PÄEV]),0),2),\"\"),\"\"),\"\")","v":""},{"$f":"IFERROR(IF(KuvaPühad,IF(INDEX(tblPühad[],MATCH(DATE(Kalendriaasta,MONTH(F7),DAY(F7)),IF(KuvaTähistamine,tblPühad[PARANDATUD],tblPühad[PÄEV]),0),6),INDEX(tblPühad[],MATCH(DATE(Kalendriaasta,MONTH(F7),DAY(F7)),IF(KuvaTähistamine,tblPühad[PARANDATUD],tblPühad[PÄEV]),0),2),\"\"),\"\"),\"\")","v":""},{"$f":"IFERROR(IF(KuvaPühad,IF(INDEX(tblPühad[],MATCH(DATE(Kalendriaasta,MONTH(G7),DAY(G7)),IF(KuvaTähistamine,tblPühad[PARANDATUD],tblPühad[PÄEV]),0),6),INDEX(tblPühad[],MATCH(DATE(Kalendriaasta,MONTH(G7),DAY(G7)),IF(KuvaTähistamine,tblPühad[PARANDATUD],tblPühad[PÄEV]),0),2),\"\"),\"\"),\"\")","v":""},{"$f":"IFERROR(IF(KuvaPühad,IF(INDEX(tblPühad[],MATCH(DATE(Kalendriaasta,MONTH(H7),DAY(H7)),IF(KuvaTähistamine,tblPühad[PARANDATUD],tblPühad[PÄEV]),0),6),INDEX(tblPühad[],MATCH(DATE(Kalendriaasta,MONTH(H7),DAY(H7)),IF(KuvaTähistamine,tblPühad[PARANDATUD],tblPühad[PÄEV]),0),2),\"\"),\"\"),\"\")","v":""}]
[null,{"$f":"Päevad+DATE(Kalendriaasta,2,1)-WEEKDAY(DATE(Kalendriaasta,2,1),(NädalaAlgus=\"Esmaspäev\")+1)+15","v":"2018-02-11"},"2018-02-12","2018-02-13","2018-02-14","2018-02-15","2018-02-16","2018-02-17"]
[null,{"$f":"IFERROR(IF(KuvaPühad,IF(INDEX(tblPühad[],MATCH(DATE(Kalendriaasta,MONTH(B9),DAY(B9)),IF(KuvaTähistamine,tblPühad[PARANDATUD],tblPühad[PÄEV]),0),6),INDEX(tblPühad[],MATCH(DATE(Kalendriaasta,MONTH(B9),DAY(B9)),IF(KuvaTähistamine,tblPühad[PARANDATUD],tblPühad[PÄEV]),0),2),\"\"),\"\"),\"\")","v":""},{"$f":"IFERROR(IF(KuvaPühad,IF(INDEX(tblPühad[],MATCH(DATE(Kalendriaasta,MONTH(C9),DAY(C9)),IF(KuvaTähistamine,tblPühad[PARANDATUD],tblPühad[PÄEV]),0),6),INDEX(tblPühad[],MATCH(DATE(Kalendriaasta,MONTH(C9),DAY(C9)),IF(KuvaTähistamine,tblPühad[PARANDATUD],tblPühad[PÄEV]),0),2),\"\"),\"\"),\"\")","v":""},{"$f":"IFERROR(IF(KuvaPühad,IF(INDEX(tblPühad[],MATCH(DATE(Kalendriaasta,MONTH(D9),DAY(D9)),IF(KuvaTähistamine,tblPühad[PARANDATUD],tblPühad[PÄEV]),0),6),INDEX(tblPühad[],MATCH(DATE(Kalendriaasta,MONTH(D9),DAY(D9)),IF(KuvaTähistamine,tblPühad[PARANDATUD],tblPühad[PÄEV]),0),2),\"\"),\"\"),\"\")","v":""},{"$f":"IFERROR(IF(KuvaPühad,IF(INDEX(tblPühad[],MATCH(DATE(Kalendriaasta,MONTH(E9),DAY(E9)),IF(KuvaTähistamine,tblPühad[PARANDATUD],tblPühad[PÄEV]),0),6),INDEX(tblPühad[],MATCH(DATE(Kalendriaasta,MONTH(E9),DAY(E9)),IF(KuvaTähistamine,tblPühad[PARANDATUD],tblPühad[PÄEV]),0),2),\"\"),\"\"),\"\")","v":""},{"$f":"IFERROR(IF(KuvaPühad,IF(INDEX(tblPühad[],MATCH(DATE(Kalendriaasta,MONTH(F9),DAY(F9)),IF(KuvaTähistamine,tblPühad[PARANDATUD],tblPühad[PÄEV]),0),6),INDEX(tblPühad[],MATCH(DATE(Kalendriaasta,MONTH(F9),DAY(F9)),IF(KuvaTähistamine,tblPühad[PARANDATUD],tblPühad[PÄEV]),0),2),\"\"),\"\"),\"\")","v":""},{"$f":"IFERROR(IF(KuvaPühad,IF(INDEX(tblPühad[],MATCH(DATE(Kalendriaasta,MONTH(G9),DAY(G9)),IF(KuvaTähistamine,tblPühad[PARANDATUD],tblPühad[PÄEV]),0),6),INDEX(tblPühad[],MATCH(DATE(Kalendriaasta,MONTH(G9),DAY(G9)),IF(KuvaTähistamine,tblPühad[PARANDATUD],tblPühad[PÄEV]),0),2),\"\"),\"\"),\"\")","v":""},{"$f":"IFERROR(IF(KuvaPühad,IF(INDEX(tblPühad[],MATCH(DATE(Kalendriaasta,MONTH(H9),DAY(H9)),IF(KuvaTähistamine,tblPühad[PARANDATUD],tblPühad[PÄEV]),0),6),INDEX(tblPühad[],MATCH(DATE(Kalendriaasta,MONTH(H9),DAY(H9)),IF(KuvaTähistamine,tblPühad[PARANDATUD],tblPühad[PÄEV]),0),2),\"\"),\"\"),\"\")","v":""}]
[null,{"$f":"Päevad+DATE(Kalendriaasta,2,1)-WEEKDAY(DATE(Kalendriaasta,2,1),(NädalaAlgus=\"Esmaspäev\")+1)+22","v":"2018-02-18"},"2018-02-19","2018-02-20","2018-02-21","2018-02-22","2018-02-23","2018-02-24"]
[null,{"$f":"IFERROR(IF(KuvaPühad,IF(INDEX(tblPühad[],MATCH(DATE(Kalendriaasta,MONTH(B11),DAY(B11)),IF(KuvaTähistamine,tblPühad[PARANDATUD],tblPühad[PÄEV]),0),6),INDEX(tblPühad[],MATCH(DATE(Kalendriaasta,MONTH(B11),DAY(B11)),IF(KuvaTähistamine,tblPühad[PARANDATUD],tblPühad[PÄEV]),0),2),\"\"),\"\"),\"\")","v":""},{"$f":"IFERROR(IF(KuvaPühad,IF(INDEX(tblPühad[],MATCH(DATE(Kalendriaasta,MONTH(C11),DAY(C11)),IF(KuvaTähistamine,tblPühad[PARANDATUD],tblPühad[PÄEV]),0),6),INDEX(tblPühad[],MATCH(DATE(Kalendriaasta,MONTH(C11),DAY(C11)),IF(KuvaTähistamine,tblPühad[PARANDATUD],tblPühad[PÄEV]),0),2),\"\"),\"\"),\"\")","v":"Iseseisvuspäev"},{"$f":"IFERROR(IF(KuvaPühad,IF(INDEX(tblPühad[],MATCH(DATE(Kalendriaasta,MONTH(D11),DAY(D11)),IF(KuvaTähistamine,tblPühad[PARANDATUD],tblPühad[PÄEV]),0),6),INDEX(tblPühad[],MATCH(DATE(Kalendriaasta,MONTH(D11),DAY(D11)),IF(KuvaTähistamine,tblPühad[PARANDATUD],tblPühad[PÄEV]),0),2),\"\"),\"\"),\"\")","v":""},{"$f":"IFERROR(IF(KuvaPühad,IF(INDEX(tblPühad[],MATCH(DATE(Kalendriaasta,MONTH(E11),DAY(E11)),IF(KuvaTähistamine,tblPühad[PARANDATUD],tblPühad[PÄEV]),0),6),INDEX(tblPühad[],MATCH(DATE(Kalendriaasta,MONTH(E11),DAY(E11)),IF(KuvaTähistamine,tblPühad[PARANDATUD],tblPühad[PÄEV]),0),2),\"\"),\"\"),\"\")","v":""},{"$f":"IFERROR(IF(KuvaPühad,IF(INDEX(tblPühad[],MATCH(DATE(Kalendriaasta,MONTH(F11),DAY(F11)),IF(KuvaTähistamine,tblPühad[PARANDATUD],tblPühad[PÄEV]),0),6),INDEX(tblPühad[],MATCH(DATE(Kalendriaasta,MONTH(F11),DAY(F11)),IF(KuvaTähistamine,tblPühad[PARANDATUD],tblPühad[PÄEV]),0),2),\"\"),\"\"),\"\")","v":""},{"$f":"IFERROR(IF(KuvaPühad,IF(INDEX(tblPühad[],MATCH(DATE(Kalendriaasta,MONTH(G11),DAY(G11)),IF(KuvaTähistamine,tblPühad[PARANDATUD],tblPühad[PÄEV]),0),6),INDEX(tblPühad[],MATCH(DATE(Kalendriaasta,MONTH(G11),DAY(G11)),IF(KuvaTähistamine,tblPühad[PARANDATUD],tblPühad[PÄEV]),0),2),\"\"),\"\"),\"\")","v":""},{"$f":"IFERROR(IF(KuvaPühad,IF(INDEX(tblPühad[],MATCH(DATE(Kalendriaasta,MONTH(H11),DAY(H11)),IF(KuvaTähistamine,tblPühad[PARANDATUD],tblPühad[PÄEV]),0),6),INDEX(tblPühad[],MATCH(DATE(Kalendriaasta,MONTH(H11),DAY(H11)),IF(KuvaTähistamine,tblPühad[PARANDATUD],tblPühad[PÄEV]),0),2),\"\"),\"\"),\"\")","v":""}]
[null,{"$f":"Päevad+DATE(Kalendriaasta,2,1)-WEEKDAY(DATE(Kalendriaasta,2,1),(NädalaAlgus=\"Esmaspäev\")+1)+29","v":"2018-02-25"},"2018-02-26","2018-02-27","2018-02-28","2018-03-01","2018-03-02","2018-03-03"]
[null,{"$f":"IFERROR(IF(KuvaPühad,IF(INDEX(tblPühad[],MATCH(DATE(Kalendriaasta,MONTH(B13),DAY(B13)),IF(KuvaTähistamine,tblPühad[PARANDATUD],tblPühad[PÄEV]),0),6),INDEX(tblPühad[],MATCH(DATE(Kalendriaasta,MONTH(B13),DAY(B13)),IF(KuvaTähistamine,tblPühad[PARANDATUD],tblPühad[PÄEV]),0),2),\"\"),\"\"),\"\")","v":""},{"$f":"IFERROR(IF(KuvaPühad,IF(INDEX(tblPühad[],MATCH(DATE(Kalendriaasta,MONTH(C13),DAY(C13)),IF(KuvaTähistamine,tblPühad[PARANDATUD],tblPühad[PÄEV]),0),6),INDEX(tblPühad[],MATCH(DATE(Kalendriaasta,MONTH(C13),DAY(C13)),IF(KuvaTähistamine,tblPühad[PARANDATUD],tblPühad[PÄEV]),0),2),\"\"),\"\"),\"\")","v":""},{"$f":"IFERROR(IF(KuvaPühad,IF(INDEX(tblPühad[],MATCH(DATE(Kalendriaasta,MONTH(D13),DAY(D13)),IF(KuvaTähistamine,tblPühad[PARANDATUD],tblPühad[PÄEV]),0),6),INDEX(tblPühad[],MATCH(DATE(Kalendriaasta,MONTH(D13),DAY(D13)),IF(KuvaTähistamine,tblPühad[PARANDATUD],tblPühad[PÄEV]),0),2),\"\"),\"\"),\"\")","v":""},{"$f":"IFERROR(IF(KuvaPühad,IF(INDEX(tblPühad[],MATCH(DATE(Kalendriaasta,MONTH(E13),DAY(E13)),IF(KuvaTähistamine,tblPühad[PARANDATUD],tblPühad[PÄEV]),0),6),INDEX(tblPühad[],MATCH(DATE(Kalendriaasta,MONTH(E13),DAY(E13)),IF(KuvaTähistamine,tblPühad[PARANDATUD],tblPühad[PÄEV]),0),2),\"\"),\"\"),\"\")","v":""},{"$f":"IFERROR(IF(KuvaPühad,IF(INDEX(tblPühad[],MATCH(DATE(Kalendriaasta,MONTH(F13),DAY(F13)),IF(KuvaTähistamine,tblPühad[PARANDATUD],tblPühad[PÄEV]),0),6),INDEX(tblPühad[],MATCH(DATE(Kalendriaasta,MONTH(F13),DAY(F13)),IF(KuvaTähistamine,tblPühad[PARANDATUD],tblPühad[PÄEV]),0),2),\"\"),\"\"),\"\")","v":""},{"$f":"IFERROR(IF(KuvaPühad,IF(INDEX(tblPühad[],MATCH(DATE(Kalendriaasta,MONTH(G13),DAY(G13)),IF(KuvaTähistamine,tblPühad[PARANDATUD],tblPühad[PÄEV]),0),6),INDEX(tblPühad[],MATCH(DATE(Kalendriaasta,MONTH(G13),DAY(G13)),IF(KuvaTähistamine,tblPühad[PARANDATUD],tblPühad[PÄEV]),0),2),\"\"),\"\"),\"\")","v":""},{"$f":"IFERROR(IF(KuvaPühad,IF(INDEX(tblPühad[],MATCH(DATE(Kalendriaasta,MONTH(H13),DAY(H13)),IF(KuvaTähistamine,tblPühad[PARANDATUD],tblPühad[PÄEV]),0),6),INDEX(tblPühad[],MATCH(DATE(Kalendriaasta,MONTH(H13),DAY(H13)),IF(KuvaTähistamine,tblPühad[PARANDATUD],tblPühad[PÄEV]),0),2),\"\"),\"\"),\"\")","v":""}]
[null,{"$f":"Päevad+DATE(Kalendriaasta,2,1)-WEEKDAY(DATE(Kalendriaasta,2,1),(NädalaAlgus=\"Esmaspäev\")+1)+36","v":"2018-03-04"},"2018-03-05","MÄRKMED"]
[null,{"$f":"IFERROR(IF(KuvaPühad,IF(INDEX(tblPühad[],MATCH(DATE(Kalendriaasta,MONTH(B15),DAY(B15)),IF(KuvaTähistamine,tblPühad[PARANDATUD],tblPühad[PÄEV]),0),6),INDEX(tblPühad[],MATCH(DATE(Kalendriaasta,MONTH(B15),DAY(B15)),IF(KuvaTähistamine,tblPühad[PARANDATUD],tblPühad[PÄEV]),0),2),\"\"),\"\"),\"\")","v":""},{"$f":"IFERROR(IF(KuvaPühad,IF(INDEX(tblPühad[],MATCH(DATE(Kalendriaasta,MONTH(C15),DAY(C15)),IF(KuvaTähistamine,tblPühad[PARANDATUD],tblPühad[PÄEV]),0),6),INDEX(tblPühad[],MATCH(DATE(Kalendriaasta,MONTH(C15),DAY(C15)),IF(KuvaTähistamine,tblPühad[PARANDATUD],tblPühad[PÄEV]),0),2),\"\"),\"\"),\"\")","v":""}]

{"sheet":"Märts","index":3,"n_rows":16,"n_cols":8,"rows_kept":16,"merged":[[1,1,1,3],[14,3,14,7],[15,3,15,7],[16,1,16,7]]}
[]
[null,{"$f":"B9","v":"2018-03-11"}]
[]
[null,{"$f":"NädalaAlgus","v":"PÜHAPÄEV"},{"$f":"UPPER(TEXT(C5,\"dddd\"))","v":"ESMASPÄEV"},"TEISIPÄEV","KOLMAPÄEV","NELJAPÄEV","REEDE","LAUPÄEV"]
[null,{"$f":"Päevad+DATE(Kalendriaasta,3,1)-WEEKDAY(DATE(Kalendriaasta,3,1),(NädalaAlgus=\"Esmaspäev\")+1)+1","v":"2018-02-25"},"2018-02-26","2018-02-27","2018-02-28","2018-03-01","2018-03-02","2018-03-03"]
[null,{"$f":"IFERROR(IF(KuvaPühad,IF(INDEX(tblPühad[],MATCH(DATE(Kalendriaasta-(DAY(B5)>15)+(ROW()>6),MONTH(B5),DAY(B5)),IF(KuvaTähistamine,tblPühad[PARANDATUD],tblPühad[PÄEV]),0),6),INDEX(tblPühad[],MATCH(DATE(Kalendriaasta-(DAY(B5)>15)+(ROW()>6),MONTH(B5),DAY(B5)),IF(KuvaTähistamine,tblPühad[PARANDATUD],tblPühad[PÄEV]),0),2),\"\"),\"\"),\"\")","v":""},{"$f":"IFERROR(IF(KuvaPühad,IF(INDEX(tblPühad[],MATCH(DATE(Kalendriaasta-(DAY(C5)>15)+(ROW()>6),MONTH(C5),DAY(C5)),IF(KuvaTähistamine,tblPühad[PARANDATUD],tblPühad[PÄEV]),0),6),INDEX(tblPühad[],MATCH(DATE(Kalendriaasta-(DAY(C5)>15)+(ROW()>6),MONTH(C5),DAY(C5)),IF(KuvaTähistamine,tblPühad[PARANDATUD],tblPühad[PÄEV]),0),2),\"\"),\"\"),\"\")","v":""},{"$f":"IFERROR(IF(KuvaPühad,IF(INDEX(tblPühad[],MATCH(DATE(Kalendriaasta-(DAY(D5)>15)+(ROW()>6),MONTH(D5),DAY(D5)),IF(KuvaTähistamine,tblPühad[PARANDATUD],tblPühad[PÄEV]),0),6),INDEX(tblPühad[],MATCH(DATE(Kalendriaasta-(DAY(D5)>15)+(ROW()>6),MONTH(D5),DAY(D5)),IF(KuvaTähistamine,tblPühad[PARANDATUD],tblPühad[PÄEV]),0),2),\"\"),\"\"),\"\")","v":""},{"$f":"IFERROR(IF(KuvaPühad,IF(INDEX(tblPühad[],MATCH(DATE(Kalendriaasta-(DAY(E5)>15)+(ROW()>6),MONTH(E5),DAY(E5)),IF(KuvaTähistamine,tblPühad[PARANDATUD],tblPühad[PÄEV]),0),6),INDEX(tblPühad[],MATCH(DATE(Kalendriaasta-(DAY(E5)>15)+(ROW()>6),MONTH(E5),DAY(E5)),IF(KuvaTähistamine,tblPühad[PARANDATUD],tblPühad[PÄEV]),0),2),\"\"),\"\"),\"\")","v":""},{"$f":"IFERROR(IF(KuvaPühad,IF(INDEX(tblPühad[],MATCH(DATE(Kalendriaasta-(DAY(F5)>15)+(ROW()>6),MONTH(F5),DAY(F5)),IF(KuvaTähistamine,tblPühad[PARANDATUD],tblPühad[PÄEV]),0),6),INDEX(tblPühad[],MATCH(DATE(Kalendriaasta-(DAY(F5)>15)+(ROW()>6),MONTH(F5),DAY(F5)),IF(KuvaTähistamine,tblPühad[PARANDATUD],tblPühad[PÄEV]),0),2),\"\"),\"\"),\"\")","v":""},{"$f":"IFERROR(IF(KuvaPühad,IF(INDEX(tblPühad[],MATCH(DATE(Kalendriaasta-(DAY(G5)>15)+(ROW()>6),MONTH(G5),DAY(G5)),IF(KuvaTähistamine,tblPühad[PARANDATUD],tblPühad[PÄEV]),0),6),INDEX(tblPühad[],MATCH(DATE(Kalendriaasta-(DAY(G5)>15)+(ROW()>6),MONTH(G5),DAY(G5)),IF(KuvaTähistamine,tblPühad[PARANDATUD],tblPühad[PÄEV]),0),2),\"\"),\"\"),\"\")","v":""},{"$f":"IFERROR(IF(KuvaPühad,IF(INDEX(tblPühad[],MATCH(DATE(Kalendriaasta-(DAY(H5)>15)+(ROW()>6),MONTH(H5),DAY(H5)),IF(KuvaTähistamine,tblPühad[PARANDATUD],tblPühad[PÄEV]),0),6),INDEX(tblPühad[],MATCH(DATE(Kalendriaasta-(DAY(H5)>15)+(ROW()>6),MONTH(H5),DAY(H5)),IF(KuvaTähistamine,tblPühad[PARANDATUD],tblPühad[PÄEV]),0),2),\"\"),\"\"),\"\")","v":""}]
[null,{"$f":"Päevad+DATE(Kalendriaasta,3,1)-WEEKDAY(DATE(Kalendriaasta,3,1),(NädalaAlgus=\"Esmaspäev\")+1)+8","v":"2018-03-04"},"2018-03-05","2018-03-06","2018-03-07","2018-03-08","2018-03-09","2018-03-10"]
[null,{"$f":"IFERROR(IF(KuvaPühad,IF(INDEX(tblPühad[],MATCH(DATE(Kalendriaasta,MONTH(B7),DAY(B7)),IF(KuvaTähistamine,tblPühad[PARANDATUD],tblPühad[PÄEV]),0),6),INDEX(tblPühad[],MATCH(DATE(Kalendriaasta,MONTH(B7),DAY(B7)),IF(KuvaTähistamine,tblPühad[PARANDATUD],tblPühad[PÄEV]),0),2),\"\"),\"\"),\"\")","v":""},{"$f":"IFERROR(IF(KuvaPühad,IF(INDEX(tblPühad[],MATCH(DATE(Kalendriaasta,MONTH(C7),DAY(C7)),IF(KuvaTähistamine,tblPühad[PARANDATUD],tblPühad[PÄEV]),0),6),INDEX(tblPühad[],MATCH(DATE(Kalendriaasta,MONTH(C7),DAY(C7)),IF(KuvaTähistamine,tblPühad[PARANDATUD],tblPühad[PÄEV]),0),2),\"\"),\"\"),\"\")","v":""},{"$f":"IFERROR(IF(KuvaPühad,IF(INDEX(tblPühad[],MATCH(DATE(Kalendriaasta,MONTH(D7),DAY(D7)),IF(KuvaTähistamine,tblPühad[PARANDATUD],tblPühad[PÄEV]),0),6),INDEX(tblPühad[],MATCH(DATE(Kalendriaasta,MONTH(D7),DAY(D7)),IF(KuvaTähistamine,tblPühad[PARANDATUD],tblPühad[PÄEV]),0),2),\"\"),\"\"),\"\")","v":""},{"$f":"IFERROR(IF(KuvaPühad,IF(INDEX(tblPühad[],MATCH(DATE(Kalendriaasta,MONTH(E7),DAY(E7)),IF(KuvaTähistamine,tblPühad[PARANDATUD],tblPühad[PÄEV]),0),6),INDEX(tblPühad[],MATCH(DATE(Kalendriaasta,MONTH(E7),DAY(E7)),IF(KuvaTähistamine,tblPühad[PARANDATUD],tblPühad[PÄEV]),0),2),\"\"),\"\"),\"\")","v":""},{"$f":"IFERROR(IF(KuvaPühad,IF(INDEX(tblPühad[],MATCH(DATE(Kalendriaasta,MONTH(F7),DAY(F7)),IF(KuvaTähistamine,tblPühad[PARANDATUD],tblPühad[PÄEV]),0),6),INDEX(tblPühad[],MATCH(DATE(Kalendriaasta,MONTH(F7),DAY(F7)),IF(KuvaTähistamine,tblPühad[PARANDATUD],tblPühad[PÄEV]),0),2),\"\"),\"\"),\"\")","v":""},{"$f":"IFERROR(IF(KuvaPühad,IF(INDEX(tblPühad[],MATCH(DATE(Kalendriaasta,MONTH(G7),DAY(G7)),IF(KuvaTähistamine,tblPühad[PARANDATUD],tblPühad[PÄEV]),0),6),INDEX(tblPühad[],MATCH(DATE(Kalendriaasta,MONTH(G7),DAY(G7)),IF(KuvaTähistamine,tblPühad[PARANDATUD],tblPühad[PÄEV]),0),2),\"\"),\"\"),\"\")","v":""},{"$f":"IFERROR(IF(KuvaPühad,IF(INDEX(tblPühad[],MATCH(DATE(Kalendriaasta,MONTH(H7),DAY(H7)),IF(KuvaTähistamine,tblPühad[PARANDATUD],tblPühad[PÄEV]),0),6),INDEX(tblPühad[],MATCH(DATE(Kalendriaasta,MONTH(H7),DAY(H7)),IF(KuvaTähistamine,tblPühad[PARANDATUD],tblPühad[PÄEV]),0),2),\"\"),\"\"),\"\")","v":""}]
[null,{"$f":"Päevad+DATE(Kalendriaasta,3,1)-WEEKDAY(DATE(Kalendriaasta,3,1),(NädalaAlgus=\"Esmaspäev\")+1)+15","v":"2018-03-11"},"2018-03-12","2018-03-13","2018-03-14","2018-03-15","2018-03-16","2018-03-17"]
[null,{"$f":"IFERROR(IF(KuvaPühad,IF(INDEX(tblPühad[],MATCH(DATE(Kalendriaasta,MONTH(B9),DAY(B9)),IF(KuvaTähistamine,tblPühad[PARANDATUD],tblPühad[PÄEV]),0),6),INDEX(tblPühad[],MATCH(DATE(Kalendriaasta,MONTH(B9),DAY(B9)),IF(KuvaTähistamine,tblPühad[PARANDATUD],tblPühad[PÄEV]),0),2),\"\"),\"\"),\"\")","v":""},{"$f":"IFERROR(IF(KuvaPühad,IF(INDEX(tblPühad[],MATCH(DATE(Kalendriaasta,MONTH(C9),DAY(C9)),IF(KuvaTähistamine,tblPühad[PARANDATUD],tblPühad[PÄEV]),0),6),INDEX(tblPühad[],MATCH(DATE(Kalendriaasta,MONTH(C9),DAY(C9)),IF(KuvaTähistamine,tblPühad[PARANDATUD],tblPühad[PÄEV]),0),2),\"\"),\"\"),\"\")","v":""},{"$f":"IFERROR(IF(KuvaPühad,IF(INDEX(tblPühad[],MATCH(DATE(Kalendriaasta,MONTH(D9),DAY(D9)),IF(KuvaTähistamine,tblPühad[PARANDATUD],tblPühad[PÄEV]),0),6),INDEX(tblPühad[],MATCH(DATE(Kalendriaasta,MONTH(D9),DAY(D9)),IF(KuvaTähistamine,tblPühad[PARANDATUD],tblPühad[PÄEV]),0),2),\"\"),\"\"),\"\")","v":""},{"$f":"IFERROR(IF(KuvaPühad,IF(INDEX(tblPühad[],MATCH(DATE(Kalendriaasta,MONTH(E9),DAY(E9)),IF(KuvaTähistamine,tblPühad[PARANDATUD],tblPühad[PÄEV]),0),6),INDEX(tblPühad[],MATCH(DATE(Kalendriaasta,MONTH(E9),DAY(E9)),IF(KuvaTähistamine,tblPühad[PARANDATUD],tblPühad[PÄEV]),0),2),\"\"),\"\"),\"\")","v":""},{"$f":"IFERROR(IF(KuvaPühad,IF(INDEX(tblPühad[],MATCH(DATE(Kalendriaasta,MONTH(F9),DAY(F9)),IF(KuvaTähistamine,tblPühad[PARANDATUD],tblPühad[PÄEV]),0),6),INDEX(tblPühad[],MATCH(DATE(Kalendriaasta,MONTH(F9),DAY(F9)),IF(KuvaTähistamine,tblPühad[PARANDATUD],tblPühad[PÄEV]),0),2),\"\"),\"\"),\"\")","v":""},{"$f":"IFERROR(IF(KuvaPühad,IF(INDEX(tblPühad[],MATCH(DATE(Kalendriaasta,MONTH(G9),DAY(G9)),IF(KuvaTähistamine,tblPühad[PARANDATUD],tblPühad[PÄEV]),0),6),INDEX(tblPühad[],MATCH(DATE(Kalendriaasta,MONTH(G9),DAY(G9)),IF(KuvaTähistamine,tblPühad[PARANDATUD],tblPühad[PÄEV]),0),2),\"\"),\"\"),\"\")","v":""},{"$f":"IFERROR(IF(KuvaPühad,IF(INDEX(tblPühad[],MATCH(DATE(Kalendriaasta,MONTH(H9),DAY(H9)),IF(KuvaTähistamine,tblPühad[PARANDATUD],tblPühad[PÄEV]),0),6),INDEX(tblPühad[],MATCH(DATE(Kalendriaasta,MONTH(H9),DAY(H9)),IF(KuvaTähistamine,tblPühad[PARANDATUD],tblPühad[PÄEV]),0),2),\"\"),\"\"),\"\")","v":""}]
[null,{"$f":"Päevad+DATE(Kalendriaasta,3,1)-WEEKDAY(DATE(Kalendriaasta,3,1),(NädalaAlgus=\"Esmaspäev\")+1)+22","v":"2018-03-18"},"2018-03-19","2018-03-20","2018-03-21","2018-03-22","2018-03-23","2018-03-24"]
[null,{"$f":"IFERROR(IF(KuvaPühad,IF(INDEX(tblPühad[],MATCH(DATE(Kalendriaasta,MONTH(B11),DAY(B11)),IF(KuvaTähistamine,tblPühad[PARANDATUD],tblPühad[PÄEV]),0),6),INDEX(tblPühad[],MATCH(DATE(Kalendriaasta,MONTH(B11),DAY(B11)),IF(KuvaTähistamine,tblPühad[PARANDATUD],tblPühad[PÄEV]),0),2),\"\"),\"\"),\"\")","v":""},{"$f":"IFERROR(IF(KuvaPühad,IF(INDEX(tblPühad[],MATCH(DATE(Kalendriaasta,MONTH(C11),DAY(C11)),IF(KuvaTähistamine,tblPühad[PARANDATUD],tblPühad[PÄEV]),0),6),INDEX(tblPühad[],MATCH(DATE(Kalendriaasta,MONTH(C11),DAY(C11)),IF(KuvaTähistamine,tblPühad[PARANDATUD],tblPühad[PÄEV]),0),2),\"\"),\"\"),\"\")","v":""},{"$f":"IFERROR(IF(KuvaPühad,IF(INDEX(tblPühad[],MATCH(DATE(Kalendriaasta,MONTH(D11),DAY(D11)),IF(KuvaTähistamine,tblPühad[PARANDATUD],tblPühad[PÄEV]),0),6),INDEX(tblPühad[],MATCH(DATE(Kalendriaasta,MONTH(D11),DAY(D11)),IF(KuvaTähistamine,tblPühad[PARANDATUD],tblPühad[PÄEV]),0),2),\"\"),\"\"),\"\")","v":""},{"$f":"IFERROR(IF(KuvaPühad,IF(INDEX(tblPühad[],MATCH(DATE(Kalendriaasta,MONTH(E11),DAY(E11)),IF(KuvaTähistamine,tblPühad[PARANDATUD],tblPühad[PÄEV]),0),6),INDEX(tblPühad[],MATCH(DATE(Kalendriaasta,MONTH(E11),DAY(E11)),IF(KuvaTähistamine,tblPühad[PARANDATUD],tblPühad[PÄEV]),0),2),\"\"),\"\"),\"\")","v":""},{"$f":"IFERROR(IF(KuvaPühad,IF(INDEX(tblPühad[],MATCH(DATE(Kalendriaasta,MONTH(F11),DAY(F11)),IF(KuvaTähistamine,tblPühad[PARANDATUD],tblPühad[PÄEV]),0),6),INDEX(tblPühad[],MATCH(DATE(Kalendriaasta,MONTH(F11),DAY(F11)),IF(KuvaTähistamine,tblPühad[PARANDATUD],tblPühad[PÄEV]),0),2),\"\"),\"\"),\"\")","v":""},{"$f":"IFERROR(IF(KuvaPühad,IF(INDEX(tblPühad[],MATCH(DATE(Kalendriaasta,MONTH(G11),DAY(G11)),IF(KuvaTähistamine,tblPühad[PARANDATUD],tblPühad[PÄEV]),0),6),INDEX(tblPühad[],MATCH(DATE(Kalendriaasta,MONTH(G11),DAY(G11)),IF(KuvaTähistamine,tblPühad[PARANDATUD],tblPühad[PÄEV]),0),2),\"\"),\"\"),\"\")","v":""},{"$f":"IFERROR(IF(KuvaPühad,IF(INDEX(tblPühad[],MATCH(DATE(Kalendriaasta,MONTH(H11),DAY(H11)),IF(KuvaTähistamine,tblPühad[PARANDATUD],tblPühad[PÄEV]),0),6),INDEX(tblPühad[],MATCH(DATE(Kalendriaasta,MONTH(H11),DAY(H11)),IF(KuvaTähistamine,tblPühad[PARANDATUD],tblPühad[PÄEV]),0),2),\"\"),\"\"),\"\")","v":""}]
[null,{"$f":"Päevad+DATE(Kalendriaasta,3,1)-WEEKDAY(DATE(Kalendriaasta,3,1),(NädalaAlgus=\"Esmaspäev\")+1)+29","v":"2018-03-25"},"2018-03-26","2018-03-27","2018-03-28","2018-03-29","2018-03-30","2018-03-31"]
[null,{"$f":"IFERROR(IF(KuvaPühad,IF(INDEX(tblPühad[],MATCH(DATE(Kalendriaasta,MONTH(B13),DAY(B13)),IF(KuvaTähistamine,tblPühad[PARANDATUD],tblPühad[PÄEV]),0),6),INDEX(tblPühad[],MATCH(DATE(Kalendriaasta,MONTH(B13),DAY(B13)),IF(KuvaTähistamine,tblPühad[PARANDATUD],tblPühad[PÄEV]),0),2),\"\"),\"\"),\"\")","v":""},{"$f":"IFERROR(IF(KuvaPühad,IF(INDEX(tblPühad[],MATCH(DATE(Kalendriaasta,MONTH(C13),DAY(C13)),IF(KuvaTähistamine,tblPühad[PARANDATUD],tblPühad[PÄEV]),0),6),INDEX(tblPühad[],MATCH(DATE(Kalendriaasta,MONTH(C13),DAY(C13)),IF(KuvaTähistamine,tblPühad[PARANDATUD],tblPühad[PÄEV]),0),2),\"\"),\"\"),\"\")","v":""},{"$f":"IFERROR(IF(KuvaPühad,IF(INDEX(tblPühad[],MATCH(DATE(Kalendriaasta,MONTH(D13),DAY(D13)),IF(KuvaTähistamine,tblPühad[PARANDATUD],tblPühad[PÄEV]),0),6),INDEX(tblPühad[],MATCH(DATE(Kalendriaasta,MONTH(D13),DAY(D13)),IF(KuvaTähistamine,tblPühad[PARANDATUD],tblPühad[PÄEV]),0),2),\"\"),\"\"),\"\")","v":""},{"$f":"IFERROR(IF(KuvaPühad,IF(INDEX(tblPühad[],MATCH(DATE(Kalendriaasta,MONTH(E13),DAY(E13)),IF(KuvaTähistamine,tblPühad[PARANDATUD],tblPühad[PÄEV]),0),6),INDEX(tblPühad[],MATCH(DATE(Kalendriaasta,MONTH(E13),DAY(E13)),IF(KuvaTähistamine,tblPühad[PARANDATUD],tblPühad[PÄEV]),0),2),\"\"),\"\"),\"\")","v":""},{"$f":"IFERROR(IF(KuvaPühad,IF(INDEX(tblPühad[],MATCH(DATE(Kalendriaasta,MONTH(F13),DAY(F13)),IF(KuvaTähistamine,tblPühad[PARANDATUD],tblPühad[PÄEV]),0),6),INDEX(tblPühad[],MATCH(DATE(Kalendriaasta,MONTH(F13),DAY(F13)),IF(KuvaTähistamine,tblPühad[PARANDATUD],tblPühad[PÄEV]),0),2),\"\"),\"\"),\"\")","v":""},{"$f":"IFERROR(IF(KuvaPühad,IF(INDEX(tblPühad[],MATCH(DATE(Kalendriaasta,MONTH(G13),DAY(G13)),IF(KuvaTähistamine,tblPühad[PARANDATUD],tblPühad[PÄEV]),0),6),INDEX(tblPühad[],MATCH(DATE(Kalendriaasta,MONTH(G13),DAY(G13)),IF(KuvaTähistamine,tblPühad[PARANDATUD],tblPühad[PÄEV]),0),2),\"\"),\"\"),\"\")","v":""},{"$f":"IFERROR(IF(KuvaPühad,IF(INDEX(tblPühad[],MATCH(DATE(Kalendriaasta,MONTH(H13),DAY(H13)),IF(KuvaTähistamine,tblPühad[PARANDATUD],tblPühad[PÄEV]),0),6),INDEX(tblPühad[],MATCH(DATE(Kalendriaasta,MONTH(H13),DAY(H13)),IF(KuvaTähistamine,tblPühad[PARANDATUD],tblPühad[PÄEV]),0),2),\"\"),\"\"),\"\")","v":""}]
[null,{"$f":"Päevad+DATE(Kalendriaasta,3,1)-WEEKDAY(DATE(Kalendriaasta,3,1),(NädalaAlgus=\"Esmaspäev\")+1)+36","v":"2018-04-01"},"2018-04-02","MÄRKMED"]
[null,{"$f":"IFERROR(IF(KuvaPühad,IF(INDEX(tblPühad[],MATCH(DATE(Kalendriaasta,MONTH(B15),DAY(B15)),IF(KuvaTähistamine,tblPühad[PARANDATUD],tblPühad[PÄEV]),0),6),INDEX(tblPühad[],MATCH(DATE(Kalendriaasta,MONTH(B15),DAY(B15)),IF(KuvaTähistamine,tblPühad[PARANDATUD],tblPühad[PÄEV]),0),2),\"\"),\"\"),\"\")","v":""},{"$f":"IFERROR(IF(KuvaPühad,IF(INDEX(tblPühad[],MATCH(DATE(Kalendriaasta,MONTH(C15),DAY(C15)),IF(KuvaTähistamine,tblPühad[PARANDATUD],tblPühad[PÄEV]),0),6),INDEX(tblPühad[],MATCH(DATE(Kalendriaasta,MONTH(C15),DAY(C15)),IF(KuvaTähistamine,tblPühad[PARANDATUD],tblPühad[PÄEV]),0),2),\"\"),\"\"),\"\")","v":""}]

{"sheet":"Aprill","index":4,"n_rows":16,"n_cols":8,"rows_kept":16,"merged":[[1,1,1,3],[14,3,14,7],[15,3,15,7],[16,1,16,7]]}
[]
[null,{"$f":"B9","v":"2018-04-15"}]
[]
[null,{"$f":"NädalaAlgus","v":"PÜHAPÄEV"},{"$f":"UPPER(TEXT(C5,\"dddd\"))","v":"ESMASPÄEV"},"TEISIPÄEV","KOLMAPÄEV","NELJAPÄEV","REEDE","LAUPÄEV"]
[null,{"$f":"Päevad+DATE(Kalendriaasta,4,1)-WEEKDAY(DATE(Kalendriaasta,4,1),(NädalaAlgus=\"Esmaspäev\")+1)+1","v":"2018-04-01"},"2018-04-02","2018-04-03","2018-04-04","2018-04-05","2018-04-06","2018-04-07"]
[null,{"$f":"IFERROR(IF(KuvaPühad,IF(INDEX(tblPühad[],MATCH(DATE(Kalendriaasta-(DAY(B5)>15)+(ROW()>6),MONTH(B5),DAY(B5)),IF(KuvaTähistamine,tblPühad[PARANDATUD],tblPühad[PÄEV]),0),6),INDEX(tblPühad[],MATCH(DATE(Kalendriaasta-(DAY(B5)>15)+(ROW()>6),MONTH(B5),DAY(B5)),IF(KuvaTähistamine,tblPühad[PARANDATUD],tblPühad[PÄEV]),0),2),\"\"),\"\"),\"\")","v":""},{"$f":"IFERROR(IF(KuvaPühad,IF(INDEX(tblPühad[],MATCH(DATE(Kalendriaasta-(DAY(C5)>15)+(ROW()>6),MONTH(C5),DAY(C5)),IF(KuvaTähistamine,tblPühad[PARANDATUD],tblPühad[PÄEV]),0),6),INDEX(tblPühad[],MATCH(DATE(Kalendriaasta-(DAY(C5)>15)+(ROW()>6),MONTH(C5),DAY(C5)),IF(KuvaTähistamine,tblPühad[PARANDATUD],tblPühad[PÄEV]),0),2),\"\"),\"\"),\"\")","v":""},{"$f":"IFERROR(IF(KuvaPühad,IF(INDEX(tblPühad[],MATCH(DATE(Kalendriaasta-(DAY(D5)>15)+(ROW()>6),MONTH(D5),DAY(D5)),IF(KuvaTähistamine,tblPühad[PARANDATUD],tblPühad[PÄEV]),0),6),INDEX(tblPühad[],MATCH(DATE(Kalendriaasta-(DAY(D5)>15)+(ROW()>6),MONTH(D5),DAY(D5)),IF(KuvaTähistamine,tblPühad[PARANDATUD],tblPühad[PÄEV]),0),2),\"\"),\"\"),\"\")","v":""},{"$f":"IFERROR(IF(KuvaPühad,IF(INDEX(tblPühad[],MATCH(DATE(Kalendriaasta-(DAY(E5)>15)+(ROW()>6),MONTH(E5),DAY(E5)),IF(KuvaTähistamine,tblPühad[PARANDATUD],tblPühad[PÄEV]),0),6),INDEX(tblPühad[],MATCH(DATE(Kalendriaasta-(DAY(E5)>15)+(ROW()>6),MONTH(E5),DAY(E5)),IF(KuvaTähistamine,tblPühad[PARANDATUD],tblPühad[PÄEV]),0),2),\"\"),\"\"),\"\")","v":""},{"$f":"IFERROR(IF(KuvaPühad,IF(INDEX(tblPühad[],MATCH(DATE(Kalendriaasta-(DAY(F5)>15)+(ROW()>6),MONTH(F5),DAY(F5)),IF(KuvaTähistamine,tblPühad[PARANDATUD],tblPühad[PÄEV]),0),6),INDEX(tblPühad[],MATCH(DATE(Kalendriaasta-(DAY(F5)>15)+(ROW()>6),MONTH(F5),DAY(F5)),IF(KuvaTähistamine,tblPühad[PARANDATUD],tblPühad[PÄEV]),0),2),\"\"),\"\"),\"\")","v":""},{"$f":"IFERROR(IF(KuvaPühad,IF(INDEX(tblPühad[],MATCH(DATE(Kalendriaasta-(DAY(G5)>15)+(ROW()>6),MONTH(G5),DAY(G5)),IF(KuvaTähistamine,tblPühad[PARANDATUD],tblPühad[PÄEV]),0),6),INDEX(tblPühad[],MATCH(DATE(Kalendriaasta-(DAY(G5)>15)+(ROW()>6),MONTH(G5),DAY(G5)),IF(KuvaTähistamine,tblPühad[PARANDATUD],tblPühad[PÄEV]),0),2),\"\"),\"\"),\"\")","v":""},{"$f":"IFERROR(IF(KuvaPühad,IF(INDEX(tblPühad[],MATCH(DATE(Kalendriaasta-(DAY(H5)>15)+(ROW()>6),MONTH(H5),DAY(H5)),IF(KuvaTähistamine,tblPühad[PARANDATUD],tblPühad[PÄEV]),0),6),INDEX(tblPühad[],MATCH(DATE(Kalendriaasta-(DAY(H5)>15)+(ROW()>6),MONTH(H5),DAY(H5)),IF(KuvaTähistamine,tblPühad[PARANDATUD],tblPühad[PÄEV]),0),2),\"\"),\"\"),\"\")","v":""}]
[null,{"$f":"Päevad+DATE(Kalendriaasta,4,1)-WEEKDAY(DATE(Kalendriaasta,4,1),(NädalaAlgus=\"Esmaspäev\")+1)+8","v":"2018-04-08"},"2018-04-09","2018-04-10","2018-04-11","2018-04-12","2018-04-13","2018-04-14"]
[null,{"$f":"IFERROR(IF(KuvaPühad,IF(INDEX(tblPühad[],MATCH(DATE(Kalendriaasta,MONTH(B7),DAY(B7)),IF(KuvaTähistamine,tblPühad[PARANDATUD],tblPühad[PÄEV]),0),6),INDEX(tblPühad[],MATCH(DATE(Kalendriaasta,MONTH(B7),DAY(B7)),IF(KuvaTähistamine,tblPühad[PARANDATUD],tblPühad[PÄEV]),0),2),\"\"),\"\"),\"\")","v":""},{"$f":"IFERROR(IF(KuvaPühad,IF(INDEX(tblPühad[],MATCH(DATE(Kalendriaasta,MONTH(C7),DAY(C7)),IF(KuvaTähistamine,tblPühad[PARANDATUD],tblPühad[PÄEV]),0),6),INDEX(tblPühad[],MATCH(DATE(Kalendriaasta,MONTH(C7),DAY(C7)),IF(KuvaTähistamine,tblPühad[PARANDATUD],tblPühad[PÄEV]),0),2),\"\"),\"\"),\"\")","v":""},{"$f":"IFERROR(IF(KuvaPühad,IF(INDEX(tblPühad[],MATCH(DATE(Kalendriaasta,MONTH(D7),DAY(D7)),IF(KuvaTähistamine,tblPühad[PARANDATUD],tblPühad[PÄEV]),0),6),INDEX(tblPühad[],MATCH(DATE(Kalendriaasta,MONTH(D7),DAY(D7)),IF(KuvaTähistamine,tblPühad[PARANDATUD],tblPühad[PÄEV]),0),2),\"\"),\"\"),\"\")","v":""},{"$f":"IFERROR(IF(KuvaPühad,IF(INDEX(tblPühad[],MATCH(DATE(Kalendriaasta,MONTH(E7),DAY(E7)),IF(KuvaTähistamine,tblPühad[PARANDATUD],tblPühad[PÄEV]),0),6),INDEX(tblPühad[],MATCH(DATE(Kalendriaasta,MONTH(E7),DAY(E7)),IF(KuvaTähistamine,tblPühad[PARANDATUD],tblPühad[PÄEV]),0),2),\"\"),\"\"),\"\")","v":""},{"$f":"IFERROR(IF(KuvaPühad,IF(INDEX(tblPühad[],MATCH(DATE(Kalendriaasta,MONTH(F7),DAY(F7)),IF(KuvaTähistamine,tblPühad[PARANDATUD],tblPühad[PÄEV]),0),6),INDEX(tblPühad[],MATCH(DATE(Kalendriaasta,MONTH(F7),DAY(F7)),IF(KuvaTähistamine,tblPühad[PARANDATUD],tblPühad[PÄEV]),0),2),\"\"),\"\"),\"\")","v":""},{"$f":"IFERROR(IF(KuvaPühad,IF(INDEX(tblPühad[],MATCH(DATE(Kalendriaasta,MONTH(G7),DAY(G7)),IF(KuvaTähistamine,tblPühad[PARANDATUD],tblPühad[PÄEV]),0),6),INDEX(tblPühad[],MATCH(DATE(Kalendriaasta,MONTH(G7),DAY(G7)),IF(KuvaTähistamine,tblPühad[PARANDATUD],tblPühad[PÄEV]),0),2),\"\"),\"\"),\"\")","v":""},{"$f":"IFERROR(IF(KuvaPühad,IF(INDEX(tblPühad[],MATCH(DATE(Kalendriaasta,MONTH(H7),DAY(H7)),IF(KuvaTähistamine,tblPühad[PARANDATUD],tblPühad[PÄEV]),0),6),INDEX(tblPühad[],MATCH(DATE(Kalendriaasta,MONTH(H7),DAY(H7)),IF(KuvaTähistamine,tblPühad[PARANDATUD],tblPühad[PÄEV]),0),2),\"\"),\"\"),\"\")","v":""}]
[null,{"$f":"Päevad+DATE(Kalendriaasta,4,1)-WEEKDAY(DATE(Kalendriaasta,4,1),(NädalaAlgus=\"Esmaspäev\")+1)+15","v":"2018-04-15"},"2018-04-16","2018-04-17","2018-04-18","2018-04-19","2018-04-20","2018-04-21"]
[null,{"$f":"IFERROR(IF(KuvaPühad,IF(INDEX(tblPühad[],MATCH(DATE(Kalendriaasta,MONTH(B9),DAY(B9)),IF(KuvaTähistamine,tblPühad[PARANDATUD],tblPühad[PÄEV]),0),6),INDEX(tblPühad[],MATCH(DATE(Kalendriaasta,MONTH(B9),DAY(B9)),IF(KuvaTähistamine,tblPühad[PARANDATUD],tblPühad[PÄEV]),0),2),\"\"),\"\"),\"\")","v":""},{"$f":"IFERROR(IF(KuvaPühad,IF(INDEX(tblPühad[],MATCH(DATE(Kalendriaasta,MONTH(C9),DAY(C9)),IF(KuvaTähistamine,tblPühad[PARANDATUD],tblPühad[PÄEV]),0),6),INDEX(tblPühad[],MATCH(DATE(Kalendriaasta,MONTH(C9),DAY(C9)),IF(KuvaTähistamine,tblPühad[PARANDATUD],tblPühad[PÄEV]),0),2),\"\"),\"\"),\"\")","v":""},{"$f":"IFERROR(IF(KuvaPühad,IF(INDEX(tblPühad[],MATCH(DATE(Kalendriaasta,MONTH(D9),DAY(D9)),IF(KuvaTähistamine,tblPühad[PARANDATUD],tblPühad[PÄEV]),0),6),INDEX(tblPühad[],MATCH(DATE(Kalendriaasta,MONTH(D9),DAY(D9)),IF(KuvaTähistamine,tblPühad[PARANDATUD],tblPühad[PÄEV]),0),2),\"\"),\"\"),\"\")","v":""},{"$f":"IFERROR(IF(KuvaPühad,IF(INDEX(tblPühad[],MATCH(DATE(Kalendriaasta,MONTH(E9),DAY(E9)),IF(KuvaTähistamine,tblPühad[PARANDATUD],tblPühad[PÄEV]),0),6),INDEX(tblPühad[],MATCH(DATE(Kalendriaasta,MONTH(E9),DAY(E9)),IF(KuvaTähistamine,tblPühad[PARANDATUD],tblPühad[PÄEV]),0),2),\"\"),\"\"),\"\")","v":""},{"$f":"IFERROR(IF(KuvaPühad,IF(INDEX(tblPühad[],MATCH(DATE(Kalendriaasta,MONTH(F9),DAY(F9)),IF(KuvaTähistamine,tblPühad[PARANDATUD],tblPühad[PÄEV]),0),6),INDEX(tblPühad[],MATCH(DATE(Kalendriaasta,MONTH(F9),DAY(F9)),IF(KuvaTähistamine,tblPühad[PARANDATUD],tblPühad[PÄEV]),0),2),\"\"),\"\"),\"\")","v":""},{"$f":"IFERROR(IF(KuvaPühad,IF(INDEX(tblPühad[],MATCH(DATE(Kalendriaasta,MONTH(G9),DAY(G9)),IF(KuvaTähistamine,tblPühad[PARANDATUD],tblPühad[PÄEV]),0),6),INDEX(tblPühad[],MATCH(DATE(Kalendriaasta,MONTH(G9),DAY(G9)),IF(KuvaTähistamine,tblPühad[PARANDATUD],tblPühad[PÄEV]),0),2),\"\"),\"\"),\"\")","v":""},{"$f":"IFERROR(IF(KuvaPühad,IF(INDEX(tblPühad[],MATCH(DATE(Kalendriaasta,MONTH(H9),DAY(H9)),IF(KuvaTähistamine,tblPühad[PARANDATUD],tblPühad[PÄEV]),0),6),INDEX(tblPühad[],MATCH(DATE(Kalendriaasta,MONTH(H9),DAY(H9)),IF(KuvaTähistamine,tblPühad[PARANDATUD],tblPühad[PÄEV]),0),2),\"\"),\"\"),\"\")","v":""}]
[null,{"$f":"Päevad+DATE(Kalendriaasta,4,1)-WEEKDAY(DATE(Kalendriaasta,4,1),(NädalaAlgus=\"Esmaspäev\")+1)+22","v":"2018-04-22"},"2018-04-23","2018-04-24","2018-04-25","2018-04-26","2018-04-27","2018-04-28"]
[null,{"$f":"IFERROR(IF(KuvaPühad,IF(INDEX(tblPühad[],MATCH(DATE(Kalendriaasta,MONTH(B11),DAY(B11)),IF(KuvaTähistamine,tblPühad[PARANDATUD],tblPühad[PÄEV]),0),6),INDEX(tblPühad[],MATCH(DATE(Kalendriaasta,MONTH(B11),DAY(B11)),IF(KuvaTähistamine,tblPühad[PARANDATUD],tblPühad[PÄEV]),0),2),\"\"),\"\"),\"\")","v":""},{"$f":"IFERROR(IF(KuvaPühad,IF(INDEX(tblPühad[],MATCH(DATE(Kalendriaasta,MONTH(C11),DAY(C11)),IF(KuvaTähistamine,tblPühad[PARANDATUD],tblPühad[PÄEV]),0),6),INDEX(tblPühad[],MATCH(DATE(Kalendriaasta,MONTH(C11),DAY(C11)),IF(KuvaTähistamine,tblPühad[PARANDATUD],tblPühad[PÄEV]),0),2),\"\"),\"\"),\"\")","v":""},{"$f":"IFERROR(IF(KuvaPühad,IF(INDEX(tblPühad[],MATCH(DATE(Kalendriaasta,MONTH(D11),DAY(D11)),IF(KuvaTähistamine,tblPühad[PARANDATUD],tblPühad[PÄEV]),0),6),INDEX(tblPühad[],MATCH(DATE(Kalendriaasta,MONTH(D11),DAY(D11)),IF(KuvaTähistamine,tblPühad[PARANDATUD],tblPühad[PÄEV]),0),2),\"\"),\"\"),\"\")","v":""},{"$f":"IFERROR(IF(KuvaPühad,IF(INDEX(tblPühad[],MATCH(DATE(Kalendriaasta,MONTH(E11),DAY(E11)),IF(KuvaTähistamine,tblPühad[PARANDATUD],tblPühad[PÄEV]),0),6),INDEX(tblPühad[],MATCH(DATE(Kalendriaasta,MONTH(E11),DAY(E11)),IF(KuvaTähistamine,tblPühad[PARANDATUD],tblPühad[PÄEV]),0),2),\"\"),\"\"),\"\")","v":""},{"$f":"IFERROR(IF(KuvaPühad,IF(INDEX(tblPühad[],MATCH(DATE(Kalendriaasta,MONTH(F11),DAY(F11)),IF(KuvaTähistamine,tblPühad[PARANDATUD],tblPühad[PÄEV]),0),6),INDEX(tblPühad[],MATCH(DATE(Kalendriaasta,MONTH(F11),DAY(F11)),IF(KuvaTähistamine,tblPühad[PARANDATUD],tblPühad[PÄEV]),0),2),\"\"),\"\"),\"\")","v":""},{"$f":"IFERROR(IF(KuvaPühad,IF(INDEX(tblPühad[],MATCH(DATE(Kalendriaasta,MONTH(G11),DAY(G11)),IF(KuvaTähistamine,tblPühad[PARANDATUD],tblPühad[PÄEV]),0),6),INDEX(tblPühad[],MATCH(DATE(Kalendriaasta,MONTH(G11),DAY(G11)),IF(KuvaTähistamine,tblPühad[PARANDATUD],tblPühad[PÄEV]),0),2),\"\"),\"\"),\"\")","v":""},{"$f":"IFERROR(IF(KuvaPühad,IF(INDEX(tblPühad[],MATCH(DATE(Kalendriaasta,MONTH(H11),DAY(H11)),IF(KuvaTähistamine,tblPühad[PARANDATUD],tblPühad[PÄEV]),0),6),INDEX(tblPühad[],MATCH(DATE(Kalendriaasta,MONTH(H11),DAY(H11)),IF(KuvaTähistamine,tblPühad[PARANDATUD],tblPühad[PÄEV]),0),2),\"\"),\"\"),\"\")","v":""}]
[null,{"$f":"Päevad+DATE(Kalendriaasta,4,1)-WEEKDAY(DATE(Kalendriaasta,4,1),(NädalaAlgus=\"Esmaspäev\")+1)+29","v":"2018-04-29"},"2018-04-30","2018-05-01","2018-05-02","2018-05-03","2018-05-04","2018-05-05"]
[null,{"$f":"IFERROR(IF(KuvaPühad,IF(INDEX(tblPühad[],MATCH(DATE(Kalendriaasta,MONTH(B13),DAY(B13)),IF(KuvaTähistamine,tblPühad[PARANDATUD],tblPühad[PÄEV]),0),6),INDEX(tblPühad[],MATCH(DATE(Kalendriaasta,MONTH(B13),DAY(B13)),IF(KuvaTähistamine,tblPühad[PARANDATUD],tblPühad[PÄEV]),0),2),\"\"),\"\"),\"\")","v":""},{"$f":"IFERROR(IF(KuvaPühad,IF(INDEX(tblPühad[],MATCH(DATE(Kalendriaasta,MONTH(C13),DAY(C13)),IF(KuvaTähistamine,tblPühad[PARANDATUD],tblPühad[PÄEV]),0),6),INDEX(tblPühad[],MATCH(DATE(Kalendriaasta,MONTH(C13),DAY(C13)),IF(KuvaTähistamine,tblPühad[PARANDATUD],tblPühad[PÄEV]),0),2),\"\"),\"\"),\"\")","v":""},{"$f":"IFERROR(IF(KuvaPühad,IF(INDEX(tblPühad[],MATCH(DATE(Kalendriaasta,MONTH(D13),DAY(D13)),IF(KuvaTähistamine,tblPühad[PARANDATUD],tblPühad[PÄEV]),0),6),INDEX(tblPühad[],MATCH(DATE(Kalendriaasta,MONTH(D13),DAY(D13)),IF(KuvaTähistamine,tblPühad[PARANDATUD],tblPühad[PÄEV]),0),2),\"\"),\"\"),\"\")","v":""},{"$f":"IFERROR(IF(KuvaPühad,IF(INDEX(tblPühad[],MATCH(DATE(Kalendriaasta,MONTH(E13),DAY(E13)),IF(KuvaTähistamine,tblPühad[PARANDATUD],tblPühad[PÄEV]),0),6),INDEX(tblPühad[],MATCH(DATE(Kalendriaasta,MONTH(E13),DAY(E13)),IF(KuvaTähistamine,tblPühad[PARANDATUD],tblPühad[PÄEV]),0),2),\"\"),\"\"),\"\")","v":""},{"$f":"IFERROR(IF(KuvaPühad,IF(INDEX(tblPühad[],MATCH(DATE(Kalendriaasta,MONTH(F13),DAY(F13)),IF(KuvaTähistamine,tblPühad[PARANDATUD],tblPühad[PÄEV]),0),6),INDEX(tblPühad[],MATCH(DATE(Kalendriaasta,MONTH(F13),DAY(F13)),IF(KuvaTähistamine,tblPühad[PARANDATUD],tblPühad[PÄEV]),0),2),\"\"),\"\"),\"\")","v":""},{"$f":"IFERROR(IF(KuvaPühad,IF(INDEX(tblPühad[],MATCH(DATE(Kalendriaasta,MONTH(G13),DAY(G13)),IF(KuvaTähistamine,tblPühad[PARANDATUD],tblPühad[PÄEV]),0),6),INDEX(tblPühad[],MATCH(DATE(Kalendriaasta,MONTH(G13),DAY(G13)),IF(KuvaTähistamine,tblPühad[PARANDATUD],tblPühad[PÄEV]),0),2),\"\"),\"\"),\"\")","v":""},{"$f":"IFERROR(IF(KuvaPühad,IF(INDEX(tblPühad[],MATCH(DATE(Kalendriaasta,MONTH(H13),DAY(H13)),IF(KuvaTähistamine,tblPühad[PARANDATUD],tblPühad[PÄEV]),0),6),INDEX(tblPühad[],MATCH(DATE(Kalendriaasta,MONTH(H13),DAY(H13)),IF(KuvaTähistamine,tblPühad[PARANDATUD],tblPühad[PÄEV]),0),2),\"\"),\"\"),\"\")","v":""}]
[null,{"$f":"Päevad+DATE(Kalendriaasta,4,1)-WEEKDAY(DATE(Kalendriaasta,4,1),(NädalaAlgus=\"Esmaspäev\")+1)+36","v":"2018-05-06"},"2018-05-07","MÄRKMED"]
[null,{"$f":"IFERROR(IF(KuvaPühad,IF(INDEX(tblPühad[],MATCH(DATE(Kalendriaasta,MONTH(B15),DAY(B15)),IF(KuvaTähistamine,tblPühad[PARANDATUD],tblPühad[PÄEV]),0),6),INDEX(tblPühad[],MATCH(DATE(Kalendriaasta,MONTH(B15),DAY(B15)),IF(KuvaTähistamine,tblPühad[PARANDATUD],tblPühad[PÄEV]),0),2),\"\"),\"\"),\"\")","v":""},{"$f":"IFERROR(IF(KuvaPühad,IF(INDEX(tblPühad[],MATCH(DATE(Kalendriaasta,MONTH(C15),DAY(C15)),IF(KuvaTähistamine,tblPühad[PARANDATUD],tblPühad[PÄEV]),0),6),INDEX(tblPühad[],MATCH(DATE(Kalendriaasta,MONTH(C15),DAY(C15)),IF(KuvaTähistamine,tblPühad[PARANDATUD],tblPühad[PÄEV]),0),2),\"\"),\"\"),\"\")","v":""}]

{"sheet":"Mai","index":5,"n_rows":16,"n_cols":8,"rows_kept":16,"merged":[[1,1,1,3],[14,3,14,7],[15,3,15,7],[16,1,16,7]]}
[]
[null,{"$f":"B9","v":"2018-05-13"}]
[]
[null,{"$f":"NädalaAlgus","v":"PÜHAPÄEV"},{"$f":"UPPER(TEXT(C5,\"dddd\"))","v":"ESMASPÄEV"},"TEISIPÄEV","KOLMAPÄEV","NELJAPÄEV","REEDE","LAUPÄEV"]
[null,{"$f":"Päevad+DATE(Kalendriaasta,5,1)-WEEKDAY(DATE(Kalendriaasta,5,1),(NädalaAlgus=\"Esmaspäev\")+1)+1","v":"2018-04-29"},"2018-04-30","2018-05-01","2018-05-02","2018-05-03","2018-05-04","2018-05-05"]
[null,{"$f":"IFERROR(IF(KuvaPühad,IF(INDEX(tblPühad[],MATCH(DATE(Kalendriaasta-(DAY(B5)>15)+(ROW()>6),MONTH(B5),DAY(B5)),IF(KuvaTähistamine,tblPühad[PARANDATUD],tblPühad[PÄEV]),0),6),INDEX(tblPühad[],MATCH(DATE(Kalendriaasta-(DAY(B5)>15)+(ROW()>6),MONTH(B5),DAY(B5)),IF(KuvaTähistamine,tblPühad[PARANDATUD],tblPühad[PÄEV]),0),2),\"\"),\"\"),\"\")","v":""},{"$f":"IFERROR(IF(KuvaPühad,IF(INDEX(tblPühad[],MATCH(DATE(Kalendriaasta-(DAY(C5)>15)+(ROW()>6),MONTH(C5),DAY(C5)),IF(KuvaTähistamine,tblPühad[PARANDATUD],tblPühad[PÄEV]),0),6),INDEX(tblPühad[],MATCH(DATE(Kalendriaasta-(DAY(C5)>15)+(ROW()>6),MONTH(C5),DAY(C5)),IF(KuvaTähistamine,tblPühad[PARANDATUD],tblPühad[PÄEV]),0),2),\"\"),\"\"),\"\")","v":""},{"$f":"IFERROR(IF(KuvaPühad,IF(INDEX(tblPühad[],MATCH(DATE(Kalendriaasta-(DAY(D5)>15)+(ROW()>6),MONTH(D5),DAY(D5)),IF(KuvaTähistamine,tblPühad[PARANDATUD],tblPühad[PÄEV]),0),6),INDEX(tblPühad[],MATCH(DATE(Kalendriaasta-(DAY(D5)>15)+(ROW()>6),MONTH(D5),DAY(D5)),IF(KuvaTähistamine,tblPühad[PARANDATUD],tblPühad[PÄEV]),0),2),\"\"),\"\"),\"\")","v":""},{"$f":"IFERROR(IF(KuvaPühad,IF(INDEX(tblPühad[],MATCH(DATE(Kalendriaasta-(DAY(E5)>15)+(ROW()>6),MONTH(E5),DAY(E5)),IF(KuvaTähistamine,tblPühad[PARANDATUD],tblPühad[PÄEV]),0),6),INDEX(tblPühad[],MATCH(DATE(Kalendriaasta-(DAY(E5)>15)+(ROW()>6),MONTH(E5),DAY(E5)),IF(KuvaTähistamine,tblPühad[PARANDATUD],tblPühad[PÄEV]),0),2),\"\"),\"\"),\"\")","v":""},{"$f":"IFERROR(IF(KuvaPühad,IF(INDEX(tblPühad[],MATCH(DATE(Kalendriaasta-(DAY(F5)>15)+(ROW()>6),MONTH(F5),DAY(F5)),IF(KuvaTähistamine,tblPühad[PARANDATUD],tblPühad[PÄEV]),0),6),INDEX(tblPühad[],MATCH(DATE(Kalendriaasta-(DAY(F5)>15)+(ROW()>6),MONTH(F5),DAY(F5)),IF(KuvaTähistamine,tblPühad[PARANDATUD],tblPühad[PÄEV]),0),2),\"\"),\"\"),\"\")","v":""},{"$f":"IFERROR(IF(KuvaPühad,IF(INDEX(tblPühad[],MATCH(DATE(Kalendriaasta-(DAY(G5)>15)+(ROW()>6),MONTH(G5),DAY(G5)),IF(KuvaTähistamine,tblPühad[PARANDATUD],tblPühad[PÄEV]),0),6),INDEX(tblPühad[],MATCH(DATE(Kalendriaasta-(DAY(G5)>15)+(ROW()>6),MONTH(G5),DAY(G5)),IF(KuvaTähistamine,tblPühad[PARANDATUD],tblPühad[PÄEV]),0),2),\"\"),\"\"),\"\")","v":""},{"$f":"IFERROR(IF(KuvaPühad,IF(INDEX(tblPühad[],MATCH(DATE(Kalendriaasta-(DAY(H5)>15)+(ROW()>6),MONTH(H5),DAY(H5)),IF(KuvaTähistamine,tblPühad[PARANDATUD],tblPühad[PÄEV]),0),6),INDEX(tblPühad[],MATCH(DATE(Kalendriaasta-(DAY(H5)>15)+(ROW()>6),MONTH(H5),DAY(H5)),IF(KuvaTähistamine,tblPühad[PARANDATUD],tblPühad[PÄEV]),0),2),\"\"),\"\"),\"\")","v":""}]
[null,{"$f":"Päevad+DATE(Kalendriaasta,5,1)-WEEKDAY(DATE(Kalendriaasta,5,1),(NädalaAlgus=\"Esmaspäev\")+1)+8","v":"2018-05-06"},"2018-05-07","2018-05-08","2018-05-09","2018-05-10","2018-05-11","2018-05-12"]
[null,{"$f":"IFERROR(IF(KuvaPühad,IF(INDEX(tblPühad[],MATCH(DATE(Kalendriaasta,MONTH(B7),DAY(B7)),IF(KuvaTähistamine,tblPühad[PARANDATUD],tblPühad[PÄEV]),0),6),INDEX(tblPühad[],MATCH(DATE(Kalendriaasta,MONTH(B7),DAY(B7)),IF(KuvaTähistamine,tblPühad[PARANDATUD],tblPühad[PÄEV]),0),2),\"\"),\"\"),\"\")","v":""},{"$f":"IFERROR(IF(KuvaPühad,IF(INDEX(tblPühad[],MATCH(DATE(Kalendriaasta,MONTH(C7),DAY(C7)),IF(KuvaTähistamine,tblPühad[PARANDATUD],tblPühad[PÄEV]),0),6),INDEX(tblPühad[],MATCH(DATE(Kalendriaasta,MONTH(C7),DAY(C7)),IF(KuvaTähistamine,tblPühad[PARANDATUD],tblPühad[PÄEV]),0),2),\"\"),\"\"),\"\")","v":""},{"$f":"IFERROR(IF(KuvaPühad,IF(INDEX(tblPühad[],MATCH(DATE(Kalendriaasta,MONTH(D7),DAY(D7)),IF(KuvaTähistamine,tblPühad[PARANDATUD],tblPühad[PÄEV]),0),6),INDEX(tblPühad[],MATCH(DATE(Kalendriaasta,MONTH(D7),DAY(D7)),IF(KuvaTähistamine,tblPühad[PARANDATUD],tblPühad[PÄEV]),0),2),\"\"),\"\"),\"\")","v":""},{"$f":"IFERROR(IF(KuvaPühad,IF(INDEX(tblPühad[],MATCH(DATE(Kalendriaasta,MONTH(E7),DAY(E7)),IF(KuvaTähistamine,tblPühad[PARANDATUD],tblPühad[PÄEV]),0),6),INDEX(tblPühad[],MATCH(DATE(Kalendriaasta,MONTH(E7),DAY(E7)),IF(KuvaTähistamine,tblPühad[PARANDATUD],tblPühad[PÄEV]),0),2),\"\"),\"\"),\"\")","v":""},{"$f":"IFERROR(IF(KuvaPühad,IF(INDEX(tblPühad[],MATCH(DATE(Kalendriaasta,MONTH(F7),DAY(F7)),IF(KuvaTähistamine,tblPühad[PARANDATUD],tblPühad[PÄEV]),0),6),INDEX(tblPühad[],MATCH(DATE(Kalendriaasta,MONTH(F7),DAY(F7)),IF(KuvaTähistamine,tblPühad[PARANDATUD],tblPühad[PÄEV]),0),2),\"\"),\"\"),\"\")","v":""},{"$f":"IFERROR(IF(KuvaPühad,IF(INDEX(tblPühad[],MATCH(DATE(Kalendriaasta,MONTH(G7),DAY(G7)),IF(KuvaTähistamine,tblPühad[PARANDATUD],tblPühad[PÄEV]),0),6),INDEX(tblPühad[],MATCH(DATE(Kalendriaasta,MONTH(G7),DAY(G7)),IF(KuvaTähistamine,tblPühad[PARANDATUD],tblPühad[PÄEV]),0),2),\"\"),\"\"),\"\")","v":""},{"$f":"IFERROR(IF(KuvaPühad,IF(INDEX(tblPühad[],MATCH(DATE(Kalendriaasta,MONTH(H7),DAY(H7)),IF(KuvaTähistamine,tblPühad[PARANDATUD],tblPühad[PÄEV]),0),6),INDEX(tblPühad[],MATCH(DATE(Kalendriaasta,MONTH(H7),DAY(H7)),IF(KuvaTähistamine,tblPühad[PARANDATUD],tblPühad[PÄEV]),0),2),\"\"),\"\"),\"\")","v":""}]
[null,{"$f":"Päevad+DATE(Kalendriaasta,5,1)-WEEKDAY(DATE(Kalendriaasta,5,1),(NädalaAlgus=\"Esmaspäev\")+1)+15","v":"2018-05-13"},"2018-05-14","2018-05-15","2018-05-16","2018-05-17","2018-05-18","2018-05-19"]
[null,{"$f":"IFERROR(IF(KuvaPühad,IF(INDEX(tblPühad[],MATCH(DATE(Kalendriaasta,MONTH(B9),DAY(B9)),IF(KuvaTähistamine,tblPühad[PARANDATUD],tblPühad[PÄEV]),0),6),INDEX(tblPühad[],MATCH(DATE(Kalendriaasta,MONTH(B9),DAY(B9)),IF(KuvaTähistamine,tblPühad[PARANDATUD],tblPühad[PÄEV]),0),2),\"\"),\"\"),\"\")","v":""},{"$f":"IFERROR(IF(KuvaPühad,IF(INDEX(tblPühad[],MATCH(DATE(Kalendriaasta,MONTH(C9),DAY(C9)),IF(KuvaTähistamine,tblPühad[PARANDATUD],tblPühad[PÄEV]),0),6),INDEX(tblPühad[],MATCH(DATE(Kalendriaasta,MONTH(C9),DAY(C9)),IF(KuvaTähistamine,tblPühad[PARANDATUD],tblPühad[PÄEV]),0),2),\"\"),\"\"),\"\")","v":""},{"$f":"IFERROR(IF(KuvaPühad,IF(INDEX(tblPühad[],MATCH(DATE(Kalendriaasta,MONTH(D9),DAY(D9)),IF(KuvaTähistamine,tblPühad[PARANDATUD],tblPühad[PÄEV]),0),6),INDEX(tblPühad[],MATCH(DATE(Kalendriaasta,MONTH(D9),DAY(D9)),IF(KuvaTähistamine,tblPühad[PARANDATUD],tblPühad[PÄEV]),0),2),\"\"),\"\"),\"\")","v":""},{"$f":"IFERROR(IF(KuvaPühad,IF(INDEX(tblPühad[],MATCH(DATE(Kalendriaasta,MONTH(E9),DAY(E9)),IF(KuvaTähistamine,tblPühad[PARANDATUD],tblPühad[PÄEV]),0),6),INDEX(tblPühad[],MATCH(DATE(Kalendriaasta,MONTH(E9),DAY(E9)),IF(KuvaTähistamine,tblPühad[PARANDATUD],tblPühad[PÄEV]),0),2),\"\"),\"\"),\"\")","v":""},{"$f":"IFERROR(IF(KuvaPühad,IF(INDEX(tblPühad[],MATCH(DATE(Kalendriaasta,MONTH(F9),DAY(F9)),IF(KuvaTähistamine,tblPühad[PARANDATUD],tblPühad[PÄEV]),0),6),INDEX(tblPühad[],MATCH(DATE(Kalendriaasta,MONTH(F9),DAY(F9)),IF(KuvaTähistamine,tblPühad[PARANDATUD],tblPühad[PÄEV]),0),2),\"\"),\"\"),\"\")","v":""},{"$f":"IFERROR(IF(KuvaPühad,IF(INDEX(tblPühad[],MATCH(DATE(Kalendriaasta,MONTH(G9),DAY(G9)),IF(KuvaTähistamine,tblPühad[PARANDATUD],tblPühad[PÄEV]),0),6),INDEX(tblPühad[],MATCH(DATE(Kalendriaasta,MONTH(G9),DAY(G9)),IF(KuvaTähistamine,tblPühad[PARANDATUD],tblPühad[PÄEV]),0),2),\"\"),\"\"),\"\")","v":""},{"$f":"IFERROR(IF(KuvaPühad,IF(INDEX(tblPühad[],MATCH(DATE(Kalendriaasta,MONTH(H9),DAY(H9)),IF(KuvaTähistamine,tblPühad[PARANDATUD],tblPühad[PÄEV]),0),6),INDEX(tblPühad[],MATCH(DATE(Kalendriaasta,MONTH(H9),DAY(H9)),IF(KuvaTähistamine,tblPühad[PARANDATUD],tblPühad[PÄEV]),0),2),\"\"),\"\"),\"\")","v":""}]
[null,{"$f":"Päevad+DATE(Kalendriaasta,5,1)-WEEKDAY(DATE(Kalendriaasta,5,1),(NädalaAlgus=\"Esmaspäev\")+1)+22","v":"2018-05-20"},"2018-05-21","2018-05-22","2018-05-23","2018-05-24","2018-05-25","2018-05-26"]
[null,{"$f":"IFERROR(IF(KuvaPühad,IF(INDEX(tblPühad[],MATCH(DATE(Kalendriaasta,MONTH(B11),DAY(B11)),IF(KuvaTähistamine,tblPühad[PARANDATUD],tblPühad[PÄEV]),0),6),INDEX(tblPühad[],MATCH(DATE(Kalendriaasta,MONTH(B11),DAY(B11)),IF(KuvaTähistamine,tblPühad[PARANDATUD],tblPühad[PÄEV]),0),2),\"\"),\"\"),\"\")","v":""},{"$f":"IFERROR(IF(KuvaPühad,IF(INDEX(tblPühad[],MATCH(DATE(Kalendriaasta,MONTH(C11),DAY(C11)),IF(KuvaTähistamine,tblPühad[PARANDATUD],tblPühad[PÄEV]),0),6),INDEX(tblPühad[],MATCH(DATE(Kalendriaasta,MONTH(C11),DAY(C11)),IF(KuvaTähistamine,tblPühad[PARANDATUD],tblPühad[PÄEV]),0),2),\"\"),\"\"),\"\")","v":""},{"$f":"IFERROR(IF(KuvaPühad,IF(INDEX(tblPühad[],MATCH(DATE(Kalendriaasta,MONTH(D11),DAY(D11)),IF(KuvaTähistamine,tblPühad[PARANDATUD],tblPühad[PÄEV]),0),6),INDEX(tblPühad[],MATCH(DATE(Kalendriaasta,MONTH(D11),DAY(D11)),IF(KuvaTähistamine,tblPühad[PARANDATUD],tblPühad[PÄEV]),0),2),\"\"),\"\"),\"\")","v":""},{"$f":"IFERROR(IF(KuvaPühad,IF(INDEX(tblPühad[],MATCH(DATE(Kalendriaasta,MONTH(E11),DAY(E11)),IF(KuvaTähistamine,tblPühad[PARANDATUD],tblPühad[PÄEV]),0),6),INDEX(tblPühad[],MATCH(DATE(Kalendriaasta,MONTH(E11),DAY(E11)),IF(KuvaTähistamine,tblPühad[PARANDATUD],tblPühad[PÄEV]),0),2),\"\"),\"\"),\"\")","v":""},{"$f":"IFERROR(IF(KuvaPühad,IF(INDEX(tblPühad[],MATCH(DATE(Kalendriaasta,MONTH(F11),DAY(F11)),IF(KuvaTähistamine,tblPühad[PARANDATUD],tblPühad[PÄEV]),0),6),INDEX(tblPühad[],MATCH(DATE(Kalendriaasta,MONTH(F11),DAY(F11)),IF(KuvaTähistamine,tblPühad[PARANDATUD],tblPühad[PÄEV]),0),2),\"\"),\"\"),\"\")","v":""},{"$f":"IFERROR(IF(KuvaPühad,IF(INDEX(tblPühad[],MATCH(DATE(Kalendriaasta,MONTH(G11),DAY(G11)),IF(KuvaTähistamine,tblPühad[PARANDATUD],tblPühad[PÄEV]),0),6),INDEX(tblPühad[],MATCH(DATE(Kalendriaasta,MONTH(G11),DAY(G11)),IF(KuvaTähistamine,tblPühad[PARANDATUD],tblPühad[PÄEV]),0),2),\"\"),\"\"),\"\")","v":""},{"$f":"IFERROR(IF(KuvaPühad,IF(INDEX(tblPühad[],MATCH(DATE(Kalendriaasta,MONTH(H11),DAY(H11)),IF(KuvaTähistamine,tblPühad[PARANDATUD],tblPühad[PÄEV]),0),6),INDEX(tblPühad[],MATCH(DATE(Kalendriaasta,MONTH(H11),DAY(H11)),IF(KuvaTähistamine,tblPühad[PARANDATUD],tblPühad[PÄEV]),0),2),\"\"),\"\"),\"\")","v":""}]
[null,{"$f":"Päevad+DATE(Kalendriaasta,5,1)-WEEKDAY(DATE(Kalendriaasta,5,1),(NädalaAlgus=\"Esmaspäev\")+1)+29","v":"2018-05-27"},"2018-05-28","2018-05-29","2018-05-30","2018-05-31","2018-06-01","2018-06-02"]
[null,{"$f":"IFERROR(IF(KuvaPühad,IF(INDEX(tblPühad[],MATCH(DATE(Kalendriaasta,MONTH(B13),DAY(B13)),IF(KuvaTähistamine,tblPühad[PARANDATUD],tblPühad[PÄEV]),0),6),INDEX(tblPühad[],MATCH(DATE(Kalendriaasta,MONTH(B13),DAY(B13)),IF(KuvaTähistamine,tblPühad[PARANDATUD],tblPühad[PÄEV]),0),2),\"\"),\"\"),\"\")","v":""},{"$f":"IFERROR(IF(KuvaPühad,IF(INDEX(tblPühad[],MATCH(DATE(Kalendriaasta,MONTH(C13),DAY(C13)),IF(KuvaTähistamine,tblPühad[PARANDATUD],tblPühad[PÄEV]),0),6),INDEX(tblPühad[],MATCH(DATE(Kalendriaasta,MONTH(C13),DAY(C13)),IF(KuvaTähistamine,tblPühad[PARANDATUD],tblPühad[PÄEV]),0),2),\"\"),\"\"),\"\")","v":"Suur reede"},{"$f":"IFERROR(IF(KuvaPühad,IF(INDEX(tblPühad[],MATCH(DATE(Kalendriaasta,MONTH(D13),DAY(D13)),IF(KuvaTähistamine,tblPühad[PARANDATUD],tblPühad[PÄEV]),0),6),INDEX(tblPühad[],MATCH(DATE(Kalendriaasta,MONTH(D13),DAY(D13)),IF(KuvaTähistamine,tblPühad[PARANDATUD],tblPühad[PÄEV]),0),2),\"\"),\"\"),\"\")","v":""},{"$f":"IFERROR(IF(KuvaPühad,IF(INDEX(tblPühad[],MATCH(DATE(Kalendriaasta,MONTH(E13),DAY(E13)),IF(KuvaTähistamine,tblPühad[PARANDATUD],tblPühad[PÄEV]),0),6),INDEX(tblPühad[],MATCH(DATE(Kalendriaasta,MONTH(E13),DAY(E13)),IF(KuvaTähistamine,tblPühad[PARANDATUD],tblPühad[PÄEV]),0),2),\"\"),\"\"),\"\")","v":""},{"$f":"IFERROR(IF(KuvaPühad,IF(INDEX(tblPühad[],MATCH(DATE(Kalendriaasta,MONTH(F13),DAY(F13)),IF(KuvaTähistamine,tblPühad[PARANDATUD],tblPühad[PÄEV]),0),6),INDEX(tblPühad[],MATCH(DATE(Kalendriaasta,MONTH(F13),DAY(F13)),IF(KuvaTähistamine,tblPühad[PARANDATUD],tblPühad[PÄEV]),0),2),\"\"),\"\"),\"\")","v":""},{"$f":"IFERROR(IF(KuvaPühad,IF(INDEX(tblPühad[],MATCH(DATE(Kalendriaasta,MONTH(G13),DAY(G13)),IF(KuvaTähistamine,tblPühad[PARANDATUD],tblPühad[PÄEV]),0),6),INDEX(tblPühad[],MATCH(DATE(Kalendriaasta,MONTH(G13),DAY(G13)),IF(KuvaTähistamine,tblPühad[PARANDATUD],tblPühad[PÄEV]),0),2),\"\"),\"\"),\"\")","v":""},{"$f":"IFERROR(IF(KuvaPühad,IF(INDEX(tblPühad[],MATCH(DATE(Kalendriaasta,MONTH(H13),DAY(H13)),IF(KuvaTähistamine,tblPühad[PARANDATUD],tblPühad[PÄEV]),0),6),INDEX(tblPühad[],MATCH(DATE(Kalendriaasta,MONTH(H13),DAY(H13)),IF(KuvaTähistamine,tblPühad[PARANDATUD],tblPühad[PÄEV]),0),2),\"\"),\"\"),\"\")","v":""}]
[null,{"$f":"Päevad+DATE(Kalendriaasta,5,1)-WEEKDAY(DATE(Kalendriaasta,5,1),(NädalaAlgus=\"Esmaspäev\")+1)+36","v":"2018-06-03"},"2018-06-04","MÄRKMED"]
[null,{"$f":"IFERROR(IF(KuvaPühad,IF(INDEX(tblPühad[],MATCH(DATE(Kalendriaasta,MONTH(B15),DAY(B15)),IF(KuvaTähistamine,tblPühad[PARANDATUD],tblPühad[PÄEV]),0),6),INDEX(tblPühad[],MATCH(DATE(Kalendriaasta,MONTH(B15),DAY(B15)),IF(KuvaTähistamine,tblPühad[PARANDATUD],tblPühad[PÄEV]),0),2),\"\"),\"\"),\"\")","v":""},{"$f":"IFERROR(IF(KuvaPühad,IF(INDEX(tblPühad[],MATCH(DATE(Kalendriaasta,MONTH(C15),DAY(C15)),IF(KuvaTähistamine,tblPühad[PARANDATUD],tblPühad[PÄEV]),0),6),INDEX(tblPühad[],MATCH(DATE(Kalendriaasta,MONTH(C15),DAY(C15)),IF(KuvaTähistamine,tblPühad[PARANDATUD],tblPühad[PÄEV]),0),2),\"\"),\"\"),\"\")","v":""}]

{"sheet":"Juuni","index":6,"n_rows":16,"n_cols":8,"rows_kept":16,"merged":[[1,1,1,3],[14,3,14,7],[15,3,15,7],[16,1,16,7]]}
[]
[null,{"$f":"B9","v":"2018-06-10"}]
[]
[null,{"$f":"NädalaAlgus","v":"PÜHAPÄEV"},{"$f":"UPPER(TEXT(C5,\"dddd\"))","v":"ESMASPÄEV"},"TEISIPÄEV","KOLMAPÄEV","NELJAPÄEV","REEDE","LAUPÄEV"]
[null,{"$f":"Päevad+DATE(Kalendriaasta,6,1)-WEEKDAY(DATE(Kalendriaasta,6,1),(NädalaAlgus=\"Esmaspäev\")+1)+1","v":"2018-05-27"},"2018-05-28","2018-05-29","2018-05-30","2018-05-31","2018-06-01","2018-06-02"]
[null,{"$f":"IFERROR(IF(KuvaPühad,IF(INDEX(tblPühad[],MATCH(DATE(Kalendriaasta-(DAY(B5)>15)+(ROW()>6),MONTH(B5),DAY(B5)),IF(KuvaTähistamine,tblPühad[PARANDATUD],tblPühad[PÄEV]),0),6),INDEX(tblPühad[],MATCH(DATE(Kalendriaasta-(DAY(B5)>15)+(ROW()>6),MONTH(B5),DAY(B5)),IF(KuvaTähistamine,tblPühad[PARANDATUD],tblPühad[PÄEV]),0),2),\"\"),\"\"),\"\")","v":""},{"$f":"IFERROR(IF(KuvaPühad,IF(INDEX(tblPühad[],MATCH(DATE(Kalendriaasta-(DAY(C5)>15)+(ROW()>6),MONTH(C5),DAY(C5)),IF(KuvaTähistamine,tblPühad[PARANDATUD],tblPühad[PÄEV]),0),6),INDEX(tblPühad[],MATCH(DATE(Kalendriaasta-(DAY(C5)>15)+(ROW()>6),MONTH(C5),DAY(C5)),IF(KuvaTähistamine,tblPühad[PARANDATUD],tblPühad[PÄEV]),0),2),\"\"),\"\"),\"\")","v":""},{"$f":"IFERROR(IF(KuvaPühad,IF(INDEX(tblPühad[],MATCH(DATE(Kalendriaasta-(DAY(D5)>15)+(ROW()>6),MONTH(D5),DAY(D5)),IF(KuvaTähistamine,tblPühad[PARANDATUD],tblPühad[PÄEV]),0),6),INDEX(tblPühad[],MATCH(DATE(Kalendriaasta-(DAY(D5)>15)+(ROW()>6),MONTH(D5),DAY(D5)),IF(KuvaTähistamine,tblPühad[PARANDATUD],tblPühad[PÄEV]),0),2),\"\"),\"\"),\"\")","v":""},{"$f":"IFERROR(IF(KuvaPühad,IF(INDEX(tblPühad[],MATCH(DATE(Kalendriaasta-(DAY(E5)>15)+(ROW()>6),MONTH(E5),DAY(E5)),IF(KuvaTähistamine,tblPühad[PARANDATUD],tblPühad[PÄEV]),0),6),INDEX(tblPühad[],MATCH(DATE(Kalendriaasta-(DAY(E5)>15)+(ROW()>6),MONTH(E5),DAY(E5)),IF(KuvaTähistamine,tblPühad[PARANDATUD],tblPühad[PÄEV]),0),2),\"\"),\"\"),\"\")","v":""},{"$f":"IFERROR(IF(KuvaPühad,IF(INDEX(tblPühad[],MATCH(DATE(Kalendriaasta-(DAY(F5)>15)+(ROW()>6),MONTH(F5),DAY(F5)),IF(KuvaTähistamine,tblPühad[PARANDATUD],tblPühad[PÄEV]),0),6),INDEX(tblPühad[],MATCH(DATE(Kalendriaasta-(DAY(F5)>15)+(ROW()>6),MONTH(F5),DAY(F5)),IF(KuvaTähistamine,tblPühad[PARANDATUD],tblPühad[PÄEV]),0),2),\"\"),\"\"),\"\")","v":""},{"$f":"IFERROR(IF(KuvaPühad,IF(INDEX(tblPühad[],MATCH(DATE(Kalendriaasta-(DAY(G5)>15)+(ROW()>6),MONTH(G5),DAY(G5)),IF(KuvaTähistamine,tblPühad[PARANDATUD],tblPühad[PÄEV]),0),6),INDEX(tblPühad[],MATCH(DATE(Kalendriaasta-(DAY(G5)>15)+(ROW()>6),MONTH(G5),DAY(G5)),IF(KuvaTähistamine,tblPühad[PARANDATUD],tblPühad[PÄEV]),0),2),\"\"),\"\"),\"\")","v":""},{"$f":"IFERROR(IF(KuvaPühad,IF(INDEX(tblPühad[],MATCH(DATE(Kalendriaasta-(DAY(H5)>15)+(ROW()>6),MONTH(H5),DAY(H5)),IF(KuvaTähistamine,tblPühad[PARANDATUD],tblPühad[PÄEV]),0),6),INDEX(tblPühad[],MATCH(DATE(Kalendriaasta-(DAY(H5)>15)+(ROW()>6),MONTH(H5),DAY(H5)),IF(KuvaTähistamine,tblPühad[PARANDATUD],tblPühad[PÄEV]),0),2),\"\"),\"\"),\"\")","v":""}]
[null,{"$f":"Päevad+DATE(Kalendriaasta,6,1)-WEEKDAY(DATE(Kalendriaasta,6,1),(NädalaAlgus=\"Esmaspäev\")+1)+8","v":"2018-06-03"},"2018-06-04","2018-06-05","2018-06-06","2018-06-07","2018-06-08","2018-06-09"]
[null,{"$f":"IFERROR(IF(KuvaPühad,IF(INDEX(tblPühad[],MATCH(DATE(Kalendriaasta,MONTH(B7),DAY(B7)),IF(KuvaTähistamine,tblPühad[PARANDATUD],tblPühad[PÄEV]),0),6),INDEX(tblPühad[],MATCH(DATE(Kalendriaasta,MONTH(B7),DAY(B7)),IF(KuvaTähistamine,tblPühad[PARANDATUD],tblPühad[PÄEV]),0),2),\"\"),\"\"),\"\")","v":""},{"$f":"IFERROR(IF(KuvaPühad,IF(INDEX(tblPühad[],MATCH(DATE(Kalendriaasta,MONTH(C7),DAY(C7)),IF(KuvaTähistamine,tblPühad[PARANDATUD],tblPühad[PÄEV]),0),6),INDEX(tblPühad[],MATCH(DATE(Kalendriaasta,MONTH(C7),DAY(C7)),IF(KuvaTähistamine,tblPühad[PARANDATUD],tblPühad[PÄEV]),0),2),\"\"),\"\"),\"\")","v":""},{"$f":"IFERROR(IF(KuvaPühad,IF(INDEX(tblPühad[],MATCH(DATE(Kalendriaasta,MONTH(D7),DAY(D7)),IF(KuvaTähistamine,tblPühad[PARANDATUD],tblPühad[PÄEV]),0),6),INDEX(tblPühad[],MATCH(DATE(Kalendriaasta,MONTH(D7),DAY(D7)),IF(KuvaTähistamine,tblPühad[PARANDATUD],tblPühad[PÄEV]),0),2),\"\"),\"\"),\"\")","v":""},{"$f":"IFERROR(IF(KuvaPühad,IF(INDEX(tblPühad[],MATCH(DATE(Kalendriaasta,MONTH(E7),DAY(E7)),IF(KuvaTähistamine,tblPühad[PARANDATUD],tblPühad[PÄEV]),0),6),INDEX(tblPühad[],MATCH(DATE(Kalendriaasta,MONTH(E7),DAY(E7)),IF(KuvaTähistamine,tblPühad[PARANDATUD],tblPühad[PÄEV]),0),2),\"\"),\"\"),\"\")","v":""},{"$f":"IFERROR(IF(KuvaPühad,IF(INDEX(tblPühad[],MATCH(DATE(Kalendriaasta,MONTH(F7),DAY(F7)),IF(KuvaTähistamine,tblPühad[PARANDATUD],tblPühad[PÄEV]),0),6),INDEX(tblPühad[],MATCH(DATE(Kalendriaasta,MONTH(F7),DAY(F7)),IF(KuvaTähistamine,tblPühad[PARANDATUD],tblPühad[PÄEV]),0),2),\"\"),\"\"),\"\")","v":""},{"$f":"IFERROR(IF(KuvaPühad,IF(INDEX(tblPühad[],MATCH(DATE(Kalendriaasta,MONTH(G7),DAY(G7)),IF(KuvaTähistamine,tblPühad[PARANDATUD],tblPühad[PÄEV]),0),6),INDEX(tblPühad[],MATCH(DATE(Kalendriaasta,MONTH(G7),DAY(G7)),IF(KuvaTähistamine,tblPühad[PARANDATUD],tblPühad[PÄEV]),0),2),\"\"),\"\"),\"\")","v":""},{"$f":"IFERROR(IF(KuvaPühad,IF(INDEX(tblPühad[],MATCH(DATE(Kalendriaasta,MONTH(H7),DAY(H7)),IF(KuvaTähistamine,tblPühad[PARANDATUD],tblPühad[PÄEV]),0),6),INDEX(tblPühad[],MATCH(DATE(Kalendriaasta,MONTH(H7),DAY(H7)),IF(KuvaTähistamine,tblPühad[PARANDATUD],tblPühad[PÄEV]),0),2),\"\"),\"\"),\"\")","v":""}]
[null,{"$f":"Päevad+DATE(Kalendriaasta,6,1)-WEEKDAY(DATE(Kalendriaasta,6,1),(NädalaAlgus=\"Esmaspäev\")+1)+15","v":"2018-06-10"},"2018-06-11","2018-06-12","2018-06-13","2018-06-14","2018-06-15","2018-06-16"]
[null,{"$f":"IFERROR(IF(KuvaPühad,IF(INDEX(tblPühad[],MATCH(DATE(Kalendriaasta,MONTH(B9),DAY(B9)),IF(KuvaTähistamine,tblPühad[PARANDATUD],tblPühad[PÄEV]),0),6),INDEX(tblPühad[],MATCH(DATE(Kalendriaasta,MONTH(B9),DAY(B9)),IF(KuvaTähistamine,tblPühad[PARANDATUD],tblPühad[PÄEV]),0),2),\"\"),\"\"),\"\")","v":""},{"$f":"IFERROR(IF(KuvaPühad,IF(INDEX(tblPühad[],MATCH(DATE(Kalendriaasta,MONTH(C9),DAY(C9)),IF(KuvaTähistamine,tblPühad[PARANDATUD],tblPühad[PÄEV]),0),6),INDEX(tblPühad[],MATCH(DATE(Kalendriaasta,MONTH(C9),DAY(C9)),IF(KuvaTähistamine,tblPühad[PARANDATUD],tblPühad[PÄEV]),0),2),\"\"),\"\"),\"\")","v":""},{"$f":"IFERROR(IF(KuvaPühad,IF(INDEX(tblPühad[],MATCH(DATE(Kalendriaasta,MONTH(D9),DAY(D9)),IF(KuvaTähistamine,tblPühad[PARANDATUD],tblPühad[PÄEV]),0),6),INDEX(tblPühad[],MATCH(DATE(Kalendriaasta,MONTH(D9),DAY(D9)),IF(KuvaTähistamine,tblPühad[PARANDATUD],tblPühad[PÄEV]),0),2),\"\"),\"\"),\"\")","v":""},{"$f":"IFERROR(IF(KuvaPühad,IF(INDEX(tblPühad[],MATCH(DATE(Kalendriaasta,MONTH(E9),DAY(E9)),IF(KuvaTähistamine,tblPühad[PARANDATUD],tblPühad[PÄEV]),0),6),INDEX(tblPühad[],MATCH(DATE(Kalendriaasta,MONTH(E9),DAY(E9)),IF(KuvaTähistamine,tblPühad[PARANDATUD],tblPühad[PÄEV]),0),2),\"\"),\"\"),\"\")","v":""},{"$f":"IFERROR(IF(KuvaPühad,IF(INDEX(tblPühad[],MATCH(DATE(Kalendriaasta,MONTH(F9),DAY(F9)),IF(KuvaTähistamine,tblPühad[PARANDATUD],tblPühad[PÄEV]),0),6),INDEX(tblPühad[],MATCH(DATE(Kalendriaasta,MONTH(F9),DAY(F9)),IF(KuvaTähistamine,tblPühad[PARANDATUD],tblPühad[PÄEV]),0),2),\"\"),\"\"),\"\")","v":""},{"$f":"IFERROR(IF(KuvaPühad,IF(INDEX(tblPühad[],MATCH(DATE(Kalendriaasta,MONTH(G9),DAY(G9)),IF(KuvaTähistamine,tblPühad[PARANDATUD],tblPühad[PÄEV]),0),6),INDEX(tblPühad[],MATCH(DATE(Kalendriaasta,MONTH(G9),DAY(G9)),IF(KuvaTähistamine,tblPühad[PARANDATUD],tblPühad[PÄEV]),0),2),\"\"),\"\"),\"\")","v":""},{"$f":"IFERROR(IF(KuvaPühad,IF(INDEX(tblPühad[],MATCH(DATE(Kalendriaasta,MONTH(H9),DAY(H9)),IF(KuvaTähistamine,tblPühad[PARANDATUD],tblPühad[PÄEV]),0),6),INDEX(tblPühad[],MATCH(DATE(Kalendriaasta,MONTH(H9),DAY(H9)),IF(KuvaTähistamine,tblPühad[PARANDATUD],tblPühad[PÄEV]),0),2),\"\"),\"\"),\"\")","v":""}]
[null,{"$f":"Päevad+DATE(Kalendriaasta,6,1)-WEEKDAY(DATE(Kalendriaasta,6,1),(NädalaAlgus=\"Esmaspäev\")+1)+22","v":"2018-06-17"},"2018-06-18","2018-06-19","2018-06-20","2018-06-21","2018-06-22","2018-06-23"]
[null,{"$f":"IFERROR(IF(KuvaPühad,IF(INDEX(tblPühad[],MATCH(DATE(Kalendriaasta,MONTH(B11),DAY(B11)),IF(KuvaTähistamine,tblPühad[PARANDATUD],tblPühad[PÄEV]),0),6),INDEX(tblPühad[],MATCH(DATE(Kalendriaasta,MONTH(B11),DAY(B11)),IF(KuvaTähistamine,tblPühad[PARANDATUD],tblPühad[PÄEV]),0),2),\"\"),\"\"),\"\")","v":""},{"$f":"IFERROR(IF(KuvaPühad,IF(INDEX(tblPühad[],MATCH(DATE(Kalendriaasta,MONTH(C11),DAY(C11)),IF(KuvaTähistamine,tblPühad[PARANDATUD],tblPühad[PÄEV]),0),6),INDEX(tblPühad[],MATCH(DATE(Kalendriaasta,MONTH(C11),DAY(C11)),IF(KuvaTähistamine,tblPühad[PARANDATUD],tblPühad[PÄEV]),0),2),\"\"),\"\"),\"\")","v":""},{"$f":"IFERROR(IF(KuvaPühad,IF(INDEX(tblPühad[],MATCH(DATE(Kalendriaasta,MONTH(D11),DAY(D11)),IF(KuvaTähistamine,tblPühad[PARANDATUD],tblPühad[PÄEV]),0),6),INDEX(tblPühad[],MATCH(DATE(Kalendriaasta,MONTH(D11),DAY(D11)),IF(KuvaTähistamine,tblPühad[PARANDATUD],tblPühad[PÄEV]),0),2),\"\"),\"\"),\"\")","v":""},{"$f":"IFERROR(IF(KuvaPühad,IF(INDEX(tblPühad[],MATCH(DATE(Kalendriaasta,MONTH(E11),DAY(E11)),IF(KuvaTähistamine,tblPühad[PARANDATUD],tblPühad[PÄEV]),0),6),INDEX(tblPühad[],MATCH(DATE(Kalendriaasta,MONTH(E11),DAY(E11)),IF(KuvaTähistamine,tblPühad[PARANDATUD],tblPühad[PÄEV]),0),2),\"\"),\"\"),\"\")","v":""},{"$f":"IFERROR(IF(KuvaPühad,IF(INDEX(tblPühad[],MATCH(DATE(Kalendriaasta,MONTH(F11),DAY(F11)),IF(KuvaTähistamine,tblPühad[PARANDATUD],tblPühad[PÄEV]),0),6),INDEX(tblPühad[],MATCH(DATE(Kalendriaasta,MONTH(F11),DAY(F11)),IF(KuvaTähistamine,tblPühad[PARANDATUD],tblPühad[PÄEV]),0),2),\"\"),\"\"),\"\")","v":""},{"$f":"IFERROR(IF(KuvaPühad,IF(INDEX(tblPühad[],MATCH(DATE(Kalendriaasta,MONTH(G11),DAY(G11)),IF(KuvaTähistamine,tblPühad[PARANDATUD],tblPühad[PÄEV]),0),6),INDEX(tblPühad[],MATCH(DATE(Kalendriaasta,MONTH(G11),DAY(G11)),IF(KuvaTähistamine,tblPühad[PARANDATUD],tblPühad[PÄEV]),0),2),\"\"),\"\"),\"\")","v":""},{"$f":"IFERROR(IF(KuvaPühad,IF(INDEX(tblPühad[],MATCH(DATE(Kalendriaasta,MONTH(H11),DAY(H11)),IF(KuvaTähistamine,tblPühad[PARANDATUD],tblPühad[PÄEV]),0),6),INDEX(tblPühad[],MATCH(DATE(Kalendriaasta,MONTH(H11),DAY(H11)),IF(KuvaTähistamine,tblPühad[PARANDATUD],tblPühad[PÄEV]),0),2),\"\"),\"\"),\"\")","v":""}]
[null,{"$f":"Päevad+DATE(Kalendriaasta,6,1)-WEEKDAY(DATE(Kalendriaasta,6,1),(NädalaAlgus=\"Esmaspäev\")+1)+29","v":"2018-06-24"},"2018-06-25","2018-06-26","2018-06-27","2018-06-28","2018-06-29","2018-06-30"]
[null,{"$f":"IFERROR(IF(KuvaPühad,IF(INDEX(tblPühad[],MATCH(DATE(Kalendriaasta,MONTH(B13),DAY(B13)),IF(KuvaTähistamine,tblPühad[PARANDATUD],tblPühad[PÄEV]),0),6),INDEX(tblPühad[],MATCH(DATE(Kalendriaasta,MONTH(B13),DAY(B13)),IF(KuvaTähistamine,tblPühad[PARANDATUD],tblPühad[PÄEV]),0),2),\"\"),\"\"),\"\")","v":""},{"$f":"IFERROR(IF(KuvaPühad,IF(INDEX(tblPühad[],MATCH(DATE(Kalendriaasta,MONTH(C13),DAY(C13)),IF(KuvaTähistamine,tblPühad[PARANDATUD],tblPühad[PÄEV]),0),6),INDEX(tblPühad[],MATCH(DATE(Kalendriaasta,MONTH(C13),DAY(C13)),IF(KuvaTähistamine,tblPühad[PARANDATUD],tblPühad[PÄEV]),0),2),\"\"),\"\"),\"\")","v":""},{"$f":"IFERROR(IF(KuvaPühad,IF(INDEX(tblPühad[],MATCH(DATE(Kalendriaasta,MONTH(D13),DAY(D13)),IF(KuvaTähistamine,tblPühad[PARANDATUD],tblPühad[PÄEV]),0),6),INDEX(tblPühad[],MATCH(DATE(Kalendriaasta,MONTH(D13),DAY(D13)),IF(KuvaTähistamine,tblPühad[PARANDATUD],tblPühad[PÄEV]),0),2),\"\"),\"\"),\"\")","v":""},{"$f":"IFERROR(IF(KuvaPühad,IF(INDEX(tblPühad[],MATCH(DATE(Kalendriaasta,MONTH(E13),DAY(E13)),IF(KuvaTähistamine,tblPühad[PARANDATUD],tblPühad[PÄEV]),0),6),INDEX(tblPühad[],MATCH(DATE(Kalendriaasta,MONTH(E13),DAY(E13)),IF(KuvaTähistamine,tblPühad[PARANDATUD],tblPühad[PÄEV]),0),2),\"\"),\"\"),\"\")","v":""},{"$f":"IFERROR(IF(KuvaPühad,IF(INDEX(tblPühad[],MATCH(DATE(Kalendriaasta,MONTH(F13),DAY(F13)),IF(KuvaTähistamine,tblPühad[PARANDATUD],tblPühad[PÄEV]),0),6),INDEX(tblPühad[],MATCH(DATE(Kalendriaasta,MONTH(F13),DAY(F13)),IF(KuvaTähistamine,tblPühad[PARANDATUD],tblPühad[PÄEV]),0),2),\"\"),\"\"),\"\")","v":""},{"$f":"IFERROR(IF(KuvaPühad,IF(INDEX(tblPühad[],MATCH(DATE(Kalendriaasta,MONTH(G13),DAY(G13)),IF(KuvaTähistamine,tblPühad[PARANDATUD],tblPühad[PÄEV]),0),6),INDEX(tblPühad[],MATCH(DATE(Kalendriaasta,MONTH(G13),DAY(G13)),IF(KuvaTähistamine,tblPühad[PARANDATUD],tblPühad[PÄEV]),0),2),\"\"),\"\"),\"\")","v":""},{"$f":"IFERROR(IF(KuvaPühad,IF(INDEX(tblPühad[],MATCH(DATE(Kalendriaasta,MONTH(H13),DAY(H13)),IF(KuvaTähistamine,tblPühad[PARANDATUD],tblPühad[PÄEV]),0),6),INDEX(tblPühad[],MATCH(DATE(Kalendriaasta,MONTH(H13),DAY(H13)),IF(KuvaTähistamine,tblPühad[PARANDATUD],tblPühad[PÄEV]),0),2),\"\"),\"\"),\"\")","v":""}]
[null,{"$f":"Päevad+DATE(Kalendriaasta,6,1)-WEEKDAY(DATE(Kalendriaasta,6,1),(NädalaAlgus=\"Esmaspäev\")+1)+36","v":"2018-07-01"},"2018-07-02","MÄRKMED"]
[null,{"$f":"IFERROR(IF(KuvaPühad,IF(INDEX(tblPühad[],MATCH(DATE(Kalendriaasta,MONTH(B15),DAY(B15)),IF(KuvaTähistamine,tblPühad[PARANDATUD],tblPühad[PÄEV]),0),6),INDEX(tblPühad[],MATCH(DATE(Kalendriaasta,MONTH(B15),DAY(B15)),IF(KuvaTähistamine,tblPühad[PARANDATUD],tblPühad[PÄEV]),0),2),\"\"),\"\"),\"\")","v":""},{"$f":"IFERROR(IF(KuvaPühad,IF(INDEX(tblPühad[],MATCH(DATE(Kalendriaasta,MONTH(C15),DAY(C15)),IF(KuvaTähistamine,tblPühad[PARANDATUD],tblPühad[PÄEV]),0),6),INDEX(tblPühad[],MATCH(DATE(Kalendriaasta,MONTH(C15),DAY(C15)),IF(KuvaTähistamine,tblPühad[PARANDATUD],tblPühad[PÄEV]),0),2),\"\"),\"\"),\"\")","v":""}]

{"sheet":"Juuli","index":7,"n_rows":16,"n_cols":8,"rows_kept":16,"merged":[[1,1,1,3],[14,3,14,7],[15,3,15,7],[16,1,16,7]]}
[]
[null,{"$f":"B9","v":"2018-07-15"}]
[]
[null,{"$f":"NädalaAlgus","v":"PÜHAPÄEV"},{"$f":"UPPER(TEXT(C5,\"dddd\"))","v":"ESMASPÄEV"},"TEISIPÄEV","KOLMAPÄEV","NELJAPÄEV","REEDE","LAUPÄEV"]
[null,{"$f":"Päevad+DATE(Kalendriaasta,7,1)-WEEKDAY(DATE(Kalendriaasta,7,1),(NädalaAlgus=\"Esmaspäev\")+1)+1","v":"2018-07-01"},"2018-07-02","2018-07-03","2018-07-04","2018-07-05","2018-07-06","2018-07-07"]
[null,{"$f":"IFERROR(IF(KuvaPühad,IF(INDEX(tblPühad[],MATCH(DATE(Kalendriaasta-(DAY(B5)>15)+(ROW()>6),MONTH(B5),DAY(B5)),IF(KuvaTähistamine,tblPühad[PARANDATUD],tblPühad[PÄEV]),0),6),INDEX(tblPühad[],MATCH(DATE(Kalendriaasta-(DAY(B5)>15)+(ROW()>6),MONTH(B5),DAY(B5)),IF(KuvaTähistamine,tblPühad[PARANDATUD],tblPühad[PÄEV]),0),2),\"\"),\"\"),\"\")","v":""},{"$f":"IFERROR(IF(KuvaPühad,IF(INDEX(tblPühad[],MATCH(DATE(Kalendriaasta-(DAY(C5)>15)+(ROW()>6),MONTH(C5),DAY(C5)),IF(KuvaTähistamine,tblPühad[PARANDATUD],tblPühad[PÄEV]),0),6),INDEX(tblPühad[],MATCH(DATE(Kalendriaasta-(DAY(C5)>15)+(ROW()>6),MONTH(C5),DAY(C5)),IF(KuvaTähistamine,tblPühad[PARANDATUD],tblPühad[PÄEV]),0),2),\"\"),\"\"),\"\")","v":""},{"$f":"IFERROR(IF(KuvaPühad,IF(INDEX(tblPühad[],MATCH(DATE(Kalendriaasta-(DAY(D5)>15)+(ROW()>6),MONTH(D5),DAY(D5)),IF(KuvaTähistamine,tblPühad[PARANDATUD],tblPühad[PÄEV]),0),6),INDEX(tblPühad[],MATCH(DATE(Kalendriaasta-(DAY(D5)>15)+(ROW()>6),MONTH(D5),DAY(D5)),IF(KuvaTähistamine,tblPühad[PARANDATUD],tblPühad[PÄEV]),0),2),\"\"),\"\"),\"\")","v":""},{"$f":"IFERROR(IF(KuvaPühad,IF(INDEX(tblPühad[],MATCH(DATE(Kalendriaasta-(DAY(E5)>15)+(ROW()>6),MONTH(E5),DAY(E5)),IF(KuvaTähistamine,tblPühad[PARANDATUD],tblPühad[PÄEV]),0),6),INDEX(tblPühad[],MATCH(DATE(Kalendriaasta-(DAY(E5)>15)+(ROW()>6),MONTH(E5),DAY(E5)),IF(KuvaTähistamine,tblPühad[PARANDATUD],tblPühad[PÄEV]),0),2),\"\"),\"\"),\"\")","v":"Kevadpüha"},{"$f":"IFERROR(IF(KuvaPühad,IF(INDEX(tblPühad[],MATCH(DATE(Kalendriaasta-(DAY(F5)>15)+(ROW()>6),MONTH(F5),DAY(F5)),IF(KuvaTähistamine,tblPühad[PARANDATUD],tblPühad[PÄEV]),0),6),INDEX(tblPühad[],MATCH(DATE(Kalendriaasta-(DAY(F5)>15)+(ROW()>6),MONTH(F5),DAY(F5)),IF(KuvaTähistamine,tblPühad[PARANDATUD],tblPühad[PÄEV]),0),2),\"\"),\"\"),\"\")","v":""},{"$f":"IFERROR(IF(KuvaPühad,IF(INDEX(tblPühad[],MATCH(DATE(Kalendriaasta-(DAY(G5)>15)+(ROW()>6),MONTH(G5),DAY(G5)),IF(KuvaTähistamine,tblPühad[PARANDATUD],tblPühad[PÄEV]),0),6),INDEX(tblPühad[],MATCH(DATE(Kalendriaasta-(DAY(G5)>15)+(ROW()>6),MONTH(G5),DAY(G5)),IF(KuvaTähistamine,tblPühad[PARANDATUD],tblPühad[PÄEV]),0),2),\"\"),\"\"),\"\")","v":""},{"$f":"IFERROR(IF(KuvaPühad,IF(INDEX(tblPühad[],MATCH(DATE(Kalendriaasta-(DAY(H5)>15)+(ROW()>6),MONTH(H5),DAY(H5)),IF(KuvaTähistamine,tblPühad[PARANDATUD],tblPühad[PÄEV]),0),6),INDEX(tblPühad[],MATCH(DATE(Kalendriaasta-(DAY(H5)>15)+(ROW()>6),MONTH(H5),DAY(H5)),IF(KuvaTähistamine,tblPühad[PARANDATUD],tblPühad[PÄEV]),0),2),\"\"),\"\"),\"\")","v":""}]
[null,{"$f":"Päevad+DATE(Kalendriaasta,7,1)-WEEKDAY(DATE(Kalendriaasta,7,1),(NädalaAlgus=\"Esmaspäev\")+1)+8","v":"2018-07-08"},"2018-07-09","2018-07-10","2018-07-11","2018-07-12","2018-07-13","2018-07-14"]
[null,{"$f":"IFERROR(IF(KuvaPühad,IF(INDEX(tblPühad[],MATCH(DATE(Kalendriaasta,MONTH(B7),DAY(B7)),IF(KuvaTähistamine,tblPühad[PARANDATUD],tblPühad[PÄEV]),0),6),INDEX(tblPühad[],MATCH(DATE(Kalendriaasta,MONTH(B7),DAY(B7)),IF(KuvaTähistamine,tblPühad[PARANDATUD],tblPühad[PÄEV]),0),2),\"\"),\"\"),\"\")","v":""},{"$f":"IFERROR(IF(KuvaPühad,IF(INDEX(tblPühad[],MATCH(DATE(Kalendriaasta,MONTH(C7),DAY(C7)),IF(KuvaTähistamine,tblPühad[PARANDATUD],tblPühad[PÄEV]),0),6),INDEX(tblPühad[],MATCH(DATE(Kalendriaasta,MONTH(C7),DAY(C7)),IF(KuvaTähistamine,tblPühad[PARANDATUD],tblPühad[PÄEV]),0),2),\"\"),\"\"),\"\")","v":""},{"$f":"IFERROR(IF(KuvaPühad,IF(INDEX(tblPühad[],MATCH(DATE(Kalendriaasta,MONTH(D7),DAY(D7)),IF(KuvaTähistamine,tblPühad[PARANDATUD],tblPühad[PÄEV]),0),6),INDEX(tblPühad[],MATCH(DATE(Kalendriaasta,MONTH(D7),DAY(D7)),IF(KuvaTähistamine,tblPühad[PARANDATUD],tblPühad[PÄEV]),0),2),\"\"),\"\"),\"\")","v":""},{"$f":"IFERROR(IF(KuvaPühad,IF(INDEX(tblPühad[],MATCH(DATE(Kalendriaasta,MONTH(E7),DAY(E7)),IF(KuvaTähistamine,tblPühad[PARANDATUD],tblPühad[PÄEV]),0),6),INDEX(tblPühad[],MATCH(DATE(Kalendriaasta,MONTH(E7),DAY(E7)),IF(KuvaTähistamine,tblPühad[PARANDATUD],tblPühad[PÄEV]),0),2),\"\"),\"\"),\"\")","v":""},{"$f":"IFERROR(IF(KuvaPühad,IF(INDEX(tblPühad[],MATCH(DATE(Kalendriaasta,MONTH(F7),DAY(F7)),IF(KuvaTähistamine,tblPühad[PARANDATUD],tblPühad[PÄEV]),0),6),INDEX(tblPühad[],MATCH(DATE(Kalendriaasta,MONTH(F7),DAY(F7)),IF(KuvaTähistamine,tblPühad[PARANDATUD],tblPühad[PÄEV]),0),2),\"\"),\"\"),\"\")","v":""},{"$f":"IFERROR(IF(KuvaPühad,IF(INDEX(tblPühad[],MATCH(DATE(Kalendriaasta,MONTH(G7),DAY(G7)),IF(KuvaTähistamine,tblPühad[PARANDATUD],tblPühad[PÄEV]),0),6),INDEX(tblPühad[],MATCH(DATE(Kalendriaasta,MONTH(G7),DAY(G7)),IF(KuvaTähistamine,tblPühad[PARANDATUD],tblPühad[PÄEV]),0),2),\"\"),\"\"),\"\")","v":""},{"$f":"IFERROR(IF(KuvaPühad,IF(INDEX(tblPühad[],MATCH(DATE(Kalendriaasta,MONTH(H7),DAY(H7)),IF(KuvaTähistamine,tblPühad[PARANDATUD],tblPühad[PÄEV]),0),6),INDEX(tblPühad[],MATCH(DATE(Kalendriaasta,MONTH(H7),DAY(H7)),IF(KuvaTähistamine,tblPühad[PARANDATUD],tblPühad[PÄEV]),0),2),\"\"),\"\"),\"\")","v":""}]
[null,{"$f":"Päevad+DATE(Kalendriaasta,7,1)-WEEKDAY(DATE(Kalendriaasta,7,1),(NädalaAlgus=\"Esmaspäev\")+1)+15","v":"2018-07-15"},"2018-07-16","2018-07-17","2018-07-18","2018-07-19","2018-07-20","2018-07-21"]
[null,{"$f":"IFERROR(IF(KuvaPühad,IF(INDEX(tblPühad[],MATCH(DATE(Kalendriaasta,MONTH(B9),DAY(B9)),IF(KuvaTähistamine,tblPühad[PARANDATUD],tblPühad[PÄEV]),0),6),INDEX(tblPühad[],MATCH(DATE(Kalendriaasta,MONTH(B9),DAY(B9)),IF(KuvaTähistamine,tblPühad[PARANDATUD],tblPühad[PÄEV]),0),2),\"\"),\"\"),\"\")","v":""},{"$f":"IFERROR(IF(KuvaPühad,IF(INDEX(tblPühad[],MATCH(DATE(Kalendriaasta,MONTH(C9),DAY(C9)),IF(KuvaTähistamine,tblPühad[PARANDATUD],tblPühad[PÄEV]),0),6),INDEX(tblPühad[],MATCH(DATE(Kalendriaasta,MONTH(C9),DAY(C9)),IF(KuvaTähistamine,tblPühad[PARANDATUD],tblPühad[PÄEV]),0),2),\"\"),\"\"),\"\")","v":""},{"$f":"IFERROR(IF(KuvaPühad,IF(INDEX(tblPühad[],MATCH(DATE(Kalendriaasta,MONTH(D9),DAY(D9)),IF(KuvaTähistamine,tblPühad[PARANDATUD],tblPühad[PÄEV]),0),6),INDEX(tblPühad[],MATCH(DATE(Kalendriaasta,MONTH(D9),DAY(D9)),IF(KuvaTähistamine,tblPühad[PARANDATUD],tblPühad[PÄEV]),0),2),\"\"),\"\"),\"\")","v":""},{"$f":"IFERROR(IF(KuvaPühad,IF(INDEX(tblPühad[],MATCH(DATE(Kalendriaasta,MONTH(E9),DAY(E9)),IF(KuvaTähistamine,tblPühad[PARANDATUD],tblPühad[PÄEV]),0),6),INDEX(tblPühad[],MATCH(DATE(Kalendriaasta,MONTH(E9),DAY(E9)),IF(KuvaTähistamine,tblPühad[PARANDATUD],tblPühad[PÄEV]),0),2),\"\"),\"\"),\"\")","v":""},{"$f":"IFERROR(IF(KuvaPühad,IF(INDEX(tblPühad[],MATCH(DATE(Kalendriaasta,MONTH(F9),DAY(F9)),IF(KuvaTähistamine,tblPühad[PARANDATUD],tblPühad[PÄEV]),0),6),INDEX(tblPühad[],MATCH(DATE(Kalendriaasta,MONTH(F9),DAY(F9)),IF(KuvaTähistamine,tblPühad[PARANDATUD],tblPühad[PÄEV]),0),2),\"\"),\"\"),\"\")","v":""},{"$f":"IFERROR(IF(KuvaPühad,IF(INDEX(tblPühad[],MATCH(DATE(Kalendriaasta,MONTH(G9),DAY(G9)),IF(KuvaTähistamine,tblPühad[PARANDATUD],tblPühad[PÄEV]),0),6),INDEX(tblPühad[],MATCH(DATE(Kalendriaasta,MONTH(G9),DAY(G9)),IF(KuvaTähistamine,tblPühad[PARANDATUD],tblPühad[PÄEV]),0),2),\"\"),\"\"),\"\")","v":""},{"$f":"IFERROR(IF(KuvaPühad,IF(INDEX(tblPühad[],MATCH(DATE(Kalendriaasta,MONTH(H9),DAY(H9)),IF(KuvaTähistamine,tblPühad[PARANDATUD],tblPühad[PÄEV]),0),6),INDEX(tblPühad[],MATCH(DATE(Kalendriaasta,MONTH(H9),DAY(H9)),IF(KuvaTähistamine,tblPühad[PARANDATUD],tblPühad[PÄEV]),0),2),\"\"),\"\"),\"\")","v":""}]
[null,{"$f":"Päevad+DATE(Kalendriaasta,7,1)-WEEKDAY(DATE(Kalendriaasta,7,1),(NädalaAlgus=\"Esmaspäev\")+1)+22","v":"2018-07-22"},"2018-07-23","2018-07-24","2018-07-25","2018-07-26","2018-07-27","2018-07-28"]
[null,{"$f":"IFERROR(IF(KuvaPühad,IF(INDEX(tblPühad[],MATCH(DATE(Kalendriaasta,MONTH(B11),DAY(B11)),IF(KuvaTähistamine,tblPühad[PARANDATUD],tblPühad[PÄEV]),0),6),INDEX(tblPühad[],MATCH(DATE(Kalendriaasta,MONTH(B11),DAY(B11)),IF(KuvaTähistamine,tblPühad[PARANDATUD],tblPühad[PÄEV]),0),2),\"\"),\"\"),\"\")","v":""},{"$f":"IFERROR(IF(KuvaPühad,IF(INDEX(tblPühad[],MATCH(DATE(Kalendriaasta,MONTH(C11),DAY(C11)),IF(KuvaTähistamine,tblPühad[PARANDATUD],tblPühad[PÄEV]),0),6),INDEX(tblPühad[],MATCH(DATE(Kalendriaasta,MONTH(C11),DAY(C11)),IF(KuvaTähistamine,tblPühad[PARANDATUD],tblPühad[PÄEV]),0),2),\"\"),\"\"),\"\")","v":""},{"$f":"IFERROR(IF(KuvaPühad,IF(INDEX(tblPühad[],MATCH(DATE(Kalendriaasta,MONTH(D11),DAY(D11)),IF(KuvaTähistamine,tblPühad[PARANDATUD],tblPühad[PÄEV]),0),6),INDEX(tblPühad[],MATCH(DATE(Kalendriaasta,MONTH(D11),DAY(D11)),IF(KuvaTähistamine,tblPühad[PARANDATUD],tblPühad[PÄEV]),0),2),\"\"),\"\"),\"\")","v":""},{"$f":"IFERROR(IF(KuvaPühad,IF(INDEX(tblPühad[],MATCH(DATE(Kalendriaasta,MONTH(E11),DAY(E11)),IF(KuvaTähistamine,tblPühad[PARANDATUD],tblPühad[PÄEV]),0),6),INDEX(tblPühad[],MATCH(DATE(Kalendriaasta,MONTH(E11),DAY(E11)),IF(KuvaTähistamine,tblPühad[PARANDATUD],tblPühad[PÄEV]),0),2),\"\"),\"\"),\"\")","v":""},{"$f":"IFERROR(IF(KuvaPühad,IF(INDEX(tblPühad[],MATCH(DATE(Kalendriaasta,MONTH(F11),DAY(F11)),IF(KuvaTähistamine,tblPühad[PARANDATUD],tblPühad[PÄEV]),0),6),INDEX(tblPühad[],MATCH(DATE(Kalendriaasta,MONTH(F11),DAY(F11)),IF(KuvaTähistamine,tblPühad[PARANDATUD],tblPühad[PÄEV]),0),2),\"\"),\"\"),\"\")","v":""},{"$f":"IFERROR(IF(KuvaPühad,IF(INDEX(tblPühad[],MATCH(DATE(Kalendriaasta,MONTH(G11),DAY(G11)),IF(KuvaTähistamine,tblPühad[PARANDATUD],tblPühad[PÄEV]),0),6),INDEX(tblPühad[],MATCH(DATE(Kalendriaasta,MONTH(G11),DAY(G11)),IF(KuvaTähistamine,tblPühad[PARANDATUD],tblPühad[PÄEV]),0),2),\"\"),\"\"),\"\")","v":""},{"$f":"IFERROR(IF(KuvaPühad,IF(INDEX(tblPühad[],MATCH(DATE(Kalendriaasta,MONTH(H11),DAY(H11)),IF(KuvaTähistamine,tblPühad[PARANDATUD],tblPühad[PÄEV]),0),6),INDEX(tblPühad[],MATCH(DATE(Kalendriaasta,MONTH(H11),DAY(H11)),IF(KuvaTähistamine,tblPühad[PARANDATUD],tblPühad[PÄEV]),0),2),\"\"),\"\"),\"\")","v":""}]
[null,{"$f":"Päevad+DATE(Kalendriaasta,7,1)-WEEKDAY(DATE(Kalendriaasta,7,1),(NädalaAlgus=\"Esmaspäev\")+1)+29","v":"2018-07-29"},"2018-07-30","2018-07-31","2018-08-01","2018-08-02","2018-08-03","2018-08-04"]
[null,{"$f":"IFERROR(IF(KuvaPühad,IF(INDEX(tblPühad[],MATCH(DATE(Kalendriaasta,MONTH(B13),DAY(B13)),IF(KuvaTähistamine,tblPühad[PARANDATUD],tblPühad[PÄEV]),0),6),INDEX(tblPühad[],MATCH(DATE(Kalendriaasta,MONTH(B13),DAY(B13)),IF(KuvaTähistamine,tblPühad[PARANDATUD],tblPühad[PÄEV]),0),2),\"\"),\"\"),\"\")","v":""},{"$f":"IFERROR(IF(KuvaPühad,IF(INDEX(tblPühad[],MATCH(DATE(Kalendriaasta,MONTH(C13),DAY(C13)),IF(KuvaTähistamine,tblPühad[PARANDATUD],tblPühad[PÄEV]),0),6),INDEX(tblPühad[],MATCH(DATE(Kalendriaasta,MONTH(C13),DAY(C13)),IF(KuvaTähistamine,tblPühad[PARANDATUD],tblPühad[PÄEV]),0),2),\"\"),\"\"),\"\")","v":""},{"$f":"IFERROR(IF(KuvaPühad,IF(INDEX(tblPühad[],MATCH(DATE(Kalendriaasta,MONTH(D13),DAY(D13)),IF(KuvaTähistamine,tblPühad[PARANDATUD],tblPühad[PÄEV]),0),6),INDEX(tblPühad[],MATCH(DATE(Kalendriaasta,MONTH(D13),DAY(D13)),IF(KuvaTähistamine,tblPühad[PARANDATUD],tblPühad[PÄEV]),0),2),\"\"),\"\"),\"\")","v":""},{"$f":"IFERROR(IF(KuvaPühad,IF(INDEX(tblPühad[],MATCH(DATE(Kalendriaasta,MONTH(E13),DAY(E13)),IF(KuvaTähistamine,tblPühad[PARANDATUD],tblPühad[PÄEV]),0),6),INDEX(tblPühad[],MATCH(DATE(Kalendriaasta,MONTH(E13),DAY(E13)),IF(KuvaTähistamine,tblPühad[PARANDATUD],tblPühad[PÄEV]),0),2),\"\"),\"\"),\"\")","v":""},{"$f":"IFERROR(IF(KuvaPühad,IF(INDEX(tblPühad[],MATCH(DATE(Kalendriaasta,MONTH(F13),DAY(F13)),IF(KuvaTähistamine,tblPühad[PARANDATUD],tblPühad[PÄEV]),0),6),INDEX(tblPühad[],MATCH(DATE(Kalendriaasta,MONTH(F13),DAY(F13)),IF(KuvaTähistamine,tblPühad[PARANDATUD],tblPühad[PÄEV]),0),2),\"\"),\"\"),\"\")","v":""},{"$f":"IFERROR(IF(KuvaPühad,IF(INDEX(tblPühad[],MATCH(DATE(Kalendriaasta,MONTH(G13),DAY(G13)),IF(KuvaTähistamine,tblPühad[PARANDATUD],tblPühad[PÄEV]),0),6),INDEX(tblPühad[],MATCH(DATE(Kalendriaasta,MONTH(G13),DAY(G13)),IF(KuvaTähistamine,tblPühad[PARANDATUD],tblPühad[PÄEV]),0),2),\"\"),\"\"),\"\")","v":""},{"$f":"IFERROR(IF(KuvaPühad,IF(INDEX(tblPühad[],MATCH(DATE(Kalendriaasta,MONTH(H13),DAY(H13)),IF(KuvaTähistamine,tblPühad[PARANDATUD],tblPühad[PÄEV]),0),6),INDEX(tblPühad[],MATCH(DATE(Kalendriaasta,MONTH(H13),DAY(H13)),IF(KuvaTähistamine,tblPühad[PARANDATUD],tblPühad[PÄEV]),0),2),\"\"),\"\"),\"\")","v":""}]
[null,{"$f":"Päevad+DATE(Kalendriaasta,7,1)-WEEKDAY(DATE(Kalendriaasta,7,1),(NädalaAlgus=\"Esmaspäev\")+1)+36","v":"2018-08-05"},"2018-08-06","MÄRKMED"]
[null,{"$f":"IFERROR(IF(KuvaPühad,IF(INDEX(tblPühad[],MATCH(DATE(Kalendriaasta,MONTH(B15),DAY(B15)),IF(KuvaTähistamine,tblPühad[PARANDATUD],tblPühad[PÄEV]),0),6),INDEX(tblPühad[],MATCH(DATE(Kalendriaasta,MONTH(B15),DAY(B15)),IF(KuvaTähistamine,tblPühad[PARANDATUD],tblPühad[PÄEV]),0),2),\"\"),\"\"),\"\")","v":""},{"$f":"IFERROR(IF(KuvaPühad,IF(INDEX(tblPühad[],MATCH(DATE(Kalendriaasta,MONTH(C15),DAY(C15)),IF(KuvaTähistamine,tblPühad[PARANDATUD],tblPühad[PÄEV]),0),6),INDEX(tblPühad[],MATCH(DATE(Kalendriaasta,MONTH(C15),DAY(C15)),IF(KuvaTähistamine,tblPühad[PARANDATUD],tblPühad[PÄEV]),0),2),\"\"),\"\"),\"\")","v":""}]

{"sheet":"August","index":8,"n_rows":16,"n_cols":8,"rows_kept":16,"merged":[[1,1,1,3],[14,3,14,7],[15,3,15,7],[16,1,16,7]]}
[]
[null,{"$f":"B9","v":"2018-08-12"}]
[]
[null,{"$f":"NädalaAlgus","v":"PÜHAPÄEV"},{"$f":"UPPER(TEXT(C5,\"dddd\"))","v":"ESMASPÄEV"},"TEISIPÄEV","KOLMAPÄEV","NELJAPÄEV","REEDE","LAUPÄEV"]
[null,{"$f":"Päevad+DATE(Kalendriaasta,8,1)-WEEKDAY(DATE(Kalendriaasta,8,1),(NädalaAlgus=\"Esmaspäev\")+1)+1","v":"2018-07-29"},"2018-07-30","2018-07-31","2018-08-01","2018-08-02","2018-08-03","2018-08-04"]
[null,{"$f":"IFERROR(IF(KuvaPühad,IF(INDEX(tblPühad[],MATCH(DATE(Kalendriaasta-(DAY(B5)>15)+(ROW()>6),MONTH(B5),DAY(B5)),IF(KuvaTähistamine,tblPühad[PARANDATUD],tblPühad[PÄEV]),0),6),INDEX(tblPühad[],MATCH(DATE(Kalendriaasta-(DAY(B5)>15)+(ROW()>6),MONTH(B5),DAY(B5)),IF(KuvaTähistamine,tblPühad[PARANDATUD],tblPühad[PÄEV]),0),2),\"\"),\"\"),\"\")","v":""},{"$f":"IFERROR(IF(KuvaPühad,IF(INDEX(tblPühad[],MATCH(DATE(Kalendriaasta-(DAY(C5)>15)+(ROW()>6),MONTH(C5),DAY(C5)),IF(KuvaTähistamine,tblPühad[PARANDATUD],tblPühad[PÄEV]),0),6),INDEX(tblPühad[],MATCH(DATE(Kalendriaasta-(DAY(C5)>15)+(ROW()>6),MONTH(C5),DAY(C5)),IF(KuvaTähistamine,tblPühad[PARANDATUD],tblPühad[PÄEV]),0),2),\"\"),\"\"),\"\")","v":""},{"$f":"IFERROR(IF(KuvaPühad,IF(INDEX(tblPühad[],MATCH(DATE(Kalendriaasta-(DAY(D5)>15)+(ROW()>6),MONTH(D5),DAY(D5)),IF(KuvaTähistamine,tblPühad[PARANDATUD],tblPühad[PÄEV]),0),6),INDEX(tblPühad[],MATCH(DATE(Kalendriaasta-(DAY(D5)>15)+(ROW()>6),MONTH(D5),DAY(D5)),IF(KuvaTähistamine,tblPühad[PARANDATUD],tblPühad[PÄEV]),0),2),\"\"),\"\"),\"\")","v":""},{"$f":"IFERROR(IF(KuvaPühad,IF(INDEX(tblPühad[],MATCH(DATE(Kalendriaasta-(DAY(E5)>15)+(ROW()>6),MONTH(E5),DAY(E5)),IF(KuvaTähistamine,tblPühad[PARANDATUD],tblPühad[PÄEV]),0),6),INDEX(tblPühad[],MATCH(DATE(Kalendriaasta-(DAY(E5)>15)+(ROW()>6),MONTH(E5),DAY(E5)),IF(KuvaTähistamine,tblPühad[PARANDATUD],tblPühad[PÄEV]),0),2),\"\"),\"\"),\"\")","v":""},{"$f":"IFERROR(IF(KuvaPühad,IF(INDEX(tblPühad[],MATCH(DATE(Kalendriaasta-(DAY(F5)>15)+(ROW()>6),MONTH(F5),DAY(F5)),IF(KuvaTähistamine,tblPühad[PARANDATUD],tblPühad[PÄEV]),0),6),INDEX(tblPühad[],MATCH(DATE(Kalendriaasta-(DAY(F5)>15)+(ROW()>6),MONTH(F5),DAY(F5)),IF(KuvaTähistamine,tblPühad[PARANDATUD],tblPühad[PÄEV]),0),2),\"\"),\"\"),\"\")","v":""},{"$f":"IFERROR(IF(KuvaPühad,IF(INDEX(tblPühad[],MATCH(DATE(Kalendriaasta-(DAY(G5)>15)+(ROW()>6),MONTH(G5),DAY(G5)),IF(KuvaTähistamine,tblPühad[PARANDATUD],tblPühad[PÄEV]),0),6),INDEX(tblPühad[],MATCH(DATE(Kalendriaasta-(DAY(G5)>15)+(ROW()>6),MONTH(G5),DAY(G5)),IF(KuvaTähistamine,tblPühad[PARANDATUD],tblPühad[PÄEV]),0),2),\"\"),\"\"),\"\")","v":""},{"$f":"IFERROR(IF(KuvaPühad,IF(INDEX(tblPühad[],MATCH(DATE(Kalendriaasta-(DAY(H5)>15)+(ROW()>6),MONTH(H5),DAY(H5)),IF(KuvaTähistamine,tblPühad[PARANDATUD],tblPühad[PÄEV]),0),6),INDEX(tblPühad[],MATCH(DATE(Kalendriaasta-(DAY(H5)>15)+(ROW()>6),MONTH(H5),DAY(H5)),IF(KuvaTähistamine,tblPühad[PARANDATUD],tblPühad[PÄEV]),0),2),\"\"),\"\"),\"\")","v":""}]
[null,{"$f":"Päevad+DATE(Kalendriaasta,8,1)-WEEKDAY(DATE(Kalendriaasta,8,1),(NädalaAlgus=\"Esmaspäev\")+1)+8","v":"2018-08-05"},"2018-08-06","2018-08-07","2018-08-08","2018-08-09","2018-08-10","2018-08-11"]
[null,{"$f":"IFERROR(IF(KuvaPühad,IF(INDEX(tblPühad[],MATCH(DATE(Kalendriaasta,MONTH(B7),DAY(B7)),IF(KuvaTähistamine,tblPühad[PARANDATUD],tblPühad[PÄEV]),0),6),INDEX(tblPühad[],MATCH(DATE(Kalendriaasta,MONTH(B7),DAY(B7)),IF(KuvaTähistamine,tblPühad[PARANDATUD],tblPühad[PÄEV]),0),2),\"\"),\"\"),\"\")","v":""},{"$f":"IFERROR(IF(KuvaPühad,IF(INDEX(tblPühad[],MATCH(DATE(Kalendriaasta,MONTH(C7),DAY(C7)),IF(KuvaTähistamine,tblPühad[PARANDATUD],tblPühad[PÄEV]),0),6),INDEX(tblPühad[],MATCH(DATE(Kalendriaasta,MONTH(C7),DAY(C7)),IF(KuvaTähistamine,tblPühad[PARANDATUD],tblPühad[PÄEV]),0),2),\"\"),\"\"),\"\")","v":""},{"$f":"IFERROR(IF(KuvaPühad,IF(INDEX(tblPühad[],MATCH(DATE(Kalendriaasta,MONTH(D7),DAY(D7)),IF(KuvaTähistamine,tblPühad[PARANDATUD],tblPühad[PÄEV]),0),6),INDEX(tblPühad[],MATCH(DATE(Kalendriaasta,MONTH(D7),DAY(D7)),IF(KuvaTähistamine,tblPühad[PARANDATUD],tblPühad[PÄEV]),0),2),\"\"),\"\"),\"\")","v":""},{"$f":"IFERROR(IF(KuvaPühad,IF(INDEX(tblPühad[],MATCH(DATE(Kalendriaasta,MONTH(E7),DAY(E7)),IF(KuvaTähistamine,tblPühad[PARANDATUD],tblPühad[PÄEV]),0),6),INDEX(tblPühad[],MATCH(DATE(Kalendriaasta,MONTH(E7),DAY(E7)),IF(KuvaTähistamine,tblPühad[PARANDATUD],tblPühad[PÄEV]),0),2),\"\"),\"\"),\"\")","v":""},{"$f":"IFERROR(IF(KuvaPühad,IF(INDEX(tblPühad[],MATCH(DATE(Kalendriaasta,MONTH(F7),DAY(F7)),IF(KuvaTähistamine,tblPühad[PARANDATUD],tblPühad[PÄEV]),0),6),INDEX(tblPühad[],MATCH(DATE(Kalendriaasta,MONTH(F7),DAY(F7)),IF(KuvaTähistamine,tblPühad[PARANDATUD],tblPühad[PÄEV]),0),2),\"\"),\"\"),\"\")","v":""},{"$f":"IFERROR(IF(KuvaPühad,IF(INDEX(tblPühad[],MATCH(DATE(Kalendriaasta,MONTH(G7),DAY(G7)),IF(KuvaTähistamine,tblPühad[PARANDATUD],tblPühad[PÄEV]),0),6),INDEX(tblPühad[],MATCH(DATE(Kalendriaasta,MONTH(G7),DAY(G7)),IF(KuvaTähistamine,tblPühad[PARANDATUD],tblPühad[PÄEV]),0),2),\"\"),\"\"),\"\")","v":""},{"$f":"IFERROR(IF(KuvaPühad,IF(INDEX(tblPühad[],MATCH(DATE(Kalendriaasta,MONTH(H7),DAY(H7)),IF(KuvaTähistamine,tblPühad[PARANDATUD],tblPühad[PÄEV]),0),6),INDEX(tblPühad[],MATCH(DATE(Kalendriaasta,MONTH(H7),DAY(H7)),IF(KuvaTähistamine,tblPühad[PARANDATUD],tblPühad[PÄEV]),0),2),\"\"),\"\"),\"\")","v":""}]
[null,{"$f":"Päevad+DATE(Kalendriaasta,8,1)-WEEKDAY(DATE(Kalendriaasta,8,1),(NädalaAlgus=\"Esmaspäev\")+1)+15","v":"2018-08-12"},"2018-08-13","2018-08-14","2018-08-15","2018-08-16","2018-08-17","2018-08-18"]
[null,{"$f":"IFERROR(IF(KuvaPühad,IF(INDEX(tblPühad[],MATCH(DATE(Kalendriaasta,MONTH(B9),DAY(B9)),IF(KuvaTähistamine,tblPühad[PARANDATUD],tblPühad[PÄEV]),0),6),INDEX(tblPühad[],MATCH(DATE(Kalendriaasta,MONTH(B9),DAY(B9)),IF(KuvaTähistamine,tblPühad[PARANDATUD],tblPühad[PÄEV]),0),2),\"\"),\"\"),\"\")","v":""},{"$f":"IFERROR(IF(KuvaPühad,IF(INDEX(tblPühad[],MATCH(DATE(Kalendriaasta,MONTH(C9),DAY(C9)),IF(KuvaTähistamine,tblPühad[PARANDATUD],tblPühad[PÄEV]),0),6),INDEX(tblPühad[],MATCH(DATE(Kalendriaasta,MONTH(C9),DAY(C9)),IF(KuvaTähistamine,tblPühad[PARANDATUD],tblPühad[PÄEV]),0),2),\"\"),\"\"),\"\")","v":""},{"$f":"IFERROR(IF(KuvaPühad,IF(INDEX(tblPühad[],MATCH(DATE(Kalendriaasta,MONTH(D9),DAY(D9)),IF(KuvaTähistamine,tblPühad[PARANDATUD],tblPühad[PÄEV]),0),6),INDEX(tblPühad[],MATCH(DATE(Kalendriaasta,MONTH(D9),DAY(D9)),IF(KuvaTähistamine,tblPühad[PARANDATUD],tblPühad[PÄEV]),0),2),\"\"),\"\"),\"\")","v":""},{"$f":"IFERROR(IF(KuvaPühad,IF(INDEX(tblPühad[],MATCH(DATE(Kalendriaasta,MONTH(E9),DAY(E9)),IF(KuvaTähistamine,tblPühad[PARANDATUD],tblPühad[PÄEV]),0),6),INDEX(tblPühad[],MATCH(DATE(Kalendriaasta,MONTH(E9),DAY(E9)),IF(KuvaTähistamine,tblPühad[PARANDATUD],tblPühad[PÄEV]),0),2),\"\"),\"\"),\"\")","v":""},{"$f":"IFERROR(IF(KuvaPühad,IF(INDEX(tblPühad[],MATCH(DATE(Kalendriaasta,MONTH(F9),DAY(F9)),IF(KuvaTähistamine,tblPühad[PARANDATUD],tblPühad[PÄEV]),0),6),INDEX(tblPühad[],MATCH(DATE(Kalendriaasta,MONTH(F9),DAY(F9)),IF(KuvaTähistamine,tblPühad[PARANDATUD],tblPühad[PÄEV]),0),2),\"\"),\"\"),\"\")","v":""},{"$f":"IFERROR(IF(KuvaPühad,IF(INDEX(tblPühad[],MATCH(DATE(Kalendriaasta,MONTH(G9),DAY(G9)),IF(KuvaTähistamine,tblPühad[PARANDATUD],tblPühad[PÄEV]),0),6),INDEX(tblPühad[],MATCH(DATE(Kalendriaasta,MONTH(G9),DAY(G9)),IF(KuvaTähistamine,tblPühad[PARANDATUD],tblPühad[PÄEV]),0),2),\"\"),\"\"),\"\")","v":""},{"$f":"IFERROR(IF(KuvaPühad,IF(INDEX(tblPühad[],MATCH(DATE(Kalendriaasta,MONTH(H9),DAY(H9)),IF(KuvaTähistamine,tblPühad[PARANDATUD],tblPühad[PÄEV]),0),6),INDEX(tblPühad[],MATCH(DATE(Kalendriaasta,MONTH(H9),DAY(H9)),IF(KuvaTähistamine,tblPühad[PARANDATUD],tblPühad[PÄEV]),0),2),\"\"),\"\"),\"\")","v":""}]
[null,{"$f":"Päevad+DATE(Kalendriaasta,8,1)-WEEKDAY(DATE(Kalendriaasta,8,1),(NädalaAlgus=\"Esmaspäev\")+1)+22","v":"2018-08-19"},"2018-08-20","2018-08-21","2018-08-22","2018-08-23","2018-08-24","2018-08-25"]
[null,{"$f":"IFERROR(IF(KuvaPühad,IF(INDEX(tblPühad[],MATCH(DATE(Kalendriaasta,MONTH(B11),DAY(B11)),IF(KuvaTähistamine,tblPühad[PARANDATUD],tblPühad[PÄEV]),0),6),INDEX(tblPühad[],MATCH(DATE(Kalendriaasta,MONTH(B11),DAY(B11)),IF(KuvaTähistamine,tblPühad[PARANDATUD],tblPühad[PÄEV]),0),2),\"\"),\"\"),\"\")","v":""},{"$f":"IFERROR(IF(KuvaPühad,IF(INDEX(tblPühad[],MATCH(DATE(Kalendriaasta,MONTH(C11),DAY(C11)),IF(KuvaTähistamine,tblPühad[PARANDATUD],tblPühad[PÄEV]),0),6),INDEX(tblPühad[],MATCH(DATE(Kalendriaasta,MONTH(C11),DAY(C11)),IF(KuvaTähistamine,tblPühad[PARANDATUD],tblPühad[PÄEV]),0),2),\"\"),\"\"),\"\")","v":""},{"$f":"IFERROR(IF(KuvaPühad,IF(INDEX(tblPühad[],MATCH(DATE(Kalendriaasta,MONTH(D11),DAY(D11)),IF(KuvaTähistamine,tblPühad[PARANDATUD],tblPühad[PÄEV]),0),6),INDEX(tblPühad[],MATCH(DATE(Kalendriaasta,MONTH(D11),DAY(D11)),IF(KuvaTähistamine,tblPühad[PARANDATUD],tblPühad[PÄEV]),0),2),\"\"),\"\"),\"\")","v":""},{"$f":"IFERROR(IF(KuvaPühad,IF(INDEX(tblPühad[],MATCH(DATE(Kalendriaasta,MONTH(E11),DAY(E11)),IF(KuvaTähistamine,tblPühad[PARANDATUD],tblPühad[PÄEV]),0),6),INDEX(tblPühad[],MATCH(DATE(Kalendriaasta,MONTH(E11),DAY(E11)),IF(KuvaTähistamine,tblPühad[PARANDATUD],tblPühad[PÄEV]),0),2),\"\"),\"\"),\"\")","v":""},{"$f":"IFERROR(IF(KuvaPühad,IF(INDEX(tblPühad[],MATCH(DATE(Kalendriaasta,MONTH(F11),DAY(F11)),IF(KuvaTähistamine,tblPühad[PARANDATUD],tblPühad[PÄEV]),0),6),INDEX(tblPühad[],MATCH(DATE(Kalendriaasta,MONTH(F11),DAY(F11)),IF(KuvaTähistamine,tblPühad[PARANDATUD],tblPühad[PÄEV]),0),2),\"\"),\"\"),\"\")","v":""},{"$f":"IFERROR(IF(KuvaPühad,IF(INDEX(tblPühad[],MATCH(DATE(Kalendriaasta,MONTH(G11),DAY(G11)),IF(KuvaTähistamine,tblPühad[PARANDATUD],tblPühad[PÄEV]),0),6),INDEX(tblPühad[],MATCH(DATE(Kalendriaasta,MONTH(G11),DAY(G11)),IF(KuvaTähistamine,tblPühad[PARANDATUD],tblPühad[PÄEV]),0),2),\"\"),\"\"),\"\")","v":""},{"$f":"IFERROR(IF(KuvaPühad,IF(INDEX(tblPühad[],MATCH(DATE(Kalendriaasta,MONTH(H11),DAY(H11)),IF(KuvaTähistamine,tblPühad[PARANDATUD],tblPühad[PÄEV]),0),6),INDEX(tblPühad[],MATCH(DATE(Kalendriaasta,MONTH(H11),DAY(H11)),IF(KuvaTähistamine,tblPühad[PARANDATUD],tblPühad[PÄEV]),0),2),\"\"),\"\"),\"\")","v":""}]
[null,{"$f":"Päevad+DATE(Kalendriaasta,8,1)-WEEKDAY(DATE(Kalendriaasta,8,1),(NädalaAlgus=\"Esmaspäev\")+1)+29","v":"2018-08-26"},"2018-08-27","2018-08-28","2018-08-29","2018-08-30","2018-08-31","2018-09-01"]
[null,{"$f":"IFERROR(IF(KuvaPühad,IF(INDEX(tblPühad[],MATCH(DATE(Kalendriaasta,MONTH(B13),DAY(B13)),IF(KuvaTähistamine,tblPühad[PARANDATUD],tblPühad[PÄEV]),0),6),INDEX(tblPühad[],MATCH(DATE(Kalendriaasta,MONTH(B13),DAY(B13)),IF(KuvaTähistamine,tblPühad[PARANDATUD],tblPühad[PÄEV]),0),2),\"\"),\"\"),\"\")","v":""},{"$f":"IFERROR(IF(KuvaPühad,IF(INDEX(tblPühad[],MATCH(DATE(Kalendriaasta,MONTH(C13),DAY(C13)),IF(KuvaTähistamine,tblPühad[PARANDATUD],tblPühad[PÄEV]),0),6),INDEX(tblPühad[],MATCH(DATE(Kalendriaasta,MONTH(C13),DAY(C13)),IF(KuvaTähistamine,tblPühad[PARANDATUD],tblPühad[PÄEV]),0),2),\"\"),\"\"),\"\")","v":""},{"$f":"IFERROR(IF(KuvaPühad,IF(INDEX(tblPühad[],MATCH(DATE(Kalendriaasta,MONTH(D13),DAY(D13)),IF(KuvaTähistamine,tblPühad[PARANDATUD],tblPühad[PÄEV]),0),6),INDEX(tblPühad[],MATCH(DATE(Kalendriaasta,MONTH(D13),DAY(D13)),IF(KuvaTähistamine,tblPühad[PARANDATUD],tblPühad[PÄEV]),0),2),\"\"),\"\"),\"\")","v":""},{"$f":"IFERROR(IF(KuvaPühad,IF(INDEX(tblPühad[],MATCH(DATE(Kalendriaasta,MONTH(E13),DAY(E13)),IF(KuvaTähistamine,tblPühad[PARANDATUD],tblPühad[PÄEV]),0),6),INDEX(tblPühad[],MATCH(DATE(Kalendriaasta,MONTH(E13),DAY(E13)),IF(KuvaTähistamine,tblPühad[PARANDATUD],tblPühad[PÄEV]),0),2),\"\"),\"\"),\"\")","v":""},{"$f":"IFERROR(IF(KuvaPühad,IF(INDEX(tblPühad[],MATCH(DATE(Kalendriaasta,MONTH(F13),DAY(F13)),IF(KuvaTähistamine,tblPühad[PARANDATUD],tblPühad[PÄEV]),0),6),INDEX(tblPühad[],MATCH(DATE(Kalendriaasta,MONTH(F13),DAY(F13)),IF(KuvaTähistamine,tblPühad[PARANDATUD],tblPühad[PÄEV]),0),2),\"\"),\"\"),\"\")","v":""},{"$f":"IFERROR(IF(KuvaPühad,IF(INDEX(tblPühad[],MATCH(DATE(Kalendriaasta,MONTH(G13),DAY(G13)),IF(KuvaTähistamine,tblPühad[PARANDATUD],tblPühad[PÄEV]),0),6),INDEX(tblPühad[],MATCH(DATE(Kalendriaasta,MONTH(G13),DAY(G13)),IF(KuvaTähistamine,tblPühad[PARANDATUD],tblPühad[PÄEV]),0),2),\"\"),\"\"),\"\")","v":""},{"$f":"IFERROR(IF(KuvaPühad,IF(INDEX(tblPühad[],MATCH(DATE(Kalendriaasta,MONTH(H13),DAY(H13)),IF(KuvaTähistamine,tblPühad[PARANDATUD],tblPühad[PÄEV]),0),6),INDEX(tblPühad[],MATCH(DATE(Kalendriaasta,MONTH(H13),DAY(H13)),IF(KuvaTähistamine,tblPühad[PARANDATUD],tblPühad[PÄEV]),0),2),\"\"),\"\"),\"\")","v":""}]
[null,{"$f":"Päevad+DATE(Kalendriaasta,8,1)-WEEKDAY(DATE(Kalendriaasta,8,1),(NädalaAlgus=\"Esmaspäev\")+1)+36","v":"2018-09-02"},"2018-09-03","MÄRKMED"]
[null,{"$f":"IFERROR(IF(KuvaPühad,IF(INDEX(tblPühad[],MATCH(DATE(Kalendriaasta,MONTH(B15),DAY(B15)),IF(KuvaTähistamine,tblPühad[PARANDATUD],tblPühad[PÄEV]),0),6),INDEX(tblPühad[],MATCH(DATE(Kalendriaasta,MONTH(B15),DAY(B15)),IF(KuvaTähistamine,tblPühad[PARANDATUD],tblPühad[PÄEV]),0),2),\"\"),\"\"),\"\")","v":""},{"$f":"IFERROR(IF(KuvaPühad,IF(INDEX(tblPühad[],MATCH(DATE(Kalendriaasta,MONTH(C15),DAY(C15)),IF(KuvaTähistamine,tblPühad[PARANDATUD],tblPühad[PÄEV]),0),6),INDEX(tblPühad[],MATCH(DATE(Kalendriaasta,MONTH(C15),DAY(C15)),IF(KuvaTähistamine,tblPühad[PARANDATUD],tblPühad[PÄEV]),0),2),\"\"),\"\"),\"\")","v":"Võidupüha"}]

{"sheet":"September","index":9,"n_rows":16,"n_cols":8,"rows_kept":16,"merged":[[1,1,1,3],[14,3,14,7],[15,3,15,7],[16,1,16,7]]}
[]
[null,{"$f":"B9","v":"2018-09-09"}]
[]
[null,{"$f":"NädalaAlgus","v":"PÜHAPÄEV"},{"$f":"UPPER(TEXT(C5,\"dddd\"))","v":"ESMASPÄEV"},"TEISIPÄEV","KOLMAPÄEV","NELJAPÄEV","REEDE","LAUPÄEV"]
[null,{"$f":"Päevad+DATE(Kalendriaasta,9,1)-WEEKDAY(DATE(Kalendriaasta,9,1),(NädalaAlgus=\"Esmaspäev\")+1)+1","v":"2018-08-26"},"2018-08-27","2018-08-28","2018-08-29","2018-08-30","2018-08-31","2018-09-01"]
[null,{"$f":"IFERROR(IF(KuvaPühad,IF(INDEX(tblPühad[],MATCH(DATE(Kalendriaasta-(DAY(B5)>15)+(ROW()>6),MONTH(B5),DAY(B5)),IF(KuvaTähistamine,tblPühad[PARANDATUD],tblPühad[PÄEV]),0),6),INDEX(tblPühad[],MATCH(DATE(Kalendriaasta-(DAY(B5)>15)+(ROW()>6),MONTH(B5),DAY(B5)),IF(KuvaTähistamine,tblPühad[PARANDATUD],tblPühad[PÄEV]),0),2),\"\"),\"\"),\"\")","v":""},{"$f":"IFERROR(IF(KuvaPühad,IF(INDEX(tblPühad[],MATCH(DATE(Kalendriaasta-(DAY(C5)>15)+(ROW()>6),MONTH(C5),DAY(C5)),IF(KuvaTähistamine,tblPühad[PARANDATUD],tblPühad[PÄEV]),0),6),INDEX(tblPühad[],MATCH(DATE(Kalendriaasta-(DAY(C5)>15)+(ROW()>6),MONTH(C5),DAY(C5)),IF(KuvaTähistamine,tblPühad[PARANDATUD],tblPühad[PÄEV]),0),2),\"\"),\"\"),\"\")","v":""},{"$f":"IFERROR(IF(KuvaPühad,IF(INDEX(tblPühad[],MATCH(DATE(Kalendriaasta-(DAY(D5)>15)+(ROW()>6),MONTH(D5),DAY(D5)),IF(KuvaTähistamine,tblPühad[PARANDATUD],tblPühad[PÄEV]),0),6),INDEX(tblPühad[],MATCH(DATE(Kalendriaasta-(DAY(D5)>15)+(ROW()>6),MONTH(D5),DAY(D5)),IF(KuvaTähistamine,tblPühad[PARANDATUD],tblPühad[PÄEV]),0),2),\"\"),\"\"),\"\")","v":""},{"$f":"IFERROR(IF(KuvaPühad,IF(INDEX(tblPühad[],MATCH(DATE(Kalendriaasta-(DAY(E5)>15)+(ROW()>6),MONTH(E5),DAY(E5)),IF(KuvaTähistamine,tblPühad[PARANDATUD],tblPühad[PÄEV]),0),6),INDEX(tblPühad[],MATCH(DATE(Kalendriaasta-(DAY(E5)>15)+(ROW()>6),MONTH(E5),DAY(E5)),IF(KuvaTähistamine,tblPühad[PARANDATUD],tblPühad[PÄEV]),0),2),\"\"),\"\"),\"\")","v":""},{"$f":"IFERROR(IF(KuvaPühad,IF(INDEX(tblPühad[],MATCH(DATE(Kalendriaasta-(DAY(F5)>15)+(ROW()>6),MONTH(F5),DAY(F5)),IF(KuvaTähistamine,tblPühad[PARANDATUD],tblPühad[PÄEV]),0),6),INDEX(tblPühad[],MATCH(DATE(Kalendriaasta-(DAY(F5)>15)+(ROW()>6),MONTH(F5),DAY(F5)),IF(KuvaTähistamine,tblPühad[PARANDATUD],tblPühad[PÄEV]),0),2),\"\"),\"\"),\"\")","v":""},{"$f":"IFERROR(IF(KuvaPühad,IF(INDEX(tblPühad[],MATCH(DATE(Kalendriaasta-(DAY(G5)>15)+(ROW()>6),MONTH(G5),DAY(G5)),IF(KuvaTähistamine,tblPühad[PARANDATUD],tblPühad[PÄEV]),0),6),INDEX(tblPühad[],MATCH(DATE(Kalendriaasta-(DAY(G5)>15)+(ROW()>6),MONTH(G5),DAY(G5)),IF(KuvaTähistamine,tblPühad[PARANDATUD],tblPühad[PÄEV]),0),2),\"\"),\"\"),\"\")","v":""},{"$f":"IFERROR(IF(KuvaPühad,IF(INDEX(tblPühad[],MATCH(DATE(Kalendriaasta-(DAY(H5)>15)+(ROW()>6),MONTH(H5),DAY(H5)),IF(KuvaTähistamine,tblPühad[PARANDATUD],tblPühad[PÄEV]),0),6),INDEX(tblPühad[],MATCH(DATE(Kalendriaasta-(DAY(H5)>15)+(ROW()>6),MONTH(H5),DAY(H5)),IF(KuvaTähistamine,tblPühad[PARANDATUD],tblPühad[PÄEV]),0),2),\"\"),\"\"),\"\")","v":""}]
[null,{"$f":"Päevad+DATE(Kalendriaasta,9,1)-WEEKDAY(DATE(Kalendriaasta,9,1),(NädalaAlgus=\"Esmaspäev\")+1)+8","v":"2018-09-02"},"2018-09-03","2018-09-04","2018-09-05","2018-09-06","2018-09-07","2018-09-08"]
[null,{"$f":"IFERROR(IF(KuvaPühad,IF(INDEX(tblPühad[],MATCH(DATE(Kalendriaasta,MONTH(B7),DAY(B7)),IF(KuvaTähistamine,tblPühad[PARANDATUD],tblPühad[PÄEV]),0),6),INDEX(tblPühad[],MATCH(DATE(Kalendriaasta,MONTH(B7),DAY(B7)),IF(KuvaTähistamine,tblPühad[PARANDATUD],tblPühad[PÄEV]),0),2),\"\"),\"\"),\"\")","v":""},{"$f":"IFERROR(IF(KuvaPühad,IF(INDEX(tblPühad[],MATCH(DATE(Kalendriaasta,MONTH(C7),DAY(C7)),IF(KuvaTähistamine,tblPühad[PARANDATUD],tblPühad[PÄEV]),0),6),INDEX(tblPühad[],MATCH(DATE(Kalendriaasta,MONTH(C7),DAY(C7)),IF(KuvaTähistamine,tblPühad[PARANDATUD],tblPühad[PÄEV]),0),2),\"\"),\"\"),\"\")","v":"Võidupüha"},{"$f":"IFERROR(IF(KuvaPühad,IF(INDEX(tblPühad[],MATCH(DATE(Kalendriaasta,MONTH(D7),DAY(D7)),IF(KuvaTähistamine,tblPühad[PARANDATUD],tblPühad[PÄEV]),0),6),INDEX(tblPühad[],MATCH(DATE(Kalendriaasta,MONTH(D7),DAY(D7)),IF(KuvaTähistamine,tblPühad[PARANDATUD],tblPühad[PÄEV]),0),2),\"\"),\"\"),\"\")","v":""},{"$f":"IFERROR(IF(KuvaPühad,IF(INDEX(tblPühad[],MATCH(DATE(Kalendriaasta,MONTH(E7),DAY(E7)),IF(KuvaTähistamine,tblPühad[PARANDATUD],tblPühad[PÄEV]),0),6),INDEX(tblPühad[],MATCH(DATE(Kalendriaasta,MONTH(E7),DAY(E7)),IF(KuvaTähistamine,tblPühad[PARANDATUD],tblPühad[PÄEV]),0),2),\"\"),\"\"),\"\")","v":""},{"$f":"IFERROR(IF(KuvaPühad,IF(INDEX(tblPühad[],MATCH(DATE(Kalendriaasta,MONTH(F7),DAY(F7)),IF(KuvaTähistamine,tblPühad[PARANDATUD],tblPühad[PÄEV]),0),6),INDEX(tblPühad[],MATCH(DATE(Kalendriaasta,MONTH(F7),DAY(F7)),IF(KuvaTähistamine,tblPühad[PARANDATUD],tblPühad[PÄEV]),0),2),\"\"),\"\"),\"\")","v":""},{"$f":"IFERROR(IF(KuvaPühad,IF(INDEX(tblPühad[],MATCH(DATE(Kalendriaasta,MONTH(G7),DAY(G7)),IF(KuvaTähistamine,tblPühad[PARANDATUD],tblPühad[PÄEV]),0),6),INDEX(tblPühad[],MATCH(DATE(Kalendriaasta,MONTH(G7),DAY(G7)),IF(KuvaTähistamine,tblPühad[PARANDATUD],tblPühad[PÄEV]),0),2),\"\"),\"\"),\"\")","v":""},{"$f":"IFERROR(IF(KuvaPühad,IF(INDEX(tblPühad[],MATCH(DATE(Kalendriaasta,MONTH(H7),DAY(H7)),IF(KuvaTähistamine,tblPühad[PARANDATUD],tblPühad[PÄEV]),0),6),INDEX(tblPühad[],MATCH(DATE(Kalendriaasta,MONTH(H7),DAY(H7)),IF(KuvaTähistamine,tblPühad[PARANDATUD],tblPühad[PÄEV]),0),2),\"\"),\"\"),\"\")","v":""}]
[null,{"$f":"Päevad+DATE(Kalendriaasta,9,1)-WEEKDAY(DATE(Kalendriaasta,9,1),(NädalaAlgus=\"Esmaspäev\")+1)+15","v":"2018-09-09"},"2018-09-10","2018-09-11","2018-09-12","2018-09-13","2018-09-14","2018-09-15"]
[null,{"$f":"IFERROR(IF(KuvaPühad,IF(INDEX(tblPühad[],MATCH(DATE(Kalendriaasta,MONTH(B9),DAY(B9)),IF(KuvaTähistamine,tblPühad[PARANDATUD],tblPühad[PÄEV]),0),6),INDEX(tblPühad[],MATCH(DATE(Kalendriaasta,MONTH(B9),DAY(B9)),IF(KuvaTähistamine,tblPühad[PARANDATUD],tblPühad[PÄEV]),0),2),\"\"),\"\"),\"\")","v":""},{"$f":"IFERROR(IF(KuvaPühad,IF(INDEX(tblPühad[],MATCH(DATE(Kalendriaasta,MONTH(C9),DAY(C9)),IF(KuvaTähistamine,tblPühad[PARANDATUD],tblPühad[PÄEV]),0),6),INDEX(tblPühad[],MATCH(DATE(Kalendriaasta,MONTH(C9),DAY(C9)),IF(KuvaTähistamine,tblPühad[PARANDATUD],tblPühad[PÄEV]),0),2),\"\"),\"\"),\"\")","v":""},{"$f":"IFERROR(IF(KuvaPühad,IF(INDEX(tblPühad[],MATCH(DATE(Kalendriaasta,MONTH(D9),DAY(D9)),IF(KuvaTähistamine,tblPühad[PARANDATUD],tblPühad[PÄEV]),0),6),INDEX(tblPühad[],MATCH(DATE(Kalendriaasta,MONTH(D9),DAY(D9)),IF(KuvaTähistamine,tblPühad[PARANDATUD],tblPühad[PÄEV]),0),2),\"\"),\"\"),\"\")","v":""},{"$f":"IFERROR(IF(KuvaPühad,IF(INDEX(tblPühad[],MATCH(DATE(Kalendriaasta,MONTH(E9),DAY(E9)),IF(KuvaTähistamine,tblPühad[PARANDATUD],tblPühad[PÄEV]),0),6),INDEX(tblPühad[],MATCH(DATE(Kalendriaasta,MONTH(E9),DAY(E9)),IF(KuvaTähistamine,tblPühad[PARANDATUD],tblPühad[PÄEV]),0),2),\"\"),\"\"),\"\")","v":""},{"$f":"IFERROR(IF(KuvaPühad,IF(INDEX(tblPühad[],MATCH(DATE(Kalendriaasta,MONTH(F9),DAY(F9)),IF(KuvaTähistamine,tblPühad[PARANDATUD],tblPühad[PÄEV]),0),6),INDEX(tblPühad[],MATCH(DATE(Kalendriaasta,MONTH(F9),DAY(F9)),IF(KuvaTähistamine,tblPühad[PARANDATUD],tblPühad[PÄEV]),0),2),\"\"),\"\"),\"\")","v":""},{"$f":"IFERROR(IF(KuvaPühad,IF(INDEX(tblPühad[],MATCH(DATE(Kalendriaasta,MONTH(G9),DAY(G9)),IF(KuvaTähistamine,tblPühad[PARANDATUD],tblPühad[PÄEV]),0),6),INDEX(tblPühad[],MATCH(DATE(Kalendriaasta,MONTH(G9),DAY(G9)),IF(KuvaTähistamine,tblPühad[PARANDATUD],tblPühad[PÄEV]),0),2),\"\"),\"\"),\"\")","v":""},{"$f":"IFERROR(IF(KuvaPühad,IF(INDEX(tblPühad[],MATCH(DATE(Kalendriaasta,MONTH(H9),DAY(H9)),IF(KuvaTähistamine,tblPühad[PARANDATUD],tblPühad[PÄEV]),0),6),INDEX(tblPühad[],MATCH(DATE(Kalendriaasta,MONTH(H9),DAY(H9)),IF(KuvaTähistamine,tblPühad[PARANDATUD],tblPühad[PÄEV]),0),2),\"\"),\"\"),\"\")","v":""}]
[null,{"$f":"Päevad+DATE(Kalendriaasta,9,1)-WEEKDAY(DATE(Kalendriaasta,9,1),(NädalaAlgus=\"Esmaspäev\")+1)+22","v":"2018-09-16"},"2018-09-17","2018-09-18","2018-09-19","2018-09-20","2018-09-21","2018-09-22"]
[null,{"$f":"IFERROR(IF(KuvaPühad,IF(INDEX(tblPühad[],MATCH(DATE(Kalendriaasta,MONTH(B11),DAY(B11)),IF(KuvaTähistamine,tblPühad[PARANDATUD],tblPühad[PÄEV]),0),6),INDEX(tblPühad[],MATCH(DATE(Kalendriaasta,MONTH(B11),DAY(B11)),IF(KuvaTähistamine,tblPühad[PARANDATUD],tblPühad[PÄEV]),0),2),\"\"),\"\"),\"\")","v":""},{"$f":"IFERROR(IF(KuvaPühad,IF(INDEX(tblPühad[],MATCH(DATE(Kalendriaasta,MONTH(C11),DAY(C11)),IF(KuvaTähistamine,tblPühad[PARANDATUD],tblPühad[PÄEV]),0),6),INDEX(tblPühad[],MATCH(DATE(Kalendriaasta,MONTH(C11),DAY(C11)),IF(KuvaTähistamine,tblPühad[PARANDATUD],tblPühad[PÄEV]),0),2),\"\"),\"\"),\"\")","v":""},{"$f":"IFERROR(IF(KuvaPühad,IF(INDEX(tblPühad[],MATCH(DATE(Kalendriaasta,MONTH(D11),DAY(D11)),IF(KuvaTähistamine,tblPühad[PARANDATUD],tblPühad[PÄEV]),0),6),INDEX(tblPühad[],MATCH(DATE(Kalendriaasta,MONTH(D11),DAY(D11)),IF(KuvaTähistamine,tblPühad[PARANDATUD],tblPühad[PÄEV]),0),2),\"\"),\"\"),\"\")","v":""},{"$f":"IFERROR(IF(KuvaPühad,IF(INDEX(tblPühad[],MATCH(DATE(Kalendriaasta,MONTH(E11),DAY(E11)),IF(KuvaTähistamine,tblPühad[PARANDATUD],tblPühad[PÄEV]),0),6),INDEX(tblPühad[],MATCH(DATE(Kalendriaasta,MONTH(E11),DAY(E11)),IF(KuvaTähistamine,tblPühad[PARANDATUD],tblPühad[PÄEV]),0),2),\"\"),\"\"),\"\")","v":""},{"$f":"IFERROR(IF(KuvaPühad,IF(INDEX(tblPühad[],MATCH(DATE(Kalendriaasta,MONTH(F11),DAY(F11)),IF(KuvaTähistamine,tblPühad[PARANDATUD],tblPühad[PÄEV]),0),6),INDEX(tblPühad[],MATCH(DATE(Kalendriaasta,MONTH(F11),DAY(F11)),IF(KuvaTähistamine,tblPühad[PARANDATUD],tblPühad[PÄEV]),0),2),\"\"),\"\"),\"\")","v":""},{"$f":"IFERROR(IF(KuvaPühad,IF(INDEX(tblPühad[],MATCH(DATE(Kalendriaasta,MONTH(G11),DAY(G11)),IF(KuvaTähistamine,tblPühad[PARANDATUD],tblPühad[PÄEV]),0),6),INDEX(tblPühad[],MATCH(DATE(Kalendriaasta,MONTH(G11),DAY(G11)),IF(KuvaTähistamine,tblPühad[PARANDATUD],tblPühad[PÄEV]),0),2),\"\"),\"\"),\"\")","v":""},{"$f":"IFERROR(IF(KuvaPühad,IF(INDEX(tblPühad[],MATCH(DATE(Kalendriaasta,MONTH(H11),DAY(H11)),IF(KuvaTähistamine,tblPühad[PARANDATUD],tblPühad[PÄEV]),0),6),INDEX(tblPühad[],MATCH(DATE(Kalendriaasta,MONTH(H11),DAY(H11)),IF(KuvaTähistamine,tblPühad[PARANDATUD],tblPühad[PÄEV]),0),2),\"\"),\"\"),\"\")","v":""}]
[null,{"$f":"Päevad+DATE(Kalendriaasta,9,1)-WEEKDAY(DATE(Kalendriaasta,9,1),(NädalaAlgus=\"Esmaspäev\")+1)+29","v":"2018-09-23"},"2018-09-24","2018-09-25","2018-09-26","2018-09-27","2018-09-28","2018-09-29"]
[null,{"$f":"IFERROR(IF(KuvaPühad,IF(INDEX(tblPühad[],MATCH(DATE(Kalendriaasta,MONTH(B13),DAY(B13)),IF(KuvaTähistamine,tblPühad[PARANDATUD],tblPühad[PÄEV]),0),6),INDEX(tblPühad[],MATCH(DATE(Kalendriaasta,MONTH(B13),DAY(B13)),IF(KuvaTähistamine,tblPühad[PARANDATUD],tblPühad[PÄEV]),0),2),\"\"),\"\"),\"\")","v":""},{"$f":"IFERROR(IF(KuvaPühad,IF(INDEX(tblPühad[],MATCH(DATE(Kalendriaasta,MONTH(C13),DAY(C13)),IF(KuvaTähistamine,tblPühad[PARANDATUD],tblPühad[PÄEV]),0),6),INDEX(tblPühad[],MATCH(DATE(Kalendriaasta,MONTH(C13),DAY(C13)),IF(KuvaTähistamine,tblPühad[PARANDATUD],tblPühad[PÄEV]),0),2),\"\"),\"\"),\"\")","v":""},{"$f":"IFERROR(IF(KuvaPühad,IF(INDEX(tblPühad[],MATCH(DATE(Kalendriaasta,MONTH(D13),DAY(D13)),IF(KuvaTähistamine,tblPühad[PARANDATUD],tblPühad[PÄEV]),0),6),INDEX(tblPühad[],MATCH(DATE(Kalendriaasta,MONTH(D13),DAY(D13)),IF(KuvaTähistamine,tblPühad[PARANDATUD],tblPühad[PÄEV]),0),2),\"\"),\"\"),\"\")","v":""},{"$f":"IFERROR(IF(KuvaPühad,IF(INDEX(tblPühad[],MATCH(DATE(Kalendriaasta,MONTH(E13),DAY(E13)),IF(KuvaTähistamine,tblPühad[PARANDATUD],tblPühad[PÄEV]),0),6),INDEX(tblPühad[],MATCH(DATE(Kalendriaasta,MONTH(E13),DAY(E13)),IF(KuvaTähistamine,tblPühad[PARANDATUD],tblPühad[PÄEV]),0),2),\"\"),\"\"),\"\")","v":""},{"$f":"IFERROR(IF(KuvaPühad,IF(INDEX(tblPühad[],MATCH(DATE(Kalendriaasta,MONTH(F13),DAY(F13)),IF(KuvaTähistamine,tblPühad[PARANDATUD],tblPühad[PÄEV]),0),6),INDEX(tblPühad[],MATCH(DATE(Kalendriaasta,MONTH(F13),DAY(F13)),IF(KuvaTähistamine,tblPühad[PARANDATUD],tblPühad[PÄEV]),0),2),\"\"),\"\"),\"\")","v":""},{"$f":"IFERROR(IF(KuvaPühad,IF(INDEX(tblPühad[],MATCH(DATE(Kalendriaasta,MONTH(G13),DAY(G13)),IF(KuvaTähistamine,tblPühad[PARANDATUD],tblPühad[PÄEV]),0),6),INDEX(tblPühad[],MATCH(DATE(Kalendriaasta,MONTH(G13),DAY(G13)),IF(KuvaTähistamine,tblPühad[PARANDATUD],tblPühad[PÄEV]),0),2),\"\"),\"\"),\"\")","v":""},{"$f":"IFERROR(IF(KuvaPühad,IF(INDEX(tblPühad[],MATCH(DATE(Kalendriaasta,MONTH(H13),DAY(H13)),IF(KuvaTähistamine,tblPühad[PARANDATUD],tblPühad[PÄEV]),0),6),INDEX(tblPühad[],MATCH(DATE(Kalendriaasta,MONTH(H13),DAY(H13)),IF(KuvaTähistamine,tblPühad[PARANDATUD],tblPühad[PÄEV]),0),2),\"\"),\"\"),\"\")","v":""}]
[null,{"$f":"Päevad+DATE(Kalendriaasta,9,1)-WEEKDAY(DATE(Kalendriaasta,9,1),(NädalaAlgus=\"Esmaspäev\")+1)+36","v":"2018-09-30"},"2018-10-01","MÄRKMED"]
[null,{"$f":"IFERROR(IF(KuvaPühad,IF(INDEX(tblPühad[],MATCH(DATE(Kalendriaasta,MONTH(B15),DAY(B15)),IF(KuvaTähistamine,tblPühad[PARANDATUD],tblPühad[PÄEV]),0),6),INDEX(tblPühad[],MATCH(DATE(Kalendriaasta,MONTH(B15),DAY(B15)),IF(KuvaTähistamine,tblPühad[PARANDATUD],tblPühad[PÄEV]),0),2),\"\"),\"\"),\"\")","v":""},{"$f":"IFERROR(IF(KuvaPühad,IF(INDEX(tblPühad[],MATCH(DATE(Kalendriaasta,MONTH(C15),DAY(C15)),IF(KuvaTähistamine,tblPühad[PARANDATUD],tblPühad[PÄEV]),0),6),INDEX(tblPühad[],MATCH(DATE(Kalendriaasta,MONTH(C15),DAY(C15)),IF(KuvaTähistamine,tblPühad[PARANDATUD],tblPühad[PÄEV]),0),2),\"\"),\"\"),\"\")","v":""}]

{"sheet":"Oktoober","index":10,"n_rows":16,"n_cols":8,"rows_kept":16,"merged":[[1,1,1,3],[14,3,14,7],[15,3,15,7],[16,1,16,7]]}
[]
[null,{"$f":"B9","v":"2018-10-14"}]
[]
[null,{"$f":"NädalaAlgus","v":"PÜHAPÄEV"},{"$f":"UPPER(TEXT(C5,\"dddd\"))","v":"ESMASPÄEV"},"TEISIPÄEV","KOLMAPÄEV","NELJAPÄEV","REEDE","LAUPÄEV"]
[null,{"$f":"Päevad+DATE(Kalendriaasta,10,1)-WEEKDAY(DATE(Kalendriaasta,10,1),(NädalaAlgus=\"Esmaspäev\")+1)+1","v":"2018-09-30"},"2018-10-01","2018-10-02","2018-10-03","2018-10-04","2018-10-05","2018-10-06"]
[null,{"$f":"IFERROR(IF(KuvaPühad,IF(INDEX(tblPühad[],MATCH(DATE(Kalendriaasta-(DAY(B5)>15)+(ROW()>6),MONTH(B5),DAY(B5)),IF(KuvaTähistamine,tblPühad[PARANDATUD],tblPühad[PÄEV]),0),6),INDEX(tblPühad[],MATCH(DATE(Kalendriaasta-(DAY(B5)>15)+(ROW()>6),MONTH(B5),DAY(B5)),IF(KuvaTähistamine,tblPühad[PARANDATUD],tblPühad[PÄEV]),0),2),\"\"),\"\"),\"\")","v":""},{"$f":"IFERROR(IF(KuvaPühad,IF(INDEX(tblPühad[],MATCH(DATE(Kalendriaasta-(DAY(C5)>15)+(ROW()>6),MONTH(C5),DAY(C5)),IF(KuvaTähistamine,tblPühad[PARANDATUD],tblPühad[PÄEV]),0),6),INDEX(tblPühad[],MATCH(DATE(Kalendriaasta-(DAY(C5)>15)+(ROW()>6),MONTH(C5),DAY(C5)),IF(KuvaTähistamine,tblPühad[PARANDATUD],tblPühad[PÄEV]),0),2),\"\"),\"\"),\"\")","v":""},{"$f":"IFERROR(IF(KuvaPühad,IF(INDEX(tblPühad[],MATCH(DATE(Kalendriaasta-(DAY(D5)>15)+(ROW()>6),MONTH(D5),DAY(D5)),IF(KuvaTähistamine,tblPühad[PARANDATUD],tblPühad[PÄEV]),0),6),INDEX(tblPühad[],MATCH(DATE(Kalendriaasta-(DAY(D5)>15)+(ROW()>6),MONTH(D5),DAY(D5)),IF(KuvaTähistamine,tblPühad[PARANDATUD],tblPühad[PÄEV]),0),2),\"\"),\"\"),\"\")","v":""},{"$f":"IFERROR(IF(KuvaPühad,IF(INDEX(tblPühad[],MATCH(DATE(Kalendriaasta-(DAY(E5)>15)+(ROW()>6),MONTH(E5),DAY(E5)),IF(KuvaTähistamine,tblPühad[PARANDATUD],tblPühad[PÄEV]),0),6),INDEX(tblPühad[],MATCH(DATE(Kalendriaasta-(DAY(E5)>15)+(ROW()>6),MONTH(E5),DAY(E5)),IF(KuvaTähistamine,tblPühad[PARANDATUD],tblPühad[PÄEV]),0),2),\"\"),\"\"),\"\")","v":""},{"$f":"IFERROR(IF(KuvaPühad,IF(INDEX(tblPühad[],MATCH(DATE(Kalendriaasta-(DAY(F5)>15)+(ROW()>6),MONTH(F5),DAY(F5)),IF(KuvaTähistamine,tblPühad[PARANDATUD],tblPühad[PÄEV]),0),6),INDEX(tblPühad[],MATCH(DATE(Kalendriaasta-(DAY(F5)>15)+(ROW()>6),MONTH(F5),DAY(F5)),IF(KuvaTähistamine,tblPühad[PARANDATUD],tblPühad[PÄEV]),0),2),\"\"),\"\"),\"\")","v":""},{"$f":"IFERROR(IF(KuvaPühad,IF(INDEX(tblPühad[],MATCH(DATE(Kalendriaasta-(DAY(G5)>15)+(ROW()>6),MONTH(G5),DAY(G5)),IF(KuvaTähistamine,tblPühad[PARANDATUD],tblPühad[PÄEV]),0),6),INDEX(tblPühad[],MATCH(DATE(Kalendriaasta-(DAY(G5)>15)+(ROW()>6),MONTH(G5),DAY(G5)),IF(KuvaTähistamine,tblPühad[PARANDATUD],tblPühad[PÄEV]),0),2),\"\"),\"\"),\"\")","v":""},{"$f":"IFERROR(IF(KuvaPühad,IF(INDEX(tblPühad[],MATCH(DATE(Kalendriaasta-(DAY(H5)>15)+(ROW()>6),MONTH(H5),DAY(H5)),IF(KuvaTähistamine,tblPühad[PARANDATUD],tblPühad[PÄEV]),0),6),INDEX(tblPühad[],MATCH(DATE(Kalendriaasta-(DAY(H5)>15)+(ROW()>6),MONTH(H5),DAY(H5)),IF(KuvaTähistamine,tblPühad[PARANDATUD],tblPühad[PÄEV]),0),2),\"\"),\"\"),\"\")","v":""}]
[null,{"$f":"Päevad+DATE(Kalendriaasta,10,1)-WEEKDAY(DATE(Kalendriaasta,10,1),(NädalaAlgus=\"Esmaspäev\")+1)+8","v":"2018-10-07"},"2018-10-08","2018-10-09","2018-10-10","2018-10-11","2018-10-12","2018-10-13"]
[null,{"$f":"IFERROR(IF(KuvaPühad,IF(INDEX(tblPühad[],MATCH(DATE(Kalendriaasta,MONTH(B7),DAY(B7)),IF(KuvaTähistamine,tblPühad[PARANDATUD],tblPühad[PÄEV]),0),6),INDEX(tblPühad[],MATCH(DATE(Kalendriaasta,MONTH(B7),DAY(B7)),IF(KuvaTähistamine,tblPühad[PARANDATUD],tblPühad[PÄEV]),0),2),\"\"),\"\"),\"\")","v":""},{"$f":"IFERROR(IF(KuvaPühad,IF(INDEX(tblPühad[],MATCH(DATE(Kalendriaasta,MONTH(C7),DAY(C7)),IF(KuvaTähistamine,tblPühad[PARANDATUD],tblPühad[PÄEV]),0),6),INDEX(tblPühad[],MATCH(DATE(Kalendriaasta,MONTH(C7),DAY(C7)),IF(KuvaTähistamine,tblPühad[PARANDATUD],tblPühad[PÄEV]),0),2),\"\"),\"\"),\"\")","v":"Jaanipäev"},{"$f":"IFERROR(IF(KuvaPühad,IF(INDEX(tblPühad[],MATCH(DATE(Kalendriaasta,MONTH(D7),DAY(D7)),IF(KuvaTähistamine,tblPühad[PARANDATUD],tblPühad[PÄEV]),0),6),INDEX(tblPühad[],MATCH(DATE(Kalendriaasta,MONTH(D7),DAY(D7)),IF(KuvaTähistamine,tblPühad[PARANDATUD],tblPühad[PÄEV]),0),2),\"\"),\"\"),\"\")","v":""},{"$f":"IFERROR(IF(KuvaPühad,IF(INDEX(tblPühad[],MATCH(DATE(Kalendriaasta,MONTH(E7),DAY(E7)),IF(KuvaTähistamine,tblPühad[PARANDATUD],tblPühad[PÄEV]),0),6),INDEX(tblPühad[],MATCH(DATE(Kalendriaasta,MONTH(E7),DAY(E7)),IF(KuvaTähistamine,tblPühad[PARANDATUD],tblPühad[PÄEV]),0),2),\"\"),\"\"),\"\")","v":""},{"$f":"IFERROR(IF(KuvaPühad,IF(INDEX(tblPühad[],MATCH(DATE(Kalendriaasta,MONTH(F7),DAY(F7)),IF(KuvaTähistamine,tblPühad[PARANDATUD],tblPühad[PÄEV]),0),6),INDEX(tblPühad[],MATCH(DATE(Kalendriaasta,MONTH(F7),DAY(F7)),IF(KuvaTähistamine,tblPühad[PARANDATUD],tblPühad[PÄEV]),0),2),\"\"),\"\"),\"\")","v":""},{"$f":"IFERROR(IF(KuvaPühad,IF(INDEX(tblPühad[],MATCH(DATE(Kalendriaasta,MONTH(G7),DAY(G7)),IF(KuvaTähistamine,tblPühad[PARANDATUD],tblPühad[PÄEV]),0),6),INDEX(tblPühad[],MATCH(DATE(Kalendriaasta,MONTH(G7),DAY(G7)),IF(KuvaTähistamine,tblPühad[PARANDATUD],tblPühad[PÄEV]),0),2),\"\"),\"\"),\"\")","v":""},{"$f":"IFERROR(IF(KuvaPühad,IF(INDEX(tblPühad[],MATCH(DATE(Kalendriaasta,MONTH(H7),DAY(H7)),IF(KuvaTähistamine,tblPühad[PARANDATUD],tblPühad[PÄEV]),0),6),INDEX(tblPühad[],MATCH(DATE(Kalendriaasta,MONTH(H7),DAY(H7)),IF(KuvaTähistamine,tblPühad[PARANDATUD],tblPühad[PÄEV]),0),2),\"\"),\"\"),\"\")","v":""}]
[null,{"$f":"Päevad+DATE(Kalendriaasta,10,1)-WEEKDAY(DATE(Kalendriaasta,10,1),(NädalaAlgus=\"Esmaspäev\")+1)+15","v":"2018-10-14"},"2018-10-15","2018-10-16","2018-10-17","2018-10-18","2018-10-19","2018-10-20"]
[null,{"$f":"IFERROR(IF(KuvaPühad,IF(INDEX(tblPühad[],MATCH(DATE(Kalendriaasta,MONTH(B9),DAY(B9)),IF(KuvaTähistamine,tblPühad[PARANDATUD],tblPühad[PÄEV]),0),6),INDEX(tblPühad[],MATCH(DATE(Kalendriaasta,MONTH(B9),DAY(B9)),IF(KuvaTähistamine,tblPühad[PARANDATUD],tblPühad[PÄEV]),0),2),\"\"),\"\"),\"\")","v":""},{"$f":"IFERROR(IF(KuvaPühad,IF(INDEX(tblPühad[],MATCH(DATE(Kalendriaasta,MONTH(C9),DAY(C9)),IF(KuvaTähistamine,tblPühad[PARANDATUD],tblPühad[PÄEV]),0),6),INDEX(tblPühad[],MATCH(DATE(Kalendriaasta,MONTH(C9),DAY(C9)),IF(KuvaTähistamine,tblPühad[PARANDATUD],tblPühad[PÄEV]),0),2),\"\"),\"\"),\"\")","v":""},{"$f":"IFERROR(IF(KuvaPühad,IF(INDEX(tblPühad[],MATCH(DATE(Kalendriaasta,MONTH(D9),DAY(D9)),IF(KuvaTähistamine,tblPühad[PARANDATUD],tblPühad[PÄEV]),0),6),INDEX(tblPühad[],MATCH(DATE(Kalendriaasta,MONTH(D9),DAY(D9)),IF(KuvaTähistamine,tblPühad[PARANDATUD],tblPühad[PÄEV]),0),2),\"\"),\"\"),\"\")","v":""},{"$f":"IFERROR(IF(KuvaPühad,IF(INDEX(tblPühad[],MATCH(DATE(Kalendriaasta,MONTH(E9),DAY(E9)),IF(KuvaTähistamine,tblPühad[PARANDATUD],tblPühad[PÄEV]),0),6),INDEX(tblPühad[],MATCH(DATE(Kalendriaasta,MONTH(E9),DAY(E9)),IF(KuvaTähistamine,tblPühad[PARANDATUD],tblPühad[PÄEV]),0),2),\"\"),\"\"),\"\")","v":""},{"$f":"IFERROR(IF(KuvaPühad,IF(INDEX(tblPühad[],MATCH(DATE(Kalendriaasta,MONTH(F9),DAY(F9)),IF(KuvaTähistamine,tblPühad[PARANDATUD],tblPühad[PÄEV]),0),6),INDEX(tblPühad[],MATCH(DATE(Kalendriaasta,MONTH(F9),DAY(F9)),IF(KuvaTähistamine,tblPühad[PARANDATUD],tblPühad[PÄEV]),0),2),\"\"),\"\"),\"\")","v":""},{"$f":"IFERROR(IF(KuvaPühad,IF(INDEX(tblPühad[],MATCH(DATE(Kalendriaasta,MONTH(G9),DAY(G9)),IF(KuvaTähistamine,tblPühad[PARANDATUD],tblPühad[PÄEV]),0),6),INDEX(tblPühad[],MATCH(DATE(Kalendriaasta,MONTH(G9),DAY(G9)),IF(KuvaTähistamine,tblPühad[PARANDATUD],tblPühad[PÄEV]),0),2),\"\"),\"\"),\"\")","v":""},{"$f":"IFERROR(IF(KuvaPühad,IF(INDEX(tblPühad[],MATCH(DATE(Kalendriaasta,MONTH(H9),DAY(H9)),IF(KuvaTähistamine,tblPühad[PARANDATUD],tblPühad[PÄEV]),0),6),INDEX(tblPühad[],MATCH(DATE(Kalendriaasta,MONTH(H9),DAY(H9)),IF(KuvaTähistamine,tblPühad[PARANDATUD],tblPühad[PÄEV]),0),2),\"\"),\"\"),\"\")","v":""}]
[null,{"$f":"Päevad+DATE(Kalendriaasta,10,1)-WEEKDAY(DATE(Kalendriaasta,10,1),(NädalaAlgus=\"Esmaspäev\")+1)+22","v":"2018-10-21"},"2018-10-22","2018-10-23","2018-10-24","2018-10-25","2018-10-26","2018-10-27"]
[null,{"$f":"IFERROR(IF(KuvaPühad,IF(INDEX(tblPühad[],MATCH(DATE(Kalendriaasta,MONTH(B11),DAY(B11)),IF(KuvaTähistamine,tblPühad[PARANDATUD],tblPühad[PÄEV]),0),6),INDEX(tblPühad[],MATCH(DATE(Kalendriaasta,MONTH(B11),DAY(B11)),IF(KuvaTähistamine,tblPühad[PARANDATUD],tblPühad[PÄEV]),0),2),\"\"),\"\"),\"\")","v":""},{"$f":"IFERROR(IF(KuvaPühad,IF(INDEX(tblPühad[],MATCH(DATE(Kalendriaasta,MONTH(C11),DAY(C11)),IF(KuvaTähistamine,tblPühad[PARANDATUD],tblPühad[PÄEV]),0),6),INDEX(tblPühad[],MATCH(DATE(Kalendriaasta,MONTH(C11),DAY(C11)),IF(KuvaTähistamine,tblPühad[PARANDATUD],tblPühad[PÄEV]),0),2),\"\"),\"\"),\"\")","v":""},{"$f":"IFERROR(IF(KuvaPühad,IF(INDEX(tblPühad[],MATCH(DATE(Kalendriaasta,MONTH(D11),DAY(D11)),IF(KuvaTähistamine,tblPühad[PARANDATUD],tblPühad[PÄEV]),0),6),INDEX(tblPühad[],MATCH(DATE(Kalendriaasta,MONTH(D11),DAY(D11)),IF(KuvaTähistamine,tblPühad[PARANDATUD],tblPühad[PÄEV]),0),2),\"\"),\"\"),\"\")","v":""},{"$f":"IFERROR(IF(KuvaPühad,IF(INDEX(tblPühad[],MATCH(DATE(Kalendriaasta,MONTH(E11),DAY(E11)),IF(KuvaTähistamine,tblPühad[PARANDATUD],tblPühad[PÄEV]),0),6),INDEX(tblPühad[],MATCH(DATE(Kalendriaasta,MONTH(E11),DAY(E11)),IF(KuvaTähistamine,tblPühad[PARANDATUD],tblPühad[PÄEV]),0),2),\"\"),\"\"),\"\")","v":""},{"$f":"IFERROR(IF(KuvaPühad,IF(INDEX(tblPühad[],MATCH(DATE(Kalendriaasta,MONTH(F11),DAY(F11)),IF(KuvaTähistamine,tblPühad[PARANDATUD],tblPühad[PÄEV]),0),6),INDEX(tblPühad[],MATCH(DATE(Kalendriaasta,MONTH(F11),DAY(F11)),IF(KuvaTähistamine,tblPühad[PARANDATUD],tblPühad[PÄEV]),0),2),\"\"),\"\"),\"\")","v":""},{"$f":"IFERROR(IF(KuvaPühad,IF(INDEX(tblPühad[],MATCH(DATE(Kalendriaasta,MONTH(G11),DAY(G11)),IF(KuvaTähistamine,tblPühad[PARANDATUD],tblPühad[PÄEV]),0),6),INDEX(tblPühad[],MATCH(DATE(Kalendriaasta,MONTH(G11),DAY(G11)),IF(KuvaTähistamine,tblPühad[PARANDATUD],tblPühad[PÄEV]),0),2),\"\"),\"\"),\"\")","v":""},{"$f":"IFERROR(IF(KuvaPühad,IF(INDEX(tblPühad[],MATCH(DATE(Kalendriaasta,MONTH(H11),DAY(H11)),IF(KuvaTähistamine,tblPühad[PARANDATUD],tblPühad[PÄEV]),0),6),INDEX(tblPühad[],MATCH(DATE(Kalendriaasta,MONTH(H11),DAY(H11)),IF(KuvaTähistamine,tblPühad[PARANDATUD],tblPühad[PÄEV]),0),2),\"\"),\"\"),\"\")","v":""}]
[null,{"$f":"Päevad+DATE(Kalendriaasta,10,1)-WEEKDAY(DATE(Kalendriaasta,10,1),(NädalaAlgus=\"Esmaspäev\")+1)+29","v":"2018-10-28"},"2018-10-29","2018-10-30","2018-10-31","2018-11-01","2018-11-02","2018-11-03"]
[null,{"$f":"IFERROR(IF(KuvaPühad,IF(INDEX(tblPühad[],MATCH(DATE(Kalendriaasta,MONTH(B13),DAY(B13)),IF(KuvaTähistamine,tblPühad[PARANDATUD],tblPühad[PÄEV]),0),6),INDEX(tblPühad[],MATCH(DATE(Kalendriaasta,MONTH(B13),DAY(B13)),IF(KuvaTähistamine,tblPühad[PARANDATUD],tblPühad[PÄEV]),0),2),\"\"),\"\"),\"\")","v":""},{"$f":"IFERROR(IF(KuvaPühad,IF(INDEX(tblPühad[],MATCH(DATE(Kalendriaasta,MONTH(C13),DAY(C13)),IF(KuvaTähistamine,tblPühad[PARANDATUD],tblPühad[PÄEV]),0),6),INDEX(tblPühad[],MATCH(DATE(Kalendriaasta,MONTH(C13),DAY(C13)),IF(KuvaTähistamine,tblPühad[PARANDATUD],tblPühad[PÄEV]),0),2),\"\"),\"\"),\"\")","v":""},{"$f":"IFERROR(IF(KuvaPühad,IF(INDEX(tblPühad[],MATCH(DATE(Kalendriaasta,MONTH(D13),DAY(D13)),IF(KuvaTähistamine,tblPühad[PARANDATUD],tblPühad[PÄEV]),0),6),INDEX(tblPühad[],MATCH(DATE(Kalendriaasta,MONTH(D13),DAY(D13)),IF(KuvaTähistamine,tblPühad[PARANDATUD],tblPühad[PÄEV]),0),2),\"\"),\"\"),\"\")","v":""},{"$f":"IFERROR(IF(KuvaPühad,IF(INDEX(tblPühad[],MATCH(DATE(Kalendriaasta,MONTH(E13),DAY(E13)),IF(KuvaTähistamine,tblPühad[PARANDATUD],tblPühad[PÄEV]),0),6),INDEX(tblPühad[],MATCH(DATE(Kalendriaasta,MONTH(E13),DAY(E13)),IF(KuvaTähistamine,tblPühad[PARANDATUD],tblPühad[PÄEV]),0),2),\"\"),\"\"),\"\")","v":""},{"$f":"IFERROR(IF(KuvaPühad,IF(INDEX(tblPühad[],MATCH(DATE(Kalendriaasta,MONTH(F13),DAY(F13)),IF(KuvaTähistamine,tblPühad[PARANDATUD],tblPühad[PÄEV]),0),6),INDEX(tblPühad[],MATCH(DATE(Kalendriaasta,MONTH(F13),DAY(F13)),IF(KuvaTähistamine,tblPühad[PARANDATUD],tblPühad[PÄEV]),0),2),\"\"),\"\"),\"\")","v":""},{"$f":"IFERROR(IF(KuvaPühad,IF(INDEX(tblPühad[],MATCH(DATE(Kalendriaasta,MONTH(G13),DAY(G13)),IF(KuvaTähistamine,tblPühad[PARANDATUD],tblPühad[PÄEV]),0),6),INDEX(tblPühad[],MATCH(DATE(Kalendriaasta,MONTH(G13),DAY(G13)),IF(KuvaTähistamine,tblPühad[PARANDATUD],tblPühad[PÄEV]),0),2),\"\"),\"\"),\"\")","v":""},{"$f":"IFERROR(IF(KuvaPühad,IF(INDEX(tblPühad[],MATCH(DATE(Kalendriaasta,MONTH(H13),DAY(H13)),IF(KuvaTähistamine,tblPühad[PARANDATUD],tblPühad[PÄEV]),0),6),INDEX(tblPühad[],MATCH(DATE(Kalendriaasta,MONTH(H13),DAY(H13)),IF(KuvaTähistamine,tblPühad[PARANDATUD],tblPühad[PÄEV]),0),2),\"\"),\"\"),\"\")","v":""}]
[null,{"$f":"Päevad+DATE(Kalendriaasta,10,1)-WEEKDAY(DATE(Kalendriaasta,10,1),(NädalaAlgus=\"Esmaspäev\")+1)+36","v":"2018-11-04"},"2018-11-05","MÄRKMED"]
[null,{"$f":"IFERROR(IF(KuvaPühad,IF(INDEX(tblPühad[],MATCH(DATE(Kalendriaasta,MONTH(B15),DAY(B15)),IF(KuvaTähistamine,tblPühad[PARANDATUD],tblPühad[PÄEV]),0),6),INDEX(tblPühad[],MATCH(DATE(Kalendriaasta,MONTH(B15),DAY(B15)),IF(KuvaTähistamine,tblPühad[PARANDATUD],tblPühad[PÄEV]),0),2),\"\"),\"\"),\"\")","v":""},{"$f":"IFERROR(IF(KuvaPühad,IF(INDEX(tblPühad[],MATCH(DATE(Kalendriaasta,MONTH(C15),DAY(C15)),IF(KuvaTähistamine,tblPühad[PARANDATUD],tblPühad[PÄEV]),0),6),INDEX(tblPühad[],MATCH(DATE(Kalendriaasta,MONTH(C15),DAY(C15)),IF(KuvaTähistamine,tblPühad[PARANDATUD],tblPühad[PÄEV]),0),2),\"\"),\"\"),\"\")","v":""}]

{"sheet":"November","index":11,"n_rows":16,"n_cols":8,"rows_kept":16,"merged":[[1,1,1,3],[14,3,14,7],[15,3,15,7],[16,1,16,7]]}
[]
[null,{"$f":"B9","v":"2018-11-11"}]
[]
[null,{"$f":"NädalaAlgus","v":"PÜHAPÄEV"},{"$f":"UPPER(TEXT(C5,\"dddd\"))","v":"ESMASPÄEV"},"TEISIPÄEV","KOLMAPÄEV","NELJAPÄEV","REEDE","LAUPÄEV"]
[null,{"$f":"Päevad+DATE(Kalendriaasta,11,1)-WEEKDAY(DATE(Kalendriaasta,11,1),(NädalaAlgus=\"Esmaspäev\")+1)+1","v":"2018-10-28"},"2018-10-29","2018-10-30","2018-10-31","2018-11-01","2018-11-02","2018-11-03"]
[null,{"$f":"IFERROR(IF(KuvaPühad,IF(INDEX(tblPühad[],MATCH(DATE(Kalendriaasta-(DAY(B5)>15)+(ROW()>6),MONTH(B5),DAY(B5)),IF(KuvaTähistamine,tblPühad[PARANDATUD],tblPühad[PÄEV]),0),6),INDEX(tblPühad[],MATCH(DATE(Kalendriaasta-(DAY(B5)>15)+(ROW()>6),MONTH(B5),DAY(B5)),IF(KuvaTähistamine,tblPühad[PARANDATUD],tblPühad[PÄEV]),0),2),\"\"),\"\"),\"\")","v":""},{"$f":"IFERROR(IF(KuvaPühad,IF(INDEX(tblPühad[],MATCH(DATE(Kalendriaasta-(DAY(C5)>15)+(ROW()>6),MONTH(C5),DAY(C5)),IF(KuvaTähistamine,tblPühad[PARANDATUD],tblPühad[PÄEV]),0),6),INDEX(tblPühad[],MATCH(DATE(Kalendriaasta-(DAY(C5)>15)+(ROW()>6),MONTH(C5),DAY(C5)),IF(KuvaTähistamine,tblPühad[PARANDATUD],tblPühad[PÄEV]),0),2),\"\"),\"\"),\"\")","v":""},{"$f":"IFERROR(IF(KuvaPühad,IF(INDEX(tblPühad[],MATCH(DATE(Kalendriaasta-(DAY(D5)>15)+(ROW()>6),MONTH(D5),DAY(D5)),IF(KuvaTähistamine,tblPühad[PARANDATUD],tblPühad[PÄEV]),0),6),INDEX(tblPühad[],MATCH(DATE(Kalendriaasta-(DAY(D5)>15)+(ROW()>6),MONTH(D5),DAY(D5)),IF(KuvaTähistamine,tblPühad[PARANDATUD],tblPühad[PÄEV]),0),2),\"\"),\"\"),\"\")","v":""},{"$f":"IFERROR(IF(KuvaPühad,IF(INDEX(tblPühad[],MATCH(DATE(Kalendriaasta-(DAY(E5)>15)+(ROW()>6),MONTH(E5),DAY(E5)),IF(KuvaTähistamine,tblPühad[PARANDATUD],tblPühad[PÄEV]),0),6),INDEX(tblPühad[],MATCH(DATE(Kalendriaasta-(DAY(E5)>15)+(ROW()>6),MONTH(E5),DAY(E5)),IF(KuvaTähistamine,tblPühad[PARANDATUD],tblPühad[PÄEV]),0),2),\"\"),\"\"),\"\")","v":""},{"$f":"IFERROR(IF(KuvaPühad,IF(INDEX(tblPühad[],MATCH(DATE(Kalendriaasta-(DAY(F5)>15)+(ROW()>6),MONTH(F5),DAY(F5)),IF(KuvaTähistamine,tblPühad[PARANDATUD],tblPühad[PÄEV]),0),6),INDEX(tblPühad[],MATCH(DATE(Kalendriaasta-(DAY(F5)>15)+(ROW()>6),MONTH(F5),DAY(F5)),IF(KuvaTähistamine,tblPühad[PARANDATUD],tblPühad[PÄEV]),0),2),\"\"),\"\"),\"\")","v":""},{"$f":"IFERROR(IF(KuvaPühad,IF(INDEX(tblPühad[],MATCH(DATE(Kalendriaasta-(DAY(G5)>15)+(ROW()>6),MONTH(G5),DAY(G5)),IF(KuvaTähistamine,tblPühad[PARANDATUD],tblPühad[PÄEV]),0),6),INDEX(tblPühad[],MATCH(DATE(Kalendriaasta-(DAY(G5)>15)+(ROW()>6),MONTH(G5),DAY(G5)),IF(KuvaTähistamine,tblPühad[PARANDATUD],tblPühad[PÄEV]),0),2),\"\"),\"\"),\"\")","v":""},{"$f":"IFERROR(IF(KuvaPühad,IF(INDEX(tblPühad[],MATCH(DATE(Kalendriaasta-(DAY(H5)>15)+(ROW()>6),MONTH(H5),DAY(H5)),IF(KuvaTähistamine,tblPühad[PARANDATUD],tblPühad[PÄEV]),0),6),INDEX(tblPühad[],MATCH(DATE(Kalendriaasta-(DAY(H5)>15)+(ROW()>6),MONTH(H5),DAY(H5)),IF(KuvaTähistamine,tblPühad[PARANDATUD],tblPühad[PÄEV]),0),2),\"\"),\"\"),\"\")","v":""}]
[null,{"$f":"Päevad+DATE(Kalendriaasta,11,1)-WEEKDAY(DATE(Kalendriaasta,11,1),(NädalaAlgus=\"Esmaspäev\")+1)+8","v":"2018-11-04"},"2018-11-05","2018-11-06","2018-11-07","2018-11-08","2018-11-09","2018-11-10"]
[null,{"$f":"IFERROR(IF(KuvaPühad,IF(INDEX(tblPühad[],MATCH(DATE(Kalendriaasta,MONTH(B7),DAY(B7)),IF(KuvaTähistamine,tblPühad[PARANDATUD],tblPühad[PÄEV]),0),6),INDEX(tblPühad[],MATCH(DATE(Kalendriaasta,MONTH(B7),DAY(B7)),IF(KuvaTähistamine,tblPühad[PARANDATUD],tblPühad[PÄEV]),0),2),\"\"),\"\"),\"\")","v":""},{"$f":"IFERROR(IF(KuvaPühad,IF(INDEX(tblPühad[],MATCH(DATE(Kalendriaasta,MONTH(C7),DAY(C7)),IF(KuvaTähistamine,tblPühad[PARANDATUD],tblPühad[PÄEV]),0),6),INDEX(tblPühad[],MATCH(DATE(Kalendriaasta,MONTH(C7),DAY(C7)),IF(KuvaTähistamine,tblPühad[PARANDATUD],tblPühad[PÄEV]),0),2),\"\"),\"\"),\"\")","v":""},{"$f":"IFERROR(IF(KuvaPühad,IF(INDEX(tblPühad[],MATCH(DATE(Kalendriaasta,MONTH(D7),DAY(D7)),IF(KuvaTähistamine,tblPühad[PARANDATUD],tblPühad[PÄEV]),0),6),INDEX(tblPühad[],MATCH(DATE(Kalendriaasta,MONTH(D7),DAY(D7)),IF(KuvaTähistamine,tblPühad[PARANDATUD],tblPühad[PÄEV]),0),2),\"\"),\"\"),\"\")","v":""},{"$f":"IFERROR(IF(KuvaPühad,IF(INDEX(tblPühad[],MATCH(DATE(Kalendriaasta,MONTH(E7),DAY(E7)),IF(KuvaTähistamine,tblPühad[PARANDATUD],tblPühad[PÄEV]),0),6),INDEX(tblPühad[],MATCH(DATE(Kalendriaasta,MONTH(E7),DAY(E7)),IF(KuvaTähistamine,tblPühad[PARANDATUD],tblPühad[PÄEV]),0),2),\"\"),\"\"),\"\")","v":""},{"$f":"IFERROR(IF(KuvaPühad,IF(INDEX(tblPühad[],MATCH(DATE(Kalendriaasta,MONTH(F7),DAY(F7)),IF(KuvaTähistamine,tblPühad[PARANDATUD],tblPühad[PÄEV]),0),6),INDEX(tblPühad[],MATCH(DATE(Kalendriaasta,MONTH(F7),DAY(F7)),IF(KuvaTähistamine,tblPühad[PARANDATUD],tblPühad[PÄEV]),0),2),\"\"),\"\"),\"\")","v":""},{"$f":"IFERROR(IF(KuvaPühad,IF(INDEX(tblPühad[],MATCH(DATE(Kalendriaasta,MONTH(G7),DAY(G7)),IF(KuvaTähistamine,tblPühad[PARANDATUD],tblPühad[PÄEV]),0),6),INDEX(tblPühad[],MATCH(DATE(Kalendriaasta,MONTH(G7),DAY(G7)),IF(KuvaTähistamine,tblPühad[PARANDATUD],tblPühad[PÄEV]),0),2),\"\"),\"\"),\"\")","v":""},{"$f":"IFERROR(IF(KuvaPühad,IF(INDEX(tblPühad[],MATCH(DATE(Kalendriaasta,MONTH(H7),DAY(H7)),IF(KuvaTähistamine,tblPühad[PARANDATUD],tblPühad[PÄEV]),0),6),INDEX(tblPühad[],MATCH(DATE(Kalendriaasta,MONTH(H7),DAY(H7)),IF(KuvaTähistamine,tblPühad[PARANDATUD],tblPühad[PÄEV]),0),2),\"\"),\"\"),\"\")","v":""}]
[null,{"$f":"Päevad+DATE(Kalendriaasta,11,1)-WEEKDAY(DATE(Kalendriaasta,11,1),(NädalaAlgus=\"Esmaspäev\")+1)+15","v":"2018-11-11"},"2018-11-12","2018-11-13","2018-11-14","2018-11-15","2018-11-16","2018-11-17"]
[null,{"$f":"IFERROR(IF(KuvaPühad,IF(INDEX(tblPühad[],MATCH(DATE(Kalendriaasta,MONTH(B9),DAY(B9)),IF(KuvaTähistamine,tblPühad[PARANDATUD],tblPühad[PÄEV]),0),6),INDEX(tblPühad[],MATCH(DATE(Kalendriaasta,MONTH(B9),DAY(B9)),IF(KuvaTähistamine,tblPühad[PARANDATUD],tblPühad[PÄEV]),0),2),\"\"),\"\"),\"\")","v":""},{"$f":"IFERROR(IF(KuvaPühad,IF(INDEX(tblPühad[],MATCH(DATE(Kalendriaasta,MONTH(C9),DAY(C9)),IF(KuvaTähistamine,tblPühad[PARANDATUD],tblPühad[PÄEV]),0),6),INDEX(tblPühad[],MATCH(DATE(Kalendriaasta,MONTH(C9),DAY(C9)),IF(KuvaTähistamine,tblPühad[PARANDATUD],tblPühad[PÄEV]),0),2),\"\"),\"\"),\"\")","v":"Taasiseseisvumispäev"},{"$f":"IFERROR(IF(KuvaPühad,IF(INDEX(tblPühad[],MATCH(DATE(Kalendriaasta,MONTH(D9),DAY(D9)),IF(KuvaTähistamine,tblPühad[PARANDATUD],tblPühad[PÄEV]),0),6),INDEX(tblPühad[],MATCH(DATE(Kalendriaasta,MONTH(D9),DAY(D9)),IF(KuvaTähistamine,tblPühad[PARANDATUD],tblPühad[PÄEV]),0),2),\"\"),\"\"),\"\")","v":""},{"$f":"IFERROR(IF(KuvaPühad,IF(INDEX(tblPühad[],MATCH(DATE(Kalendriaasta,MONTH(E9),DAY(E9)),IF(KuvaTähistamine,tblPühad[PARANDATUD],tblPühad[PÄEV]),0),6),INDEX(tblPühad[],MATCH(DATE(Kalendriaasta,MONTH(E9),DAY(E9)),IF(KuvaTähistamine,tblPühad[PARANDATUD],tblPühad[PÄEV]),0),2),\"\"),\"\"),\"\")","v":""},{"$f":"IFERROR(IF(KuvaPühad,IF(INDEX(tblPühad[],MATCH(DATE(Kalendriaasta,MONTH(F9),DAY(F9)),IF(KuvaTähistamine,tblPühad[PARANDATUD],tblPühad[PÄEV]),0),6),INDEX(tblPühad[],MATCH(DATE(Kalendriaasta,MONTH(F9),DAY(F9)),IF(KuvaTähistamine,tblPühad[PARANDATUD],tblPühad[PÄEV]),0),2),\"\"),\"\"),\"\")","v":""},{"$f":"IFERROR(IF(KuvaPühad,IF(INDEX(tblPühad[],MATCH(DATE(Kalendriaasta,MONTH(G9),DAY(G9)),IF(KuvaTähistamine,tblPühad[PARANDATUD],tblPühad[PÄEV]),0),6),INDEX(tblPühad[],MATCH(DATE(Kalendriaasta,MONTH(G9),DAY(G9)),IF(KuvaTähistamine,tblPühad[PARANDATUD],tblPühad[PÄEV]),0),2),\"\"),\"\"),\"\")","v":""},{"$f":"IFERROR(IF(KuvaPühad,IF(INDEX(tblPühad[],MATCH(DATE(Kalendriaasta,MONTH(H9),DAY(H9)),IF(KuvaTähistamine,tblPühad[PARANDATUD],tblPühad[PÄEV]),0),6),INDEX(tblPühad[],MATCH(DATE(Kalendriaasta,MONTH(H9),DAY(H9)),IF(KuvaTähistamine,tblPühad[PARANDATUD],tblPühad[PÄEV]),0),2),\"\"),\"\"),\"\")","v":""}]
[null,{"$f":"Päevad+DATE(Kalendriaasta,11,1)-WEEKDAY(DATE(Kalendriaasta,11,1),(NädalaAlgus=\"Esmaspäev\")+1)+22","v":"2018-11-18"},"2018-11-19","2018-11-20","2018-11-21","2018-11-22","2018-11-23","2018-11-24"]
[null,{"$f":"IFERROR(IF(KuvaPühad,IF(INDEX(tblPühad[],MATCH(DATE(Kalendriaasta,MONTH(B11),DAY(B11)),IF(KuvaTähistamine,tblPühad[PARANDATUD],tblPühad[PÄEV]),0),6),INDEX(tblPühad[],MATCH(DATE(Kalendriaasta,MONTH(B11),DAY(B11)),IF(KuvaTähistamine,tblPühad[PARANDATUD],tblPühad[PÄEV]),0),2),\"\"),\"\"),\"\")","v":""},{"$f":"IFERROR(IF(KuvaPühad,IF(INDEX(tblPühad[],MATCH(DATE(Kalendriaasta,MONTH(C11),DAY(C11)),IF(KuvaTähistamine,tblPühad[PARANDATUD],tblPühad[PÄEV]),0),6),INDEX(tblPühad[],MATCH(DATE(Kalendriaasta,MONTH(C11),DAY(C11)),IF(KuvaTähistamine,tblPühad[PARANDATUD],tblPühad[PÄEV]),0),2),\"\"),\"\"),\"\")","v":""},{"$f":"IFERROR(IF(KuvaPühad,IF(INDEX(tblPühad[],MATCH(DATE(Kalendriaasta,MONTH(D11),DAY(D11)),IF(KuvaTähistamine,tblPühad[PARANDATUD],tblPühad[PÄEV]),0),6),INDEX(tblPühad[],MATCH(DATE(Kalendriaasta,MONTH(D11),DAY(D11)),IF(KuvaTähistamine,tblPühad[PARANDATUD],tblPühad[PÄEV]),0),2),\"\"),\"\"),\"\")","v":""},{"$f":"IFERROR(IF(KuvaPühad,IF(INDEX(tblPühad[],MATCH(DATE(Kalendriaasta,MONTH(E11),DAY(E11)),IF(KuvaTähistamine,tblPühad[PARANDATUD],tblPühad[PÄEV]),0),6),INDEX(tblPühad[],MATCH(DATE(Kalendriaasta,MONTH(E11),DAY(E11)),IF(KuvaTähistamine,tblPühad[PARANDATUD],tblPühad[PÄEV]),0),2),\"\"),\"\"),\"\")","v":""},{"$f":"IFERROR(IF(KuvaPühad,IF(INDEX(tblPühad[],MATCH(DATE(Kalendriaasta,MONTH(F11),DAY(F11)),IF(KuvaTähistamine,tblPühad[PARANDATUD],tblPühad[PÄEV]),0),6),INDEX(tblPühad[],MATCH(DATE(Kalendriaasta,MONTH(F11),DAY(F11)),IF(KuvaTähistamine,tblPühad[PARANDATUD],tblPühad[PÄEV]),0),2),\"\"),\"\"),\"\")","v":"Jõululaupäev"},{"$f":"IFERROR(IF(KuvaPühad,IF(INDEX(tblPühad[],MATCH(DATE(Kalendriaasta,MONTH(G11),DAY(G11)),IF(KuvaTähistamine,tblPühad[PARANDATUD],tblPühad[PÄEV]),0),6),INDEX(tblPühad[],MATCH(DATE(Kalendriaasta,MONTH(G11),DAY(G11)),IF(KuvaTähistamine,tblPühad[PARANDATUD],tblPühad[PÄEV]),0),2),\"\"),\"\"),\"\")","v":""},{"$f":"IFERROR(IF(KuvaPühad,IF(INDEX(tblPühad[],MATCH(DATE(Kalendriaasta,MONTH(H11),DAY(H11)),IF(KuvaTähistamine,tblPühad[PARANDATUD],tblPühad[PÄEV]),0),6),INDEX(tblPühad[],MATCH(DATE(Kalendriaasta,MONTH(H11),DAY(H11)),IF(KuvaTähistamine,tblPühad[PARANDATUD],tblPühad[PÄEV]),0),2),\"\"),\"\"),\"\")","v":""}]
[null,{"$f":"Päevad+DATE(Kalendriaasta,11,1)-WEEKDAY(DATE(Kalendriaasta,11,1),(NädalaAlgus=\"Esmaspäev\")+1)+29","v":"2018-11-25"},"2018-11-26","2018-11-27","2018-11-28","2018-11-29","2018-11-30","2018-12-01"]
[null,{"$f":"IFERROR(IF(KuvaPühad,IF(INDEX(tblPühad[],MATCH(DATE(Kalendriaasta,MONTH(B13),DAY(B13)),IF(KuvaTähistamine,tblPühad[PARANDATUD],tblPühad[PÄEV]),0),6),INDEX(tblPühad[],MATCH(DATE(Kalendriaasta,MONTH(B13),DAY(B13)),IF(KuvaTähistamine,tblPühad[PARANDATUD],tblPühad[PÄEV]),0),2),\"\"),\"\"),\"\")","v":""},{"$f":"IFERROR(IF(KuvaPühad,IF(INDEX(tblPühad[],MATCH(DATE(Kalendriaasta,MONTH(C13),DAY(C13)),IF(KuvaTähistamine,tblPühad[PARANDATUD],tblPühad[PÄEV]),0),6),INDEX(tblPühad[],MATCH(DATE(Kalendriaasta,MONTH(C13),DAY(C13)),IF(KuvaTähistamine,tblPühad[PARANDATUD],tblPühad[PÄEV]),0),2),\"\"),\"\"),\"\")","v":""},{"$f":"IFERROR(IF(KuvaPühad,IF(INDEX(tblPühad[],MATCH(DATE(Kalendriaasta,MONTH(D13),DAY(D13)),IF(KuvaTähistamine,tblPühad[PARANDATUD],tblPühad[PÄEV]),0),6),INDEX(tblPühad[],MATCH(DATE(Kalendriaasta,MONTH(D13),DAY(D13)),IF(KuvaTähistamine,tblPühad[PARANDATUD],tblPühad[PÄEV]),0),2),\"\"),\"\"),\"\")","v":""},{"$f":"IFERROR(IF(KuvaPühad,IF(INDEX(tblPühad[],MATCH(DATE(Kalendriaasta,MONTH(E13),DAY(E13)),IF(KuvaTähistamine,tblPühad[PARANDATUD],tblPühad[PÄEV]),0),6),INDEX(tblPühad[],MATCH(DATE(Kalendriaasta,MONTH(E13),DAY(E13)),IF(KuvaTähistamine,tblPühad[PARANDATUD],tblPühad[PÄEV]),0),2),\"\"),\"\"),\"\")","v":""},{"$f":"IFERROR(IF(KuvaPühad,IF(INDEX(tblPühad[],MATCH(DATE(Kalendriaasta,MONTH(F13),DAY(F13)),IF(KuvaTähistamine,tblPühad[PARANDATUD],tblPühad[PÄEV]),0),6),INDEX(tblPühad[],MATCH(DATE(Kalendriaasta,MONTH(F13),DAY(F13)),IF(KuvaTähistamine,tblPühad[PARANDATUD],tblPühad[PÄEV]),0),2),\"\"),\"\"),\"\")","v":""},{"$f":"IFERROR(IF(KuvaPühad,IF(INDEX(tblPühad[],MATCH(DATE(Kalendriaasta,MONTH(G13),DAY(G13)),IF(KuvaTähistamine,tblPühad[PARANDATUD],tblPühad[PÄEV]),0),6),INDEX(tblPühad[],MATCH(DATE(Kalendriaasta,MONTH(G13),DAY(G13)),IF(KuvaTähistamine,tblPühad[PARANDATUD],tblPühad[PÄEV]),0),2),\"\"),\"\"),\"\")","v":""},{"$f":"IFERROR(IF(KuvaPühad,IF(INDEX(tblPühad[],MATCH(DATE(Kalendriaasta,MONTH(H13),DAY(H13)),IF(KuvaTähistamine,tblPühad[PARANDATUD],tblPühad[PÄEV]),0),6),INDEX(tblPühad[],MATCH(DATE(Kalendriaasta,MONTH(H13),DAY(H13)),IF(KuvaTähistamine,tblPühad[PARANDATUD],tblPühad[PÄEV]),0),2),\"\"),\"\"),\"\")","v":""}]
[null,{"$f":"Päevad+DATE(Kalendriaasta,11,1)-WEEKDAY(DATE(Kalendriaasta,11,1),(NädalaAlgus=\"Esmaspäev\")+1)+36","v":"2018-12-02"},"2018-12-03","MÄRKMED"]
[null,{"$f":"IFERROR(IF(KuvaPühad,IF(INDEX(tblPühad[],MATCH(DATE(Kalendriaasta,MONTH(B15),DAY(B15)),IF(KuvaTähistamine,tblPühad[PARANDATUD],tblPühad[PÄEV]),0),6),INDEX(tblPühad[],MATCH(DATE(Kalendriaasta,MONTH(B15),DAY(B15)),IF(KuvaTähistamine,tblPühad[PARANDATUD],tblPühad[PÄEV]),0),2),\"\"),\"\"),\"\")","v":""},{"$f":"IFERROR(IF(KuvaPühad,IF(INDEX(tblPühad[],MATCH(DATE(Kalendriaasta,MONTH(C15),DAY(C15)),IF(KuvaTähistamine,tblPühad[PARANDATUD],tblPühad[PÄEV]),0),6),INDEX(tblPühad[],MATCH(DATE(Kalendriaasta,MONTH(C15),DAY(C15)),IF(KuvaTähistamine,tblPühad[PARANDATUD],tblPühad[PÄEV]),0),2),\"\"),\"\"),\"\")","v":""}]

{"sheet":"Detsember","index":12,"n_rows":16,"n_cols":8,"rows_kept":16,"merged":[[1,1,1,3],[14,3,14,7],[15,3,15,7],[16,1,16,7]]}
[]
[null,{"$f":"B9","v":"2018-12-09"}]
[]
[null,{"$f":"NädalaAlgus","v":"PÜHAPÄEV"},{"$f":"UPPER(TEXT(C5,\"dddd\"))","v":"ESMASPÄEV"},"TEISIPÄEV","KOLMAPÄEV","NELJAPÄEV","REEDE","LAUPÄEV"]
[null,{"$f":"Päevad+DATE(Kalendriaasta,12,1)-WEEKDAY(DATE(Kalendriaasta,12,1),(NädalaAlgus=\"Esmaspäev\")+1)+1","v":"2018-11-25"},"2018-11-26","2018-11-27","2018-11-28","2018-11-29","2018-11-30","2018-12-01"]
[null,{"$f":"IFERROR(IF(KuvaPühad,IF(INDEX(tblPühad[],MATCH(DATE(Kalendriaasta-(DAY(B5)>15)+(ROW()>6),MONTH(B5),DAY(B5)),IF(KuvaTähistamine,tblPühad[PARANDATUD],tblPühad[PÄEV]),0),6),INDEX(tblPühad[],MATCH(DATE(Kalendriaasta-(DAY(B5)>15)+(ROW()>6),MONTH(B5),DAY(B5)),IF(KuvaTähistamine,tblPühad[PARANDATUD],tblPühad[PÄEV]),0),2),\"\"),\"\"),\"\")","v":""},{"$f":"IFERROR(IF(KuvaPühad,IF(INDEX(tblPühad[],MATCH(DATE(Kalendriaasta-(DAY(C5)>15)+(ROW()>6),MONTH(C5),DAY(C5)),IF(KuvaTähistamine,tblPühad[PARANDATUD],tblPühad[PÄEV]),0),6),INDEX(tblPühad[],MATCH(DATE(Kalendriaasta-(DAY(C5)>15)+(ROW()>6),MONTH(C5),DAY(C5)),IF(KuvaTähistamine,tblPühad[PARANDATUD],tblPühad[PÄEV]),0),2),\"\"),\"\"),\"\")","v":""},{"$f":"IFERROR(IF(KuvaPühad,IF(INDEX(tblPühad[],MATCH(DATE(Kalendriaasta-(DAY(D5)>15)+(ROW()>6),MONTH(D5),DAY(D5)),IF(KuvaTähistamine,tblPühad[PARANDATUD],tblPühad[PÄEV]),0),6),INDEX(tblPühad[],MATCH(DATE(Kalendriaasta-(DAY(D5)>15)+(ROW()>6),MONTH(D5),DAY(D5)),IF(KuvaTähistamine,tblPühad[PARANDATUD],tblPühad[PÄEV]),0),2),\"\"),\"\"),\"\")","v":""},{"$f":"IFERROR(IF(KuvaPühad,IF(INDEX(tblPühad[],MATCH(DATE(Kalendriaasta-(DAY(E5)>15)+(ROW()>6),MONTH(E5),DAY(E5)),IF(KuvaTähistamine,tblPühad[PARANDATUD],tblPühad[PÄEV]),0),6),INDEX(tblPühad[],MATCH(DATE(Kalendriaasta-(DAY(E5)>15)+(ROW()>6),MONTH(E5),DAY(E5)),IF(KuvaTähistamine,tblPühad[PARANDATUD],tblPühad[PÄEV]),0),2),\"\"),\"\"),\"\")","v":""},{"$f":"IFERROR(IF(KuvaPühad,IF(INDEX(tblPühad[],MATCH(DATE(Kalendriaasta-(DAY(F5)>15)+(ROW()>6),MONTH(F5),DAY(F5)),IF(KuvaTähistamine,tblPühad[PARANDATUD],tblPühad[PÄEV]),0),6),INDEX(tblPühad[],MATCH(DATE(Kalendriaasta-(DAY(F5)>15)+(ROW()>6),MONTH(F5),DAY(F5)),IF(KuvaTähistamine,tblPühad[PARANDATUD],tblPühad[PÄEV]),0),2),\"\"),\"\"),\"\")","v":""},{"$f":"IFERROR(IF(KuvaPühad,IF(INDEX(tblPühad[],MATCH(DATE(Kalendriaasta-(DAY(G5)>15)+(ROW()>6),MONTH(G5),DAY(G5)),IF(KuvaTähistamine,tblPühad[PARANDATUD],tblPühad[PÄEV]),0),6),INDEX(tblPühad[],MATCH(DATE(Kalendriaasta-(DAY(G5)>15)+(ROW()>6),MONTH(G5),DAY(G5)),IF(KuvaTähistamine,tblPühad[PARANDATUD],tblPühad[PÄEV]),0),2),\"\"),\"\"),\"\")","v":""},{"$f":"IFERROR(IF(KuvaPühad,IF(INDEX(tblPühad[],MATCH(DATE(Kalendriaasta-(DAY(H5)>15)+(ROW()>6),MONTH(H5),DAY(H5)),IF(KuvaTähistamine,tblPühad[PARANDATUD],tblPühad[PÄEV]),0),6),INDEX(tblPühad[],MATCH(DATE(Kalendriaasta-(DAY(H5)>15)+(ROW()>6),MONTH(H5),DAY(H5)),IF(KuvaTähistamine,tblPühad[PARANDATUD],tblPühad[PÄEV]),0),2),\"\"),\"\"),\"\")","v":""}]
[null,{"$f":"Päevad+DATE(Kalendriaasta,12,1)-WEEKDAY(DATE(Kalendriaasta,12,1),(NädalaAlgus=\"Esmaspäev\")+1)+8","v":"2018-12-02"},"2018-12-03","2018-12-04","2018-12-05","2018-12-06","2018-12-07","2018-12-08"]
[null,{"$f":"IFERROR(IF(KuvaPühad,IF(INDEX(tblPühad[],MATCH(DATE(Kalendriaasta,MONTH(B7),DAY(B7)),IF(KuvaTähistamine,tblPühad[PARANDATUD],tblPühad[PÄEV]),0),6),INDEX(tblPühad[],MATCH(DATE(Kalendriaasta,MONTH(B7),DAY(B7)),IF(KuvaTähistamine,tblPühad[PARANDATUD],tblPühad[PÄEV]),0),2),\"\"),\"\"),\"\")","v":""},{"$f":"IFERROR(IF(KuvaPühad,IF(INDEX(tblPühad[],MATCH(DATE(Kalendriaasta,MONTH(C7),DAY(C7)),IF(KuvaTähistamine,tblPühad[PARANDATUD],tblPühad[PÄEV]),0),6),INDEX(tblPühad[],MATCH(DATE(Kalendriaasta,MONTH(C7),DAY(C7)),IF(KuvaTähistamine,tblPühad[PARANDATUD],tblPühad[PÄEV]),0),2),\"\"),\"\"),\"\")","v":""},{"$f":"IFERROR(IF(KuvaPühad,IF(INDEX(tblPühad[],MATCH(DATE(Kalendriaasta,MONTH(D7),DAY(D7)),IF(KuvaTähistamine,tblPühad[PARANDATUD],tblPühad[PÄEV]),0),6),INDEX(tblPühad[],MATCH(DATE(Kalendriaasta,MONTH(D7),DAY(D7)),IF(KuvaTähistamine,tblPühad[PARANDATUD],tblPühad[PÄEV]),0),2),\"\"),\"\"),\"\")","v":""},{"$f":"IFERROR(IF(KuvaPühad,IF(INDEX(tblPühad[],MATCH(DATE(Kalendriaasta,MONTH(E7),DAY(E7)),IF(KuvaTähistamine,tblPühad[PARANDATUD],tblPühad[PÄEV]),0),6),INDEX(tblPühad[],MATCH(DATE(Kalendriaasta,MONTH(E7),DAY(E7)),IF(KuvaTähistamine,tblPühad[PARANDATUD],tblPühad[PÄEV]),0),2),\"\"),\"\"),\"\")","v":""},{"$f":"IFERROR(IF(KuvaPühad,IF(INDEX(tblPühad[],MATCH(DATE(Kalendriaasta,MONTH(F7),DAY(F7)),IF(KuvaTähistamine,tblPühad[PARANDATUD],tblPühad[PÄEV]),0),6),INDEX(tblPühad[],MATCH(DATE(Kalendriaasta,MONTH(F7),DAY(F7)),IF(KuvaTähistamine,tblPühad[PARANDATUD],tblPühad[PÄEV]),0),2),\"\"),\"\"),\"\")","v":""},{"$f":"IFERROR(IF(KuvaPühad,IF(INDEX(tblPühad[],MATCH(DATE(Kalendriaasta,MONTH(G7),DAY(G7)),IF(KuvaTähistamine,tblPühad[PARANDATUD],tblPühad[PÄEV]),0),6),INDEX(tblPühad[],MATCH(DATE(Kalendriaasta,MONTH(G7),DAY(G7)),IF(KuvaTähistamine,tblPühad[PARANDATUD],tblPühad[PÄEV]),0),2),\"\"),\"\"),\"\")","v":""},{"$f":"IFERROR(IF(KuvaPühad,IF(INDEX(tblPühad[],MATCH(DATE(Kalendriaasta,MONTH(H7),DAY(H7)),IF(KuvaTähistamine,tblPühad[PARANDATUD],tblPühad[PÄEV]),0),6),INDEX(tblPühad[],MATCH(DATE(Kalendriaasta,MONTH(H7),DAY(H7)),IF(KuvaTähistamine,tblPühad[PARANDATUD],tblPühad[PÄEV]),0),2),\"\"),\"\"),\"\")","v":""}]
[null,{"$f":"Päevad+DATE(Kalendriaasta,12,1)-WEEKDAY(DATE(Kalendriaasta,12,1),(NädalaAlgus=\"Esmaspäev\")+1)+15","v":"2018-12-09"},"2018-12-10","2018-12-11","2018-12-12","2018-12-13","2018-12-14","2018-12-15"]
[null,{"$f":"IFERROR(IF(KuvaPühad,IF(INDEX(tblPühad[],MATCH(DATE(Kalendriaasta,MONTH(B9),DAY(B9)),IF(KuvaTähistamine,tblPühad[PARANDATUD],tblPühad[PÄEV]),0),6),INDEX(tblPühad[],MATCH(DATE(Kalendriaasta,MONTH(B9),DAY(B9)),IF(KuvaTähistamine,tblPühad[PARANDATUD],tblPühad[PÄEV]),0),2),\"\"),\"\"),\"\")","v":""},{"$f":"IFERROR(IF(KuvaPühad,IF(INDEX(tblPühad[],MATCH(DATE(Kalendriaasta,MONTH(C9),DAY(C9)),IF(KuvaTähistamine,tblPühad[PARANDATUD],tblPühad[PÄEV]),0),6),INDEX(tblPühad[],MATCH(DATE(Kalendriaasta,MONTH(C9),DAY(C9)),IF(KuvaTähistamine,tblPühad[PARANDATUD],tblPühad[PÄEV]),0),2),\"\"),\"\"),\"\")","v":""},{"$f":"IFERROR(IF(KuvaPühad,IF(INDEX(tblPühad[],MATCH(DATE(Kalendriaasta,MONTH(D9),DAY(D9)),IF(KuvaTähistamine,tblPühad[PARANDATUD],tblPühad[PÄEV]),0),6),INDEX(tblPühad[],MATCH(DATE(Kalendriaasta,MONTH(D9),DAY(D9)),IF(KuvaTähistamine,tblPühad[PARANDATUD],tblPühad[PÄEV]),0),2),\"\"),\"\"),\"\")","v":""},{"$f":"IFERROR(IF(KuvaPühad,IF(INDEX(tblPühad[],MATCH(DATE(Kalendriaasta,MONTH(E9),DAY(E9)),IF(KuvaTähistamine,tblPühad[PARANDATUD],tblPühad[PÄEV]),0),6),INDEX(tblPühad[],MATCH(DATE(Kalendriaasta,MONTH(E9),DAY(E9)),IF(KuvaTähistamine,tblPühad[PARANDATUD],tblPühad[PÄEV]),0),2),\"\"),\"\"),\"\")","v":""},{"$f":"IFERROR(IF(KuvaPühad,IF(INDEX(tblPühad[],MATCH(DATE(Kalendriaasta,MONTH(F9),DAY(F9)),IF(KuvaTähistamine,tblPühad[PARANDATUD],tblPühad[PÄEV]),0),6),INDEX(tblPühad[],MATCH(DATE(Kalendriaasta,MONTH(F9),DAY(F9)),IF(KuvaTähistamine,tblPühad[PARANDATUD],tblPühad[PÄEV]),0),2),\"\"),\"\"),\"\")","v":""},{"$f":"IFERROR(IF(KuvaPühad,IF(INDEX(tblPühad[],MATCH(DATE(Kalendriaasta,MONTH(G9),DAY(G9)),IF(KuvaTähistamine,tblPühad[PARANDATUD],tblPühad[PÄEV]),0),6),INDEX(tblPühad[],MATCH(DATE(Kalendriaasta,MONTH(G9),DAY(G9)),IF(KuvaTähistamine,tblPühad[PARANDATUD],tblPühad[PÄEV]),0),2),\"\"),\"\"),\"\")","v":""},{"$f":"IFERROR(IF(KuvaPühad,IF(INDEX(tblPühad[],MATCH(DATE(Kalendriaasta,MONTH(H9),DAY(H9)),IF(KuvaTähistamine,tblPühad[PARANDATUD],tblPühad[PÄEV]),0),6),INDEX(tblPühad[],MATCH(DATE(Kalendriaasta,MONTH(H9),DAY(H9)),IF(KuvaTähistamine,tblPühad[PARANDATUD],tblPühad[PÄEV]),0),2),\"\"),\"\"),\"\")","v":""}]
[null,{"$f":"Päevad+DATE(Kalendriaasta,12,1)-WEEKDAY(DATE(Kalendriaasta,12,1),(NädalaAlgus=\"Esmaspäev\")+1)+22","v":"2018-12-16"},"2018-12-17","2018-12-18","2018-12-19","2018-12-20","2018-12-21","2018-12-22"]
[null,{"$f":"IFERROR(IF(KuvaPühad,IF(INDEX(tblPühad[],MATCH(DATE(Kalendriaasta,MONTH(B11),DAY(B11)),IF(KuvaTähistamine,tblPühad[PARANDATUD],tblPühad[PÄEV]),0),6),INDEX(tblPühad[],MATCH(DATE(Kalendriaasta,MONTH(B11),DAY(B11)),IF(KuvaTähistamine,tblPühad[PARANDATUD],tblPühad[PÄEV]),0),2),\"\"),\"\"),\"\")","v":""},{"$f":"IFERROR(IF(KuvaPühad,IF(INDEX(tblPühad[],MATCH(DATE(Kalendriaasta,MONTH(C11),DAY(C11)),IF(KuvaTähistamine,tblPühad[PARANDATUD],tblPühad[PÄEV]),0),6),INDEX(tblPühad[],MATCH(DATE(Kalendriaasta,MONTH(C11),DAY(C11)),IF(KuvaTähistamine,tblPühad[PARANDATUD],tblPühad[PÄEV]),0),2),\"\"),\"\"),\"\")","v":""},{"$f":"IFERROR(IF(KuvaPühad,IF(INDEX(tblPühad[],MATCH(DATE(Kalendriaasta,MONTH(D11),DAY(D11)),IF(KuvaTähistamine,tblPühad[PARANDATUD],tblPühad[PÄEV]),0),6),INDEX(tblPühad[],MATCH(DATE(Kalendriaasta,MONTH(D11),DAY(D11)),IF(KuvaTähistamine,tblPühad[PARANDATUD],tblPühad[PÄEV]),0),2),\"\"),\"\"),\"\")","v":""},{"$f":"IFERROR(IF(KuvaPühad,IF(INDEX(tblPühad[],MATCH(DATE(Kalendriaasta,MONTH(E11),DAY(E11)),IF(KuvaTähistamine,tblPühad[PARANDATUD],tblPühad[PÄEV]),0),6),INDEX(tblPühad[],MATCH(DATE(Kalendriaasta,MONTH(E11),DAY(E11)),IF(KuvaTähistamine,tblPühad[PARANDATUD],tblPühad[PÄEV]),0),2),\"\"),\"\"),\"\")","v":""},{"$f":"IFERROR(IF(KuvaPühad,IF(INDEX(tblPühad[],MATCH(DATE(Kalendriaasta,MONTH(F11),DAY(F11)),IF(KuvaTähistamine,tblPühad[PARANDATUD],tblPühad[PÄEV]),0),6),INDEX(tblPühad[],MATCH(DATE(Kalendriaasta,MONTH(F11),DAY(F11)),IF(KuvaTähistamine,tblPühad[PARANDATUD],tblPühad[PÄEV]),0),2),\"\"),\"\"),\"\")","v":""},{"$f":"IFERROR(IF(KuvaPühad,IF(INDEX(tblPühad[],MATCH(DATE(Kalendriaasta,MONTH(G11),DAY(G11)),IF(KuvaTähistamine,tblPühad[PARANDATUD],tblPühad[PÄEV]),0),6),INDEX(tblPühad[],MATCH(DATE(Kalendriaasta,MONTH(G11),DAY(G11)),IF(KuvaTähistamine,tblPühad[PARANDATUD],tblPühad[PÄEV]),0),2),\"\"),\"\"),\"\")","v":""},{"$f":"IFERROR(IF(KuvaPühad,IF(INDEX(tblPühad[],MATCH(DATE(Kalendriaasta,MONTH(H11),DAY(H11)),IF(KuvaTähistamine,tblPühad[PARANDATUD],tblPühad[PÄEV]),0),6),INDEX(tblPühad[],MATCH(DATE(Kalendriaasta,MONTH(H11),DAY(H11)),IF(KuvaTähistamine,tblPühad[PARANDATUD],tblPühad[PÄEV]),0),2),\"\"),\"\"),\"\")","v":""}]
[null,{"$f":"Päevad+DATE(Kalendriaasta,12,1)-WEEKDAY(DATE(Kalendriaasta,12,1),(NädalaAlgus=\"Esmaspäev\")+1)+29","v":"2018-12-23"},"2018-12-24","2018-12-25","2018-12-26","2018-12-27","2018-12-28","2018-12-29"]
[null,{"$f":"IFERROR(IF(KuvaPühad,IF(INDEX(tblPühad[],MATCH(DATE(Kalendriaasta,MONTH(B13),DAY(B13)),IF(KuvaTähistamine,tblPühad[PARANDATUD],tblPühad[PÄEV]),0),6),INDEX(tblPühad[],MATCH(DATE(Kalendriaasta,MONTH(B13),DAY(B13)),IF(KuvaTähistamine,tblPühad[PARANDATUD],tblPühad[PÄEV]),0),2),\"\"),\"\"),\"\")","v":""},{"$f":"IFERROR(IF(KuvaPühad,IF(INDEX(tblPühad[],MATCH(DATE(Kalendriaasta,MONTH(C13),DAY(C13)),IF(KuvaTähistamine,tblPühad[PARANDATUD],tblPühad[PÄEV]),0),6),INDEX(tblPühad[],MATCH(DATE(Kalendriaasta,MONTH(C13),DAY(C13)),IF(KuvaTähistamine,tblPühad[PARANDATUD],tblPühad[PÄEV]),0),2),\"\"),\"\"),\"\")","v":""},{"$f":"IFERROR(IF(KuvaPühad,IF(INDEX(tblPühad[],MATCH(DATE(Kalendriaasta,MONTH(D13),DAY(D13)),IF(KuvaTähistamine,tblPühad[PARANDATUD],tblPühad[PÄEV]),0),6),INDEX(tblPühad[],MATCH(DATE(Kalendriaasta,MONTH(D13),DAY(D13)),IF(KuvaTähistamine,tblPühad[PARANDATUD],tblPühad[PÄEV]),0),2),\"\"),\"\"),\"\")","v":"Esimene jõulupüha"},{"$f":"IFERROR(IF(KuvaPühad,IF(INDEX(tblPühad[],MATCH(DATE(Kalendriaasta,MONTH(E13),DAY(E13)),IF(KuvaTähistamine,tblPühad[PARANDATUD],tblPühad[PÄEV]),0),6),INDEX(tblPühad[],MATCH(DATE(Kalendriaasta,MONTH(E13),DAY(E13)),IF(KuvaTähistamine,tblPühad[PARANDATUD],tblPühad[PÄEV]),0),2),\"\"),\"\"),\"\")","v":""},{"$f":"IFERROR(IF(KuvaPühad,IF(INDEX(tblPühad[],MATCH(DATE(Kalendriaasta,MONTH(F13),DAY(F13)),IF(KuvaTähistamine,tblPühad[PARANDATUD],tblPühad[PÄEV]),0),6),INDEX(tblPühad[],MATCH(DATE(Kalendriaasta,MONTH(F13),DAY(F13)),IF(KuvaTähistamine,tblPühad[PARANDATUD],tblPühad[PÄEV]),0),2),\"\"),\"\"),\"\")","v":""},{"$f":"IFERROR(IF(KuvaPühad,IF(INDEX(tblPühad[],MATCH(DATE(Kalendriaasta,MONTH(G13),DAY(G13)),IF(KuvaTähistamine,tblPühad[PARANDATUD],tblPühad[PÄEV]),0),6),INDEX(tblPühad[],MATCH(DATE(Kalendriaasta,MONTH(G13),DAY(G13)),IF(KuvaTähistamine,tblPühad[PARANDATUD],tblPühad[PÄEV]),0),2),\"\"),\"\"),\"\")","v":""},{"$f":"IFERROR(IF(KuvaPühad,IF(INDEX(tblPühad[],MATCH(DATE(Kalendriaasta,MONTH(H13),DAY(H13)),IF(KuvaTähistamine,tblPühad[PARANDATUD],tblPühad[PÄEV]),0),6),INDEX(tblPühad[],MATCH(DATE(Kalendriaasta,MONTH(H13),DAY(H13)),IF(KuvaTähistamine,tblPühad[PARANDATUD],tblPühad[PÄEV]),0),2),\"\"),\"\"),\"\")","v":""}]
[null,{"$f":"Päevad+DATE(Kalendriaasta,12,1)-WEEKDAY(DATE(Kalendriaasta,12,1),(NädalaAlgus=\"Esmaspäev\")+1)+36","v":"2018-12-30"},"2018-12-31","MÄRKMED"]
[null,{"$f":"IFERROR(IF(KuvaPühad,IF(INDEX(tblPühad[],MATCH(DATE(Kalendriaasta,MONTH(B15),DAY(B15)),IF(KuvaTähistamine,tblPühad[PARANDATUD],tblPühad[PÄEV]),0),6),INDEX(tblPühad[],MATCH(DATE(Kalendriaasta,MONTH(B15),DAY(B15)),IF(KuvaTähistamine,tblPühad[PARANDATUD],tblPühad[PÄEV]),0),2),\"\"),\"\"),\"\")","v":""},{"$f":"IFERROR(IF(KuvaPühad,IF(INDEX(tblPühad[],MATCH(DATE(Kalendriaasta,MONTH(C15),DAY(C15)),IF(KuvaTähistamine,tblPühad[PARANDATUD],tblPühad[PÄEV]),0),6),INDEX(tblPühad[],MATCH(DATE(Kalendriaasta,MONTH(C15),DAY(C15)),IF(KuvaTähistamine,tblPühad[PARANDATUD],tblPühad[PÄEV]),0),2),\"\"),\"\"),\"\")","v":""}]

{"sheet":"Pühad","index":13,"n_rows":15,"n_cols":8,"rows_kept":15}
[]
[null,"Eesti pühad",{"$nulls":5}," "]
[]
[null,"PÄEV","PÜHA","KUUPÄEV","NÄDALAPÄEV","PARANDATUD","KUVA"]
[null,{"$f":"DATE(Kalendriaasta,1,1)","v":"2018-01-01"},"Uusaasta","1. jaanuar",{"$f":"IFERROR(WEEKDAY(tblPühad[[#This Row],[PÄEV]],IF(NädalaAlgus=\"ESMASPÄEV\",2,1)),0)","v":2},{"$f":"IF(ISTEXT(tblPühad[[#This Row],[PÄEV]]),\"Ei tähistata\",IF(tblPühad[[#This Row],[NÄDALAPÄEV]]=1,tblPühad[[#This Row],[PÄEV]]+1,IF(tblPühad[[#This Row],[NÄDALAPÄEV]]=7,tblPühad[[#This Row],[PÄEV]]-1,tblPühad[[#This Row],[PÄEV]])))","v":"2018-01-01"},true]
[null,{"$f":"DATE(Kalendriaasta,1,1+((3-(2>=WEEKDAY(DATE(Kalendriaasta,1,1))))*7)+(2-WEEKDAY(DATE(Kalendriaasta,1,1))))","v":"2018-01-15"},{"$f":"IF(COUNTIF(tblPühad[PÄEV],tblPühad[[#This Row],[PÄEV]])>1,\"Martin Luther King, Jr. Day *\",\"Martin Luther King, Jr. Day\")","v":"Martin Luther King, Jr. Day"},"Kolmekuningapäev, 6. jaanuar",{"$f":"IFERROR(WEEKDAY(tblPühad[[#This Row],[PÄEV]],IF(NädalaAlgus=\"ESMASPÄEV\",2,1)),0)","v":2},{"$f":"IF(ISTEXT(tblPühad[[#This Row],[PÄEV]]),\"Ei tähistata\",IF(tblPühad[[#This Row],[NÄDALAPÄEV]]=1,tblPühad[[#This Row],[PÄEV]]+1,IF(tblPühad[[#This Row],[NÄDALAPÄEV]]=7,tblPühad[[#This Row],[PÄEV]]-1,tblPühad[[#This Row],[PÄEV]])))","v":"2018-01-15"},true]
[null,{"$f":"IF(MOD(Kalendriaasta,4)=1,DATE(Kalendriaasta,1,20)+(WEEKDAY(DATE(Kalendriaasta,1,20))=1),\"Ei tähistata\")","v":"Ei tähistata"},"Tartu rahulepingu aastapäev","2. veebruar",{"$f":"IFERROR(WEEKDAY(tblPühad[[#This Row],[PÄEV]],IF(NädalaAlgus=\"ESMASPÄEV\",2,1)),0)","v":0},{"$f":"IF(ISTEXT(tblPühad[[#This Row],[PÄEV]]),\"Ei tähistata\",IF(tblPühad[[#This Row],[NÄDALAPÄEV]]=1,tblPühad[[#This Row],[PÄEV]]+1,IF(tblPühad[[#This Row],[NÄDALAPÄEV]]=7,tblPühad[[#This Row],[PÄEV]]-1,tblPühad[[#This Row],[PÄEV]])))","v":"Ei tähistata"},true]
[null,{"$f":"DATE(Kalendriaasta,2,1+((3-(2>=WEEKDAY(DATE(Kalendriaasta,2,1))))*7)+(2-WEEKDAY(DATE(Kalendriaasta,2,1))))","v":"2018-02-19"},"Iseseisvuspäev","Eesti Vabariigi aastapäev, 24. veebruar",{"$f":"IFERROR(WEEKDAY(tblPühad[[#This Row],[PÄEV]],IF(NädalaAlgus=\"ESMASPÄEV\",2,1)),0)","v":2},{"$f":"IF(ISTEXT(tblPühad[[#This Row],[PÄEV]]),\"Ei tähistata\",IF(tblPühad[[#This Row],[NÄDALAPÄEV]]=1,tblPühad[[#This Row],[PÄEV]]+1,IF(tblPühad[[#This Row],[NÄDALAPÄEV]]=7,tblPühad[[#This Row],[PÄEV]]-1,tblPühad[[#This Row],[PÄEV]])))","v":"2018-02-19"},true]
[null,{"$f":"DATE(Kalendriaasta,5,1+((MaiEsmaspäevad-(2>=WEEKDAY(DATE(Kalendriaasta,5,1))))*7)+(2-WEEKDAY(DATE(Kalendriaasta,5,1))))","v":"2018-05-28"},"Suur reede","Liikuv püha. Kaks päeva enne ülestõusmispühade 1. püha",{"$f":"IFERROR(WEEKDAY(tblPühad[[#This Row],[PÄEV]],IF(NädalaAlgus=\"ESMASPÄEV\",2,1)),0)","v":2},{"$f":"IF(ISTEXT(tblPühad[[#This Row],[PÄEV]]),\"Ei tähistata\",IF(tblPühad[[#This Row],[NÄDALAPÄEV]]=1,tblPühad[[#This Row],[PÄEV]]+1,IF(tblPühad[[#This Row],[NÄDALAPÄEV]]=7,tblPühad[[#This Row],[PÄEV]]-1,tblPühad[[#This Row],[PÄEV]])))","v":"2018-05-28"},true]
[null,{"$f":"DATE(Kalendriaasta,7,4)","v":"2018-07-04"},"Kevadpüha","1. mai",{"$f":"IFERROR(WEEKDAY(tblPühad[[#This Row],[PÄEV]],IF(NädalaAlgus=\"ESMASPÄEV\",2,1)),0)","v":4},{"$f":"IF(ISTEXT(tblPühad[[#This Row],[PÄEV]]),\"Ei tähistata\",IF(tblPühad[[#This Row],[NÄDALAPÄEV]]=1,tblPühad[[#This Row],[PÄEV]]+1,IF(tblPühad[[#This Row],[NÄDALAPÄEV]]=7,tblPühad[[#This Row],[PÄEV]]-1,tblPühad[[#This Row],[PÄEV]])))","v":"2018-07-04"},true]
[null,{"$f":"DATE(Kalendriaasta,9,1+((1-(2>=WEEKDAY(DATE(Kalendriaasta,9,1))))*7)+(2-WEEKDAY(DATE(Kalendriaasta,9,1))))","v":"2018-09-03"},"Võidupüha","Eesti vabadussõja Võnnu lahingu aastapäev, 23. juuni",{"$f":"IFERROR(WEEKDAY(tblPühad[[#This Row],[PÄEV]],IF(NädalaAlgus=\"ESMASPÄEV\",2,1)),0)","v":2},{"$f":"IF(ISTEXT(tblPühad[[#This Row],[PÄEV]]),\"Ei tähistata\",IF(tblPühad[[#This Row],[NÄDALAPÄEV]]=1,tblPühad[[#This Row],[PÄEV]]+1,IF(tblPühad[[#This Row],[NÄDALAPÄEV]]=7,tblPühad[[#This Row],[PÄEV]]-1,tblPühad[[#This Row],[PÄEV]])))","v":"2018-09-03"},true]
[null,{"$f":"DATE(Kalendriaasta,10,1+((2-(2>=WEEKDAY(DATE(Kalendriaasta,10,1))))*7)+(2-WEEKDAY(DATE(Kalendriaasta,10,1))))","v":"2018-10-08"},"Jaanipäev","24. juuni",{"$f":"IFERROR(WEEKDAY(tblPühad[[#This Row],[PÄEV]],IF(NädalaAlgus=\"ESMASPÄEV\",2,1)),0)","v":2},{"$f":"IF(ISTEXT(tblPühad[[#This Row],[PÄEV]]),\"Ei tähistata\",IF(tblPühad[[#This Row],[NÄDALAPÄEV]]=1,tblPühad[[#This Row],[PÄEV]]+1,IF(tblPühad[[#This Row],[NÄDALAPÄEV]]=7,tblPühad[[#This Row],[PÄEV]]-1,tblPühad[[#This Row],[PÄEV]])))","v":"2018-10-08"},true]
[null,{"$f":"DATE(Kalendriaasta,11,11)","v":"2018-11-11"},"Taasiseseisvumispäev","Eesti Vabariigi taastamise aastapäev, 20. august",{"$f":"IFERROR(WEEKDAY(tblPühad[[#This Row],[PÄEV]],IF(NädalaAlgus=\"ESMASPÄEV\",2,1)),0)","v":1},{"$f":"IF(ISTEXT(tblPühad[[#This Row],[PÄEV]]),\"Ei tähistata\",IF(tblPühad[[#This Row],[NÄDALAPÄEV]]=1,tblPühad[[#This Row],[PÄEV]]+1,IF(tblPühad[[#This Row],[NÄDALAPÄEV]]=7,tblPühad[[#This Row],[PÄEV]]-1,tblPühad[[#This Row],[PÄEV]])))","v":"2018-11-12"},true]
[null,{"$f":"DATE(Kalendriaasta,11,1+((4-(5>=WEEKDAY(DATE(Kalendriaasta,11,1))))*7)+(5-WEEKDAY(DATE(Kalendriaasta,11,1))))","v":"2018-11-22"},"Jõululaupäev","24. detsember",{"$f":"IFERROR(WEEKDAY(tblPühad[[#This Row],[PÄEV]],IF(NädalaAlgus=\"ESMASPÄEV\",2,1)),0)","v":5},{"$f":"IF(ISTEXT(tblPühad[[#This Row],[PÄEV]]),\"Ei tähistata\",IF(tblPühad[[#This Row],[NÄDALAPÄEV]]=1,tblPühad[[#This Row],[PÄEV]]+1,IF(tblPühad[[#This Row],[NÄDALAPÄEV]]=7,tblPühad[[#This Row],[PÄEV]]-1,tblPühad[[#This Row],[PÄEV]])))","v":"2018-11-22"},true]
[null,{"$f":"DATE(Kalendriaasta,12,25)","v":"2018-12-25"},"Esimene jõulupüha","25. detsember",{"$f":"IFERROR(WEEKDAY(tblPühad[[#This Row],[PÄEV]],IF(NädalaAlgus=\"ESMASPÄEV\",2,1)),0)","v":3},{"$f":"IF(ISTEXT(tblPühad[[#This Row],[PÄEV]]),\"Ei tähistata\",IF(tblPühad[[#This Row],[NÄDALAPÄEV]]=1,tblPühad[[#This Row],[PÄEV]]+1,IF(tblPühad[[#This Row],[NÄDALAPÄEV]]=7,tblPühad[[#This Row],[PÄEV]]-1,tblPühad[[#This Row],[PÄEV]])))","v":"2018-12-25"},true]